Body Name,Purpose,Dr/Cr,Gross Amount,Beneficiary,Transaction date,Directorate
Nottinghamshire County Council ,Personal Needs,Debit,14.1,sainsburys s/mkts,03.01.2019,"Children, Families & Cultural Services "
Nottinghamshire County Council ,Unplanned Needs and Financial Support,Debit,7.6,newark castle to,02.01.2019,"Children, Families & Cultural Services "
Nottinghamshire County Council ,Unplanned Needs and Financial Support,Debit,187.03,foot locker 4154,03.01.2019,"Children, Families & Cultural Services "
Nottinghamshire County Council ,Unplanned Needs and Financial Support,Debit,5.99,birds (derby) ltd  intu,03.01.2019,"Children, Families & Cultural Services "
Nottinghamshire County Council ,Postages,Debit,4.25,post office counter,03.01.2019,"Children, Families & Cultural Services "
Nottinghamshire County Council ,Provisions,Debit,20.65,sainsburys smkt,02.01.2019,"Children, Families & Cultural Services "
Nottinghamshire County Council ,Other Fees & Services,Credi,-23.4,gro hm passport office,02.01.2019,"Children, Families & Cultural Services "
Nottinghamshire County Council ,Other Fees & Services,Debit,185.94,www.argos.co.uk,02.01.2019,"Children, Families & Cultural Services "
Nottinghamshire County Council ,Other Fees & Services,Debit,23.4,gro hm passport office,02.01.2019,"Children, Families & Cultural Services "
Nottinghamshire County Council ,Activities & Support,Debit,184.56,asda groceries online,03.01.2019,"Adult Social Care, Health & Public Protection "
Nottinghamshire County Council ,Activities & Support,Credi,-4.1,asda groceries online,03.01.2019,"Adult Social Care, Health & Public Protection "
Nottinghamshire County Council ,Subscriptions and Licences,Debit,354.25,trading standards inst,03.01.2019,"Adult Social Care, Health & Public Protection "
Nottinghamshire County Council ,Office / General Equipment,Debit,2,royal mail charges,02.01.2019,"Adult Social Care, Health & Public Protection "
Nottinghamshire County Council ,Office / General Equipment,Debit,6.56,tesco stores-3439,02.01.2019,"Adult Social Care, Health & Public Protection "
Nottinghamshire County Council ,Personal Needs,Debit,15,scrivens opticians 084,02.01.2019,"Children, Families & Cultural Services "
Nottinghamshire County Council ,Furniture,Debit,624,www.officefurnitureonl,02.01.2019,"Children, Families & Cultural Services "
Nottinghamshire County Council ,Office / General Equipment,Debit,29.06,www.buxtons.net,02.01.2019,Chief Executives
Nottinghamshire County Council ,Family Financial Assistance,Debit,77,mansfield district cou,03.01.2019,"Children, Families & Cultural Services "
Nottinghamshire County Council ,Office / General Equipment,Debit,19.65,amazon.co.uk mb4sc9cq4,03.01.2019,Resources
Nottinghamshire County Council ,Software Purchases,Debit,20.77,github.com,03.01.2019,Resources
Nottinghamshire County Council ,Training Fees,Debit,61.25,aldi,03.01.2019,"Adult Social Care, Health & Public Protection "
Nottinghamshire County Council ,Personal Needs,Debit,12.85,robin hood plaice,03.01.2019,"Children, Families & Cultural Services "
Nottinghamshire County Council ,Other Fees & Services,Debit,11,ncc card payment inter,03.01.2019,"Children, Families & Cultural Services "
Nottinghamshire County Council ,Office / General Equipment,Debit,49,www.flannels.com,03.01.2019,"Children, Families & Cultural Services "
Nottinghamshire County Council ,Personal Needs,Debit,123.35,wilko retail limit,03.01.2019,"Adult Social Care, Health & Public Protection "
Nottinghamshire County Council ,Cleaning Materials,Debit,212.16,jangro (leicester) ltd,02.01.2019,"Adult Social Care, Health & Public Protection "
Nottinghamshire County Council ,Activities & Support,Debit,97,travelodge gb0000,02.01.2019,"Adult Social Care, Health & Public Protection "
Nottinghamshire County Council ,Unplanned Needs and Financial Support,Debit,11.78,tesco stores 2995,02.01.2019,"Children, Families & Cultural Services "
Nottinghamshire County Council ,Other Fees & Services,Debit,29.97,hpi check,03.01.2019,"Adult Social Care, Health & Public Protection "
Nottinghamshire County Council ,Other Fees & Services,Debit,10,www.gov.uk,02.01.2019,Resources
Nottinghamshire County Council ,Staff Training,Debit,120,vimeo.com,02.01.2019,"Children, Families & Cultural Services "
Nottinghamshire County Council ,Leaving Care - Home Establishment Grant,Debit,"1,003.35",argos ltd,02.01.2019,"Children, Families & Cultural Services "
Nottinghamshire County Council ,Leaving Care - Home Establishment Grant,Debit,10,argos ltd,02.01.2019,"Children, Families & Cultural Services "
Nottinghamshire County Council ,Leaving Care - Home Establishment Grant,Debit,50.6,oriental mart,02.01.2019,"Children, Families & Cultural Services "
Nottinghamshire County Council ,CLA Extra Curriculum Activities,Debit,65,guildhallsc,03.01.2019,"Children, Families & Cultural Services "
Nottinghamshire County Council ,"Leaving Care Educaton,Employment & Training",Debit,45,www.artsed.co.uk,03.01.2019,"Children, Families & Cultural Services "
Nottinghamshire County Council ,"Leaving Care Educaton,Employment & Training",Debit,55,eb  rose bruford colle,03.01.2019,"Children, Families & Cultural Services "
Nottinghamshire County Council ,Unplanned Needs and Financial Support,Debit,45,www.mountview.org.uk,03.01.2019,"Children, Families & Cultural Services "
Nottinghamshire County Council ,Unplanned Needs and Financial Support,Debit,54,www.lamda.org.uk,03.01.2019,"Children, Families & Cultural Services "
Nottinghamshire County Council ,Other Fees & Services,Debit,9.25,gro hm passport office,02.01.2019,"Adult Social Care, Health & Public Protection "
Nottinghamshire County Council ,Activities & Support,Debit,14.89,amzn mktp uk mb1kq1oy4,02.01.2019,"Adult Social Care, Health & Public Protection "
Nottinghamshire County Council ,Activities & Support,Debit,24.56,wm morrisons store,02.01.2019,"Children, Families & Cultural Services "
Nottinghamshire County Council ,Provisions,Debit,14.13,wm morrisons store,02.01.2019,"Adult Social Care, Health & Public Protection "
Nottinghamshire County Council ,Provisions,Debit,16,wm morrisons store,02.01.2019,"Adult Social Care, Health & Public Protection "
Nottinghamshire County Council ,Postages,Debit,1.87,the post office,02.01.2019,"Children, Families & Cultural Services "
Nottinghamshire County Council ,Office / General Equipment,Debit,130.5,istock.com,02.01.2019,"Children, Families & Cultural Services "
Nottinghamshire County Council ,Provisions,Debit,11.77,bm retail,03.01.2019,"Children, Families & Cultural Services "
Nottinghamshire County Council ,Provisions,Debit,63.99,bm retail,03.01.2019,"Children, Families & Cultural Services "
Nottinghamshire County Council ,Building Maintenance,Debit,4.66,amzn mktp uk mb0mj8494,03.01.2019,"Adult Social Care, Health & Public Protection "
Nottinghamshire County Council ,Building Maintenance,Debit,73,top deck trade centre lt,02.01.2019,"Adult Social Care, Health & Public Protection "
Nottinghamshire County Council ,Staff Training,Debit,78,pcs first4healthtraini,02.01.2019,"Adult Social Care, Health & Public Protection "
Nottinghamshire County Council ,Provisions,Debit,0.5,wilko retail limit,02.01.2019,Place
Nottinghamshire County Council ,Stationery,Debit,8.09,amzn mktp uk mb4q60f44,03.01.2019,"Adult Social Care, Health & Public Protection "
Nottinghamshire County Council ,Provisions,Debit,124.7,just eat,01.01.2019,"Children, Families & Cultural Services "
Nottinghamshire County Council ,Other Fees & Services,Debit,172.5,www.licenceplus.co.uk,02.01.2019,"Children, Families & Cultural Services "
Nottinghamshire County Council ,Provisions,Debit,138.38,bookerecomm,03.01.2019,Place
Nottinghamshire County Council ,Staff Training,Debit,48,www.jca.biz,03.01.2019,Public Health
Nottinghamshire County Council ,Family Financial Assistance,Debit,100,heads yard limited,03.01.2019,"Children, Families & Cultural Services "
Nottinghamshire County Council ,Activities & Support,Debit,26.48,sportsdirect 292,03.01.2019,"Children, Families & Cultural Services "
Nottinghamshire County Council ,Activities & Support,Debit,6.5,mansfield leisure,03.01.2019,"Children, Families & Cultural Services "
Nottinghamshire County Council ,Specialist Equipment,Debit,552.65,screwfix direct,03.01.2019,"Children, Families & Cultural Services "
Nottinghamshire County Council ,Specialist Equipment,Debit,254.1,screwfix direct,03.01.2019,"Children, Families & Cultural Services "
Nottinghamshire County Council ,Materials - External,Debit,371,austins carpets limit,02.01.2019,"Children, Families & Cultural Services "
Nottinghamshire County Council ,Provisions,Debit,29.13,tesco stores 2995,02.01.2019,"Children, Families & Cultural Services "
Nottinghamshire County Council ,Cleaning Materials,Debit,10.5,sainsburys s/mkts,02.01.2019,"Children, Families & Cultural Services "
Nottinghamshire County Council ,Unplanned Needs and Financial Support,Debit,4.85,wm morrisons store,02.01.2019,"Children, Families & Cultural Services "
Nottinghamshire County Council ,Unplanned Needs and Financial Support,Debit,4,sainsburys s/mkts,02.01.2019,"Children, Families & Cultural Services "
Nottinghamshire County Council ,Unplanned Needs and Financial Support,Debit,89.99,argos mansfield,02.01.2019,"Children, Families & Cultural Services "
Nottinghamshire County Council ,Office / General Equipment,Debit,30.43,stationery office book,03.01.2019,"Adult Social Care, Health & Public Protection "
Nottinghamshire County Council ,Office / General Equipment,Debit,14,wh smith,03.01.2019,"Adult Social Care, Health & Public Protection "
Nottinghamshire County Council ,Advertising & Marketing,Debit,21.2,canva for work monthly,02.01.2019,Resources
Nottinghamshire County Council ,Advertising & Marketing,Debit,99.2,hotjar,01.01.2019,Resources
Nottinghamshire County Council ,Leaving Care - Home Establishment Grant,Debit,14.5,bassetlaw,03.01.2019,"Children, Families & Cultural Services "
Nottinghamshire County Council ,Unplanned Needs and Financial Support,Debit,256.47,asda groceries online,02.01.2019,"Children, Families & Cultural Services "
Nottinghamshire County Council ,Unplanned Needs and Financial Support,Credi,-4.56,asda groceries online,02.01.2019,"Children, Families & Cultural Services "
Nottinghamshire County Council ,Personal Needs,Debit,12,b  q 1261,01.02.2019,"Children, Families & Cultural Services "
Nottinghamshire County Council ,Personal Needs,Debit,12,b  q 1261,01.02.2019,"Children, Families & Cultural Services "
Nottinghamshire County Council ,Personal Needs,Debit,12,b  q 1261,01.02.2019,"Children, Families & Cultural Services "
Nottinghamshire County Council ,Personal Needs,Debit,12,b  q 1261,01.02.2019,"Children, Families & Cultural Services "
Nottinghamshire County Council ,Personal Needs,Debit,12,b  q 1261,01.02.2019,"Children, Families & Cultural Services "
Nottinghamshire County Council ,Personal Needs,Debit,12,b  q 1261,01.02.2019,"Children, Families & Cultural Services "
Nottinghamshire County Council ,Personal Needs,Debit,12,b  q 1261,01.02.2019,"Children, Families & Cultural Services "
Nottinghamshire County Council ,Personal Needs,Debit,12,b  q 1261,01.02.2019,"Children, Families & Cultural Services "
Nottinghamshire County Council ,Personal Needs,Debit,18,b  q 1261,01.02.2019,"Children, Families & Cultural Services "
Nottinghamshire County Council ,Personal Needs,Debit,1.25,tesco stores 5379,09.01.2019,"Children, Families & Cultural Services "
Nottinghamshire County Council ,Personal Needs,Debit,4,tesco stores 5379,09.01.2019,"Children, Families & Cultural Services "
Nottinghamshire County Council ,Personal Needs,Debit,26.93,b  m retail,09.01.2019,"Children, Families & Cultural Services "
Nottinghamshire County Council ,Personal Needs,Debit,14.37,mcdonalds,08.01.2019,"Children, Families & Cultural Services "
Nottinghamshire County Council ,Personal Needs,Debit,5,sainsburys s/mkts,08.01.2019,"Children, Families & Cultural Services "
Nottinghamshire County Council ,Personal Needs,Debit,60.12,fs75 kings garage,08.01.2019,"Children, Families & Cultural Services "
Nottinghamshire County Council ,Personal Needs,Debit,1.8,security and car parki,07.01.2019,"Children, Families & Cultural Services "
Nottinghamshire County Council ,Activities & Support,Debit,23.74,amzn mktp uk mb69x8k64 a,22.01.2019,Resources
Nottinghamshire County Council ,Teaching Equipment,Debit,7,b  q 1310,09.01.2019,"Children, Families & Cultural Services "
Nottinghamshire County Council ,Teaching Equipment,Debit,21.5,b  q 1310,09.01.2019,"Children, Families & Cultural Services "
Nottinghamshire County Council ,Teaching Equipment,Credi,-89.99,paypal  no limitz,26.01.2019,"Children, Families & Cultural Services "
Nottinghamshire County Council ,Teaching Equipment,Debit,12.89,amazon.co.uk mb26p0kv4 a,22.01.2019,"Children, Families & Cultural Services "
Nottinghamshire County Council ,Teaching Equipment,Debit,89.99,paypal  no limitz,08.01.2019,"Children, Families & Cultural Services "
Nottinghamshire County Council ,Fuel - Petrol,Debit,15.4,tesco pfs 4061,09.01.2019,"Children, Families & Cultural Services "
Nottinghamshire County Council ,Unplanned Needs and Financial Support,Debit,7.6,tesco stores 5379,09.01.2019,"Children, Families & Cultural Services "
Nottinghamshire County Council ,Aids & Appliances,Debit,287.99,amazon.co.uk mi0hk6ni4,03.02.2019,"Adult Social Care, Health & Public Protection "
Nottinghamshire County Council ,Aids & Appliances,Debit,29.99,amzn mktp uk mb1qb2r94,27.01.2019,"Adult Social Care, Health & Public Protection "
Nottinghamshire County Council ,Aids & Appliances,Debit,299.97,amzn mktp uk mb8ar8gv4,13.01.2019,"Adult Social Care, Health & Public Protection "
Nottinghamshire County Council ,Aids & Appliances,Debit,299.97,amzn mktp uk mb77w2gu4,12.01.2019,"Adult Social Care, Health & Public Protection "
Nottinghamshire County Council ,Aids & Appliances,Debit,59.98,amzn mktp uk mb7l98xk4,13.01.2019,"Adult Social Care, Health & Public Protection "
Nottinghamshire County Council ,Activities & Support,Debit,22.24,aldi 31 779,31.01.2019,"Children, Families & Cultural Services "
Nottinghamshire County Council ,Activities & Support,Debit,4.11,aldi 31 779,23.01.2019,"Children, Families & Cultural Services "
Nottinghamshire County Council ,Activities & Support,Debit,29.22,aldi 31 779,23.01.2019,"Children, Families & Cultural Services "
Nottinghamshire County Council ,Provisions,Debit,98.09,w m morrisons.com,01.02.2019,"Adult Social Care, Health & Public Protection "
Nottinghamshire County Council ,Cleaning Materials,Debit,10.97,w m morrisons.com,28.01.2019,"Adult Social Care, Health & Public Protection "
Nottinghamshire County Council ,Provisions,Debit,57.64,w m morrisons.com,28.01.2019,"Adult Social Care, Health & Public Protection "
Nottinghamshire County Council ,Provisions,Debit,84.83,w m morrisons.com,25.01.2019,"Adult Social Care, Health & Public Protection "
Nottinghamshire County Council ,Provisions,Debit,66.8,w m morrisons.com,23.01.2019,"Adult Social Care, Health & Public Protection "
Nottinghamshire County Council ,Provisions,Debit,80.53,w m morrisons.com,21.01.2019,"Adult Social Care, Health & Public Protection "
Nottinghamshire County Council ,Cleaning Materials,Debit,5.02,w m morrisons.com,18.01.2019,"Adult Social Care, Health & Public Protection "
Nottinghamshire County Council ,Provisions,Debit,89.77,w m morrisons.com,18.01.2019,"Adult Social Care, Health & Public Protection "
Nottinghamshire County Council ,Cleaning Materials,Debit,5.96,w m morrisons.com,16.01.2019,"Adult Social Care, Health & Public Protection "
Nottinghamshire County Council ,Provisions,Debit,94.41,w m morrisons.com,16.01.2019,"Adult Social Care, Health & Public Protection "
Nottinghamshire County Council ,Provisions,Debit,99.45,w m morrisons.com,14.01.2019,"Adult Social Care, Health & Public Protection "
Nottinghamshire County Council ,Cleaning Materials,Debit,9.82,w m morrisons.com,11.01.2019,"Adult Social Care, Health & Public Protection "
Nottinghamshire County Council ,Provisions,Debit,78.79,w m morrisons.com,11.01.2019,"Adult Social Care, Health & Public Protection "
Nottinghamshire County Council ,Provisions,Debit,73.67,w m morrisons.com,09.01.2019,"Adult Social Care, Health & Public Protection "
Nottinghamshire County Council ,Provisions,Debit,8,w m morrisons.com,09.01.2019,"Adult Social Care, Health & Public Protection "
Nottinghamshire County Council ,Cleaning Materials,Debit,9.06,w m morrisons.com,07.01.2019,"Adult Social Care, Health & Public Protection "
Nottinghamshire County Council ,Provisions,Debit,40.81,w m morrisons.com,07.01.2019,"Adult Social Care, Health & Public Protection "
Nottinghamshire County Council ,Provisions,Debit,118.74,w m morrisons.com,04.01.2019,"Adult Social Care, Health & Public Protection "
Nottinghamshire County Council ,Provisions,Debit,5.25,theworks.co.uk,29.01.2019,"Children, Families & Cultural Services "
Nottinghamshire County Council ,Provisions,Debit,7.12,home bargains worksop,29.01.2019,"Children, Families & Cultural Services "
Nottinghamshire County Council ,Provisions,Debit,32.99,farmfoods- worksop,29.01.2019,"Children, Families & Cultural Services "
Nottinghamshire County Council ,Provisions,Debit,12.29,aldi 95 779,28.01.2019,"Children, Families & Cultural Services "
Nottinghamshire County Council ,Provisions,Debit,31.94,sportsdirect 292,25.01.2019,"Children, Families & Cultural Services "
Nottinghamshire County Council ,Provisions,Debit,5.5,tesco store 3439,25.01.2019,"Children, Families & Cultural Services "
Nottinghamshire County Council ,Provisions,Debit,30.65,tesco store 3439,25.01.2019,"Children, Families & Cultural Services "
Nottinghamshire County Council ,Provisions,Debit,27.45,sainsburys s/mkt,24.01.2019,"Children, Families & Cultural Services "
Nottinghamshire County Council ,Provisions,Debit,6.9,aldi 95 779,17.01.2019,"Children, Families & Cultural Services "
Nottinghamshire County Council ,Provisions,Debit,11.93,aldi 95 779,15.01.2019,"Children, Families & Cultural Services "
Nottinghamshire County Council ,Provisions,Debit,11.2,asda stores 4517,15.01.2019,"Children, Families & Cultural Services "
Nottinghamshire County Council ,Provisions,Debit,57.97,farmfoods- worksop,14.01.2019,"Children, Families & Cultural Services "
Nottinghamshire County Council ,Provisions,Debit,17.28,asda stores 4475,14.01.2019,"Children, Families & Cultural Services "
Nottinghamshire County Council ,Family Financial Assistance,Debit,11,ncc card payment inter,28.01.2019,"Children, Families & Cultural Services "
Nottinghamshire County Council ,Family Financial Assistance,Debit,11,ncc card payment inter,28.01.2019,"Children, Families & Cultural Services "
Nottinghamshire County Council ,Family Financial Assistance,Debit,11,ncc card payment inter,28.01.2019,"Children, Families & Cultural Services "
Nottinghamshire County Council ,Family Financial Assistance,Debit,11,ncc card payment inter,28.01.2019,"Children, Families & Cultural Services "
Nottinghamshire County Council ,Activities & Support,Debit,6,odeon upt,29.01.2019,"Children, Families & Cultural Services "
Nottinghamshire County Council ,Activities & Support,Debit,14.47,odeon,29.01.2019,"Children, Families & Cultural Services "
Nottinghamshire County Council ,Activities & Support,Debit,2.78,asda superstore 04261,27.01.2019,"Children, Families & Cultural Services "
Nottinghamshire County Council ,Activities & Support,Debit,7.68,mcdonalds,25.01.2019,"Children, Families & Cultural Services "
Nottinghamshire County Council ,Activities & Support,Debit,16,mansfield,25.01.2019,"Children, Families & Cultural Services "
Nottinghamshire County Council ,Personal Needs,Debit,124.4,ikea limited,25.01.2019,"Children, Families & Cultural Services "
Nottinghamshire County Council ,Personal Needs,Debit,6.49,mcdonalds,24.01.2019,"Children, Families & Cultural Services "
Nottinghamshire County Council ,Personal Needs,Debit,4,b  m retail,23.01.2019,"Children, Families & Cultural Services "
Nottinghamshire County Council ,Personal Needs,Debit,104,matalan,23.01.2019,"Children, Families & Cultural Services "
Nottinghamshire County Council ,Personal Needs,Debit,50.95,ikea limited,23.01.2019,"Children, Families & Cultural Services "
Nottinghamshire County Council ,Personal Needs,Debit,24.95,the range,23.01.2019,"Children, Families & Cultural Services "
Nottinghamshire County Council ,Activities & Support,Debit,7.3,chs beeston enterprise,24.01.2019,"Adult Social Care, Health & Public Protection "
Nottinghamshire County Council ,Office / General Equipment,Debit,2.29,amzn mktp uk mb8ld2pt4,11.01.2019,"Children, Families & Cultural Services "
Nottinghamshire County Council ,Office / General Equipment,Debit,23.99,amzn mktp uk mb9xz1124,10.01.2019,"Children, Families & Cultural Services "
Nottinghamshire County Council ,Provisions,Debit,29.99,amazon.co.uk mb4j930z4,10.01.2019,"Children, Families & Cultural Services "
Nottinghamshire County Council ,Minor Works,Debit,2.57,tesco stores 2702,30.01.2019,"Children, Families & Cultural Services "
Nottinghamshire County Council ,Minor Works,Debit,17.57,frank key (notts) ltd,25.01.2019,"Children, Families & Cultural Services "
Nottinghamshire County Council ,Minor Works,Debit,3.68,tesco stores 2702,27.01.2019,"Children, Families & Cultural Services "
Nottinghamshire County Council ,Minor Works,Debit,3.95,tesco stores 2702,24.01.2019,"Children, Families & Cultural Services "
Nottinghamshire County Council ,Minor Works,Debit,100.8,frank key (notts) ltd,23.01.2019,"Children, Families & Cultural Services "
Nottinghamshire County Council ,Minor Works,Debit,5,tesco stores 5378,22.01.2019,"Children, Families & Cultural Services "
Nottinghamshire County Council ,Minor Works,Debit,6.57,bestwood colliery p.o,22.01.2019,"Children, Families & Cultural Services "
Nottinghamshire County Council ,Minor Works,Debit,20,ice nine,16.01.2019,"Children, Families & Cultural Services "
Nottinghamshire County Council ,Minor Works,Debit,42.76,f martin limited,18.01.2019,"Children, Families & Cultural Services "
Nottinghamshire County Council ,Minor Works,Debit,1.09,bestwood colliery p.o,20.01.2019,"Children, Families & Cultural Services "
Nottinghamshire County Council ,Minor Works,Debit,2.48,tesco stores 2702,17.01.2019,"Children, Families & Cultural Services "
Nottinghamshire County Council ,Minor Works,Debit,7.84,tesco stores 2702,15.01.2019,"Children, Families & Cultural Services "
Nottinghamshire County Council ,Minor Works,Debit,63.2,f martin limited,09.01.2019,"Children, Families & Cultural Services "
Nottinghamshire County Council ,Minor Works,Debit,11.55,tesco stores 2702,09.01.2019,"Children, Families & Cultural Services "
Nottinghamshire County Council ,Minor Works,Debit,56.82,www.truetraders.co.uk,29.01.2019,"Children, Families & Cultural Services "
Nottinghamshire County Council ,Unplanned Needs and Financial Support,Debit,6.6,mcdonalds,31.01.2019,"Children, Families & Cultural Services "
Nottinghamshire County Council ,Unplanned Needs and Financial Support,Debit,6,sainsburys s/mkts,01.02.2019,"Children, Families & Cultural Services "
Nottinghamshire County Council ,Unplanned Needs and Financial Support,Debit,9.56,mcdonalds,30.01.2019,"Children, Families & Cultural Services "
Nottinghamshire County Council ,Unplanned Needs and Financial Support,Debit,5.88,mcdonalds,29.01.2019,"Children, Families & Cultural Services "
Nottinghamshire County Council ,Unplanned Needs and Financial Support,Debit,199,halfords 0583,29.01.2019,"Children, Families & Cultural Services "
Nottinghamshire County Council ,Unplanned Needs and Financial Support,Debit,40,sainsburys s/mkts,28.01.2019,"Children, Families & Cultural Services "
Nottinghamshire County Council ,Unplanned Needs and Financial Support,Debit,14.98,dunelm ltd,28.01.2019,"Children, Families & Cultural Services "
Nottinghamshire County Council ,Unplanned Needs and Financial Support,Debit,10,dunelm ltd,28.01.2019,"Children, Families & Cultural Services "
Nottinghamshire County Council ,Unplanned Needs and Financial Support,Debit,6.5,post office counter,28.01.2019,"Children, Families & Cultural Services "
Nottinghamshire County Council ,Unplanned Needs and Financial Support,Debit,239.3,argos ltd,23.01.2019,"Children, Families & Cultural Services "
Nottinghamshire County Council ,Unplanned Needs and Financial Support,Debit,54.03,farmfoods limited,23.01.2019,"Children, Families & Cultural Services "
Nottinghamshire County Council ,Unplanned Needs and Financial Support,Debit,13,argos ltd,23.01.2019,"Children, Families & Cultural Services "
Nottinghamshire County Council ,Unplanned Needs and Financial Support,Debit,292,tesco stores 5379,23.01.2019,"Children, Families & Cultural Services "
Nottinghamshire County Council ,Unplanned Needs and Financial Support,Debit,12.46,mcdonalds,23.01.2019,"Children, Families & Cultural Services "
Nottinghamshire County Council ,Unplanned Needs and Financial Support,Debit,9.99,currys-worksop 2369,21.01.2019,"Children, Families & Cultural Services "
Nottinghamshire County Council ,Unplanned Needs and Financial Support,Debit,11.3,aldi 1 779,21.01.2019,"Children, Families & Cultural Services "
Nottinghamshire County Council ,Unplanned Needs and Financial Support,Debit,2.68,aldi 1 779,21.01.2019,"Children, Families & Cultural Services "
Nottinghamshire County Council ,Unplanned Needs and Financial Support,Debit,4.39,greggs plc,17.01.2019,"Children, Families & Cultural Services "
Nottinghamshire County Council ,Unplanned Needs and Financial Support,Debit,10.98,aldi 96 779,14.01.2019,"Children, Families & Cultural Services "
Nottinghamshire County Council ,Unplanned Needs and Financial Support,Debit,15,sainsburys s/mkts,10.01.2019,"Children, Families & Cultural Services "
Nottinghamshire County Council ,Unplanned Needs and Financial Support,Debit,19.99,boots 1801,09.01.2019,"Children, Families & Cultural Services "
Nottinghamshire County Council ,Unplanned Needs and Financial Support,Debit,3.6,tesco stores-3439,08.01.2019,"Children, Families & Cultural Services "
Nottinghamshire County Council ,Unplanned Needs and Financial Support,Debit,21.39,tesco stores-3439,08.01.2019,"Children, Families & Cultural Services "
Nottinghamshire County Council ,Unplanned Needs and Financial Support,Debit,20,nottingham city counci,04.01.2019,"Children, Families & Cultural Services "
Nottinghamshire County Council ,Unplanned Needs and Financial Support,Debit,22.49,argos mansfield,04.01.2019,"Children, Families & Cultural Services "
Nottinghamshire County Council ,Unplanned Needs and Financial Support,Debit,11.45,costa coffee 43042955,04.01.2019,"Children, Families & Cultural Services "
Nottinghamshire County Council ,Unplanned Needs and Financial Support,Debit,44.99,screwfix nottingham new,04.01.2019,"Children, Families & Cultural Services "
Nottinghamshire County Council ,Unplanned Needs and Financial Support,Debit,1.8,security and car parki,04.01.2019,"Children, Families & Cultural Services "
Nottinghamshire County Council ,Family Financial Assistance,Debit,10,mansfield district cou,24.01.2019,"Children, Families & Cultural Services "
Nottinghamshire County Council ,Activities & Support,Debit,14.96,aldi 55 779,31.01.2019,"Children, Families & Cultural Services "
Nottinghamshire County Council ,Activities & Support,Debit,19.47,aldi 55 779,31.01.2019,"Children, Families & Cultural Services "
Nottinghamshire County Council ,Activities & Support,Debit,10.39,co-op group 070328,30.01.2019,"Children, Families & Cultural Services "
Nottinghamshire County Council ,Activities & Support,Debit,15.63,aldi 55 779,24.01.2019,"Children, Families & Cultural Services "
Nottinghamshire County Council ,Activities & Support,Debit,15.4,aldi 55 779,24.01.2019,"Children, Families & Cultural Services "
Nottinghamshire County Council ,Activities & Support,Debit,7.26,aldi 55 779,18.01.2019,"Children, Families & Cultural Services "
Nottinghamshire County Council ,Activities & Support,Debit,22.26,aldi 55 779,16.01.2019,"Children, Families & Cultural Services "
Nottinghamshire County Council ,Activities & Support,Debit,27.11,aldi 55 779,11.01.2019,"Children, Families & Cultural Services "
Nottinghamshire County Council ,Activities & Support,Debit,7.47,co-op group 010051,08.01.2019,"Children, Families & Cultural Services "
Nottinghamshire County Council ,Activities & Support,Debit,8.13,aldi 55 779,04.01.2019,"Children, Families & Cultural Services "
Nottinghamshire County Council ,Activities & Support,Debit,8.82,aldi 55 779,04.01.2019,"Children, Families & Cultural Services "
Nottinghamshire County Council ,Activities & Support,Debit,104,mansfield district cou,28.01.2019,"Children, Families & Cultural Services "
Nottinghamshire County Council ,Activities & Support,Debit,4.69,amzn mktp uk mb9254ud4,25.01.2019,"Children, Families & Cultural Services "
Nottinghamshire County Council ,Activities & Support,Debit,31.6,amzn mktp uk mb4yw39o4 a,24.01.2019,"Children, Families & Cultural Services "
Nottinghamshire County Council ,Activities & Support,Debit,137.36,amazon.co.uk mb5lt0ut4,24.01.2019,"Children, Families & Cultural Services "
Nottinghamshire County Council ,Activities & Support,Debit,14.38,amazon.co.uk mb0ue2ui4,24.01.2019,"Children, Families & Cultural Services "
Nottinghamshire County Council ,Provisions,Debit,286.4,amzn mktp uk mb5p44qm4,18.01.2019,"Adult Social Care, Health & Public Protection "
Nottinghamshire County Council ,Activities & Support,Debit,15.9,amzn mktp uk mb1qa2bg4,17.01.2019,"Children, Families & Cultural Services "
Nottinghamshire County Council ,Activities & Support,Debit,115,david blount ltd,16.01.2019,"Children, Families & Cultural Services "
Nottinghamshire County Council ,Provisions,Debit,64.97,amzn mktp uk mb77s2514,15.01.2019,"Adult Social Care, Health & Public Protection "
Nottinghamshire County Council ,Activities & Support,Debit,6.95,amzn mktp uk mb4fb2vn4 a,14.01.2019,"Children, Families & Cultural Services "
Nottinghamshire County Council ,Activities & Support,Debit,17.96,amazon.co.uk mb78b1pj4 a,11.01.2019,"Children, Families & Cultural Services "
Nottinghamshire County Council ,Postages,Debit,3.78,post office counter,01.02.2019,"Children, Families & Cultural Services "
Nottinghamshire County Council ,Postages,Debit,2.74,post office counter,24.01.2019,"Children, Families & Cultural Services "
Nottinghamshire County Council ,Activities & Support,Debit,61.21,award scheme ltd,21.01.2019,"Children, Families & Cultural Services "
Nottinghamshire County Council ,Postages,Debit,6.25,award scheme ltd,21.01.2019,"Children, Families & Cultural Services "
Nottinghamshire County Council ,Postages,Debit,2.74,post office counter,10.01.2019,"Children, Families & Cultural Services "
Nottinghamshire County Council ,Provisions,Debit,3.75,sainsburys smkt,01.02.2019,"Children, Families & Cultural Services "
Nottinghamshire County Council ,Provisions,Debit,29.6,sainsburys smkt,28.01.2019,"Children, Families & Cultural Services "
Nottinghamshire County Council ,Provisions,Debit,4.56,co op food,26.01.2019,"Children, Families & Cultural Services "
Nottinghamshire County Council ,Provisions,Debit,14.33,sainsburys smkt,23.01.2019,"Children, Families & Cultural Services "
Nottinghamshire County Council ,Provisions,Debit,93.5,asda groceries online,21.01.2019,"Children, Families & Cultural Services "
Nottinghamshire County Council ,Provisions,Debit,45.3,sainsburys smkt,21.01.2019,"Children, Families & Cultural Services "
Nottinghamshire County Council ,Provisions,Debit,16.5,sainsburys smkt,18.01.2019,"Children, Families & Cultural Services "
Nottinghamshire County Council ,Provisions,Debit,4.1,sainsburys s/mkts,20.01.2019,"Children, Families & Cultural Services "
Nottinghamshire County Council ,Provisions,Debit,61.75,sainsburys smkt,11.01.2019,"Children, Families & Cultural Services "
Nottinghamshire County Council ,Provisions,Debit,49.2,sainsburys smkt,07.01.2019,"Children, Families & Cultural Services "
Nottinghamshire County Council ,Other Fees & Services,Debit,105,halfords on line,23.01.2019,"Children, Families & Cultural Services "
Nottinghamshire County Council ,Other Fees & Services,Debit,23,lincolnshire cc card p,15.01.2019,"Children, Families & Cultural Services "
Nottinghamshire County Council ,Other Fees & Services,Debit,99.99,argos retail group,16.01.2019,"Children, Families & Cultural Services "
Nottinghamshire County Council ,Other Fees & Services,Credi,-27.06,amz venture,10.01.2019,"Children, Families & Cultural Services "
Nottinghamshire County Council ,Other Fees & Services,Debit,30,hmcourts-service.g,07.01.2019,"Children, Families & Cultural Services "
Nottinghamshire County Council ,Other Fees & Services,Debit,30,hmcourts-service.g,07.01.2019,"Children, Families & Cultural Services "
Nottinghamshire County Council ,Provisions,Debit,59.47,wm morrisons store,25.01.2019,"Children, Families & Cultural Services "
Nottinghamshire County Council ,Provisions,Debit,36.41,aldi stores,11.01.2019,"Children, Families & Cultural Services "
Nottinghamshire County Council ,Other Fees & Services,Debit,50,notts county council,29.01.2019,"Children, Families & Cultural Services "
Nottinghamshire County Council ,Catering Equipment,Debit,29,wilko.com,29.01.2019,"Children, Families & Cultural Services "
Nottinghamshire County Council ,Furniture,Debit,237.98,amazon.co.uk mb4g48yc4,28.01.2019,"Children, Families & Cultural Services "
Nottinghamshire County Council ,Catering Equipment,Debit,229.04,www.nisbets.com,25.01.2019,"Children, Families & Cultural Services "
Nottinghamshire County Council ,Furniture,Debit,7.88,fast key services limi,24.01.2019,"Children, Families & Cultural Services "
Nottinghamshire County Council ,Disposal Clinical Waste,Debit,18.88,amzn mktp uk mb8o20504,15.01.2019,"Children, Families & Cultural Services "
Nottinghamshire County Council ,Furniture,Debit,36,asda george com leeds,14.01.2019,"Children, Families & Cultural Services "
Nottinghamshire County Council ,Other Fees & Services,Debit,28,kirklees council,21.01.2019,"Children, Families & Cultural Services "
Nottinghamshire County Council ,Activities & Support,Debit,95.5,asda store ston in as,09.01.2019,"Children, Families & Cultural Services "
Nottinghamshire County Council ,Add Allowances - General,Debit,97.99,www.flex-e-card.com,08.01.2019,"Children, Families & Cultural Services "
Nottinghamshire County Council ,Add Allowances - General,Debit,95.5,j d sports fashion plc,08.01.2019,"Children, Families & Cultural Services "
Nottinghamshire County Council ,Teaching Equipment,Debit,59.76,b  q 1098,27.01.2019,"Children, Families & Cultural Services "
Nottinghamshire County Council ,Teaching Equipment,Debit,4,b  q 1098,14.01.2019,"Children, Families & Cultural Services "
Nottinghamshire County Council ,Teaching Equipment,Debit,4.36,b  q 1098,14.01.2019,"Children, Families & Cultural Services "
Nottinghamshire County Council ,Teaching Equipment,Debit,17,b  q 1098,14.01.2019,"Children, Families & Cultural Services "
Nottinghamshire County Council ,Teaching Equipment,Debit,42.34,tesco stores 2995,01.02.2019,"Children, Families & Cultural Services "
Nottinghamshire County Council ,Teaching Equipment,Debit,8,the forest archer,29.01.2019,"Children, Families & Cultural Services "
Nottinghamshire County Council ,Teaching Equipment,Debit,94.98,screwfix direct,28.01.2019,"Children, Families & Cultural Services "
Nottinghamshire County Council ,Teaching Equipment,Debit,116,www.gravelmaster.c,21.01.2019,"Children, Families & Cultural Services "
Nottinghamshire County Council ,Teaching Equipment,Debit,7.99,amazon prime mb8nt0ek4,09.01.2019,"Children, Families & Cultural Services "
Nottinghamshire County Council ,Other Fees & Services,Debit,21,ncc card payment inter,21.01.2019,"Children, Families & Cultural Services "
Nottinghamshire County Council ,Other Fees & Services,Debit,21,ncc card payment inter,21.01.2019,"Children, Families & Cultural Services "
Nottinghamshire County Council ,Other Fees & Services,Debit,11,ncc card payment inter,17.01.2019,"Children, Families & Cultural Services "
Nottinghamshire County Council ,Other Fees & Services,Debit,11,ncc card payment inter,17.01.2019,"Children, Families & Cultural Services "
Nottinghamshire County Council ,Other Fees & Services,Debit,11,ncc card payment inter,17.01.2019,"Children, Families & Cultural Services "
Nottinghamshire County Council ,Other Fees & Services,Debit,11,ncc card payment inter,16.01.2019,"Children, Families & Cultural Services "
Nottinghamshire County Council ,Other Fees & Services,Debit,11,ncc card payment inter,16.01.2019,"Children, Families & Cultural Services "
Nottinghamshire County Council ,Legal Fees,Debit,77,www.moneyclaim.gov,30.01.2019,Resources
Nottinghamshire County Council ,Legal Fees,Debit,3,land registry,25.01.2019,Resources
Nottinghamshire County Council ,Legal Fees,Debit,10,www.gov.uk,24.01.2019,Resources
Nottinghamshire County Council ,Legal Fees,Debit,3,land registry,23.01.2019,Resources
Nottinghamshire County Council ,Legal Fees,Debit,10,www.gov.uk,22.01.2019,Resources
Nottinghamshire County Council ,Legal Fees,Debit,3,land registry,17.01.2019,Resources
Nottinghamshire County Council ,Legal Fees,Debit,77,www.moneyclaim.gov,16.01.2019,Resources
Nottinghamshire County Council ,Legal Fees,Debit,10,www.gov.uk,14.01.2019,Resources
Nottinghamshire County Council ,Legal Fees,Debit,10,www.gov.uk,11.01.2019,Resources
Nottinghamshire County Council ,Family Financial Assistance,Debit,20,wilko.com,17.01.2019,"Children, Families & Cultural Services "
Nottinghamshire County Council ,Family Financial Assistance,Debit,19.94,www.argos.co.uk,17.01.2019,"Children, Families & Cultural Services "
Nottinghamshire County Council ,Other Fees & Services,Credi,-40.78,amazon.co.uk amazon.co.u,05.01.2019,"Children, Families & Cultural Services "
Nottinghamshire County Council ,Activities & Support,Credi,-1.98,asda groceries online,25.01.2019,"Adult Social Care, Health & Public Protection "
Nottinghamshire County Council ,Activities & Support,Debit,116.6,asda groceries online,25.01.2019,"Adult Social Care, Health & Public Protection "
Nottinghamshire County Council ,Activities & Support,Debit,5,asda groceries online,24.01.2019,"Adult Social Care, Health & Public Protection "
Nottinghamshire County Council ,Activities & Support,Debit,48.94,asda groceries online,23.01.2019,"Adult Social Care, Health & Public Protection "
Nottinghamshire County Council ,Activities & Support,Debit,159.02,asda groceries online,17.01.2019,"Adult Social Care, Health & Public Protection "
Nottinghamshire County Council ,Activities & Support,Credi,-1.5,asda groceries online,10.01.2019,"Adult Social Care, Health & Public Protection "
Nottinghamshire County Council ,Activities & Support,Debit,62.46,asda groceries online,10.01.2019,"Adult Social Care, Health & Public Protection "
Nottinghamshire County Council ,Office / General Equipment,Debit,141,canford audio plc,24.01.2019,"Adult Social Care, Health & Public Protection "
Nottinghamshire County Council ,Subscriptions and Licences,Debit,300,trading standards inst,23.01.2019,"Adult Social Care, Health & Public Protection "
Nottinghamshire County Council ,Other Fees & Services,Debit,1.5,royal mail charges,23.01.2019,"Adult Social Care, Health & Public Protection "
Nottinghamshire County Council ,Office / General Equipment,Debit,54.95,screwfix direct,17.01.2019,"Adult Social Care, Health & Public Protection "
Nottinghamshire County Council ,Office / General Equipment,Debit,49,tesco stores 5437,10.01.2019,"Adult Social Care, Health & Public Protection "
Nottinghamshire County Council ,Books - General,Debit,129.99,lexis nexis,09.01.2019,"Adult Social Care, Health & Public Protection "
Nottinghamshire County Council ,Stationery,Debit,29.95,magnifico,07.01.2019,"Adult Social Care, Health & Public Protection "
Nottinghamshire County Council ,Unplanned Needs and Financial Support,Credi,-5,asda groceries online,23.01.2019,"Children, Families & Cultural Services "
Nottinghamshire County Council ,Unplanned Needs and Financial Support,Debit,97.82,asda groceries online,23.01.2019,"Children, Families & Cultural Services "
Nottinghamshire County Council ,Unplanned Needs and Financial Support,Debit,143.86,asda groceries online,08.01.2019,"Children, Families & Cultural Services "
Nottinghamshire County Council ,Legal Fees,Debit,52.2,logmein gotomeeting,17.01.2019,Resources
Nottinghamshire County Council ,Office / General Equipment,Debit,5.29,screwfix direct,29.01.2019,"Adult Social Care, Health & Public Protection "
Nottinghamshire County Council ,Office / General Equipment,Debit,28.36,amzn mktp uk mb3f437w4,23.01.2019,"Adult Social Care, Health & Public Protection "
Nottinghamshire County Council ,Office / General Equipment,Debit,648,jark plc,22.01.2019,"Adult Social Care, Health & Public Protection "
Nottinghamshire County Council ,Office / General Equipment,Debit,648,jark plc,22.01.2019,"Adult Social Care, Health & Public Protection "
Nottinghamshire County Council ,Office / General Equipment,Debit,648,jark plc,22.01.2019,"Adult Social Care, Health & Public Protection "
Nottinghamshire County Council ,Provisions,Debit,1.7,sainsburys s/mkt,09.01.2019,"Adult Social Care, Health & Public Protection "
Nottinghamshire County Council ,Catering Consumables,Debit,4.32,post office counter,08.01.2019,"Adult Social Care, Health & Public Protection "
Nottinghamshire County Council ,Provisions,Credi,-0.29,tesco store 3439,07.01.2019,"Adult Social Care, Health & Public Protection "
Nottinghamshire County Council ,Office / General Equipment,Debit,0.2,tesco store 3439,07.01.2019,"Adult Social Care, Health & Public Protection "
Nottinghamshire County Council ,Provisions,Debit,270,the station hotel,01.02.2019,"Adult Social Care, Health & Public Protection "
Nottinghamshire County Council ,Office / General Equipment,Debit,10.45,tesco stores-3439,30.01.2019,"Adult Social Care, Health & Public Protection "
Nottinghamshire County Council ,Provisions,Debit,135,the station hotel,29.01.2019,"Adult Social Care, Health & Public Protection "
Nottinghamshire County Council ,Agency Staff,Debit,648,jark plc,22.01.2019,"Adult Social Care, Health & Public Protection "
Nottinghamshire County Council ,Agency Staff,Debit,648,jark plc,22.01.2019,"Adult Social Care, Health & Public Protection "
Nottinghamshire County Council ,Agency Staff,Debit,648,jark plc,22.01.2019,"Adult Social Care, Health & Public Protection "
Nottinghamshire County Council ,Office / General Equipment,Debit,204,post office counter,18.01.2019,"Adult Social Care, Health & Public Protection "
Nottinghamshire County Council ,Office / General Equipment,Debit,1.1,tesco stores 5437,14.01.2019,"Adult Social Care, Health & Public Protection "
Nottinghamshire County Council ,Office / General Equipment,Debit,4.65,sainsburys s/mkts,11.01.2019,"Adult Social Care, Health & Public Protection "
Nottinghamshire County Council ,Office / General Equipment,Debit,1.39,tesco stores 5437,07.01.2019,"Adult Social Care, Health & Public Protection "
Nottinghamshire County Council ,Clothing And Footwear,Debit,374.98,dulux decorator centre,17.01.2019,"Children, Families & Cultural Services "
Nottinghamshire County Council ,Minor Works,Credi,-171.25,safetybootsuk,02.02.2019,"Children, Families & Cultural Services "
Nottinghamshire County Council ,Furniture,Debit,132,www.officefurnitureonl,30.01.2019,"Children, Families & Cultural Services "
Nottinghamshire County Council ,Office / General Equipment,Debit,37.95,amzn mktp uk mi0y94ft4,30.01.2019,"Children, Families & Cultural Services "
Nottinghamshire County Council ,Minor Works,Debit,543.86,screwfix direct,30.01.2019,"Children, Families & Cultural Services "
Nottinghamshire County Council ,Building Maintenance,Debit,107.52,hvs global,29.01.2019,"Children, Families & Cultural Services "
Nottinghamshire County Council ,Office / General Equipment,Debit,7.99,amzn mktp uk mi9644oe4,29.01.2019,"Children, Families & Cultural Services "
Nottinghamshire County Council ,Phone and Network (Land Lines),Debit,24,textmagic.com,26.01.2019,"Children, Families & Cultural Services "
Nottinghamshire County Council ,Clothing And Footwear,Debit,240.66,safetybootsuk,25.01.2019,"Children, Families & Cultural Services "
Nottinghamshire County Council ,Minor Works,Debit,35.95,www.police-supplies.co,25.01.2019,"Children, Families & Cultural Services "
Nottinghamshire County Council ,Minor Works,Debit,562.5,anchor supplies ltd,22.01.2019,"Children, Families & Cultural Services "
Nottinghamshire County Council ,Subscriptions and Licences,Debit,186,green flag membership,15.01.2019,"Children, Families & Cultural Services "
Nottinghamshire County Council ,Building Maintenance,Debit,26.24,screwfix nottingham gilt,15.01.2019,"Children, Families & Cultural Services "
Nottinghamshire County Council ,Minor Works,Debit,59.17,screwfix nottingham gilt,15.01.2019,"Children, Families & Cultural Services "
Nottinghamshire County Council ,Fixtures & Fittings,Debit,267,wickes building,15.01.2019,"Children, Families & Cultural Services "
Nottinghamshire County Council ,Fixtures & Fittings,Debit,263.95,homebase,15.01.2019,"Children, Families & Cultural Services "
Nottinghamshire County Council ,Phone and Network (Land Lines),Debit,24,textmagic.com,11.01.2019,"Children, Families & Cultural Services "
Nottinghamshire County Council ,Office / General Equipment,Debit,11.98,amazon.co.uk mb9a090q4,10.01.2019,"Children, Families & Cultural Services "
Nottinghamshire County Council ,Minor Works,Debit,349.99,screwfix direct,09.01.2019,"Children, Families & Cultural Services "
Nottinghamshire County Council ,Office / General Equipment,Debit,4.99,amzn mktp uk mb49q5ax4 a,08.01.2019,"Children, Families & Cultural Services "
Nottinghamshire County Council ,Office / General Equipment,Debit,11.61,amazon.co.uk mb3ui3al4 a,08.01.2019,"Children, Families & Cultural Services "
Nottinghamshire County Council ,Office / General Equipment,Debit,64.95,amzn mktp uk mb9621t24,07.01.2019,"Children, Families & Cultural Services "
Nottinghamshire County Council ,Office / General Equipment,Debit,35.38,amzn mktp uk mb1xq8n34,06.01.2019,"Children, Families & Cultural Services "
Nottinghamshire County Council ,Phone and Network (Land Lines),Debit,24,textmagic.com,04.01.2019,"Children, Families & Cultural Services "
Nottinghamshire County Council ,Clothing And Footwear,Debit,288.22,safetybootsuk,04.01.2019,"Children, Families & Cultural Services "
Nottinghamshire County Council ,Office / General Equipment,Debit,12.99,amzn mktp uk mb4xk24y4 a,03.01.2019,"Children, Families & Cultural Services "
Nottinghamshire County Council ,Office / General Equipment,Debit,6.99,amzn mktp uk mb0jy0nn4,06.01.2019,"Children, Families & Cultural Services "
Nottinghamshire County Council ,Office / General Equipment,Debit,106.46,frank key (notts) ltd,29.01.2019,"Children, Families & Cultural Services "
Nottinghamshire County Council ,Office / General Equipment,Debit,2.5,iog ra 222,24.01.2019,"Children, Families & Cultural Services "
Nottinghamshire County Council ,Office / General Equipment,Debit,11.98,amzn mktp uk mb3pt8pt4,11.01.2019,Place
Nottinghamshire County Council ,Staff Training,Debit,109.22,paypal  acttravelwi,11.01.2019,Place
Nottinghamshire County Council ,Office / General Equipment,Debit,14.92,amazon.co.uk mb4tm6zr4 a,05.01.2019,Place
Nottinghamshire County Council ,Provisions,Debit,8.24,asda stores,01.02.2019,"Children, Families & Cultural Services "
Nottinghamshire County Council ,Provisions,Debit,17,tesco stores 5329,28.01.2019,"Children, Families & Cultural Services "
Nottinghamshire County Council ,Provisions,Debit,6.75,sainsburys s/mkts,28.01.2019,"Children, Families & Cultural Services "
Nottinghamshire County Council ,Provisions,Debit,0.94,co-op group 310059,28.01.2019,"Children, Families & Cultural Services "
Nottinghamshire County Council ,Provisions,Debit,5.6,lidl uk nottingham,23.01.2019,"Children, Families & Cultural Services "
Nottinghamshire County Council ,Provisions,Debit,4.05,sainsburys s/mkts,21.01.2019,"Children, Families & Cultural Services "
Nottinghamshire County Council ,Provisions,Debit,9.03,aldi 92 772,18.01.2019,"Children, Families & Cultural Services "
Nottinghamshire County Council ,Provisions,Debit,8.83,tesco stores 3297,17.01.2019,"Children, Families & Cultural Services "
Nottinghamshire County Council ,Provisions,Debit,1.2,tesco stores 2366,16.01.2019,"Children, Families & Cultural Services "
Nottinghamshire County Council ,Provisions,Debit,20,tesco stores 5329,14.01.2019,"Children, Families & Cultural Services "
Nottinghamshire County Council ,Provisions,Debit,140.87,booker limited nottingha,14.01.2019,"Children, Families & Cultural Services "
Nottinghamshire County Council ,Provisions,Debit,10.22,central eng coop,13.01.2019,"Children, Families & Cultural Services "
Nottinghamshire County Council ,Office / General Equipment,Debit,48.3,amzn mktp uk mi69553b4,03.02.2019,Place
Nottinghamshire County Council ,Office / General Equipment,Debit,54.5,c.n. unwin ltd,09.01.2019,Place
Nottinghamshire County Council ,Family Financial Assistance,Debit,8.6,ace of mansfield ltd,28.01.2019,"Children, Families & Cultural Services "
Nottinghamshire County Council ,Family Financial Assistance,Debit,8.6,ace of mansfield ltd,28.01.2019,"Children, Families & Cultural Services "
Nottinghamshire County Council ,Family Financial Assistance,Debit,215,marchants solicitors,28.01.2019,"Children, Families & Cultural Services "
Nottinghamshire County Council ,Family Financial Assistance,Debit,10,www.trentbarton.co.uk,17.01.2019,"Children, Families & Cultural Services "
Nottinghamshire County Council ,Family Financial Assistance,Debit,13,www.trentbarton.co.uk,08.01.2019,"Children, Families & Cultural Services "
Nottinghamshire County Council ,Family Financial Assistance,Debit,8.6,ace of mansfield ltd,07.01.2019,"Children, Families & Cultural Services "
Nottinghamshire County Council ,Family Financial Assistance,Debit,8.6,ace of mansfield ltd,07.01.2019,"Children, Families & Cultural Services "
Nottinghamshire County Council ,Provisions,Debit,20.84,tesco stores 5437,25.01.2019,"Children, Families & Cultural Services "
Nottinghamshire County Council ,Provisions,Debit,13.98,halfords 0900,26.01.2019,"Children, Families & Cultural Services "
Nottinghamshire County Council ,Provisions,Debit,22,meden vale plaice,22.01.2019,"Children, Families & Cultural Services "
Nottinghamshire County Council ,Provisions,Debit,9.64,farmfoods limited,18.01.2019,"Children, Families & Cultural Services "
Nottinghamshire County Council ,Provisions,Debit,72.57,tesco pay at pump 4140,14.01.2019,"Children, Families & Cultural Services "
Nottinghamshire County Council ,Activities & Support,Debit,10.6,asdan,11.01.2019,"Children, Families & Cultural Services "
Nottinghamshire County Council ,Activities & Support,Debit,32.99,www.argos.co.uk,01.02.2019,"Adult Social Care, Health & Public Protection "
Nottinghamshire County Council ,Provisions,Debit,13.84,lidl uk  beeston,24.01.2019,"Children, Families & Cultural Services "
Nottinghamshire County Council ,Provisions,Debit,13.04,aldi 65 779,10.01.2019,"Children, Families & Cultural Services "
Nottinghamshire County Council ,Cleaning & Domestic Equipment,Debit,51.83,the range-newark,01.02.2019,"Adult Social Care, Health & Public Protection "
Nottinghamshire County Council ,Cleaning & Domestic Equipment,Debit,129.09,the range-newark,28.01.2019,"Adult Social Care, Health & Public Protection "
Nottinghamshire County Council ,Cleaning & Domestic Equipment,Debit,48.27,home bargains newark,28.01.2019,"Adult Social Care, Health & Public Protection "
Nottinghamshire County Council ,Cleaning & Domestic Equipment,Debit,82.65,sumup   can ya just..?,25.01.2019,"Adult Social Care, Health & Public Protection "
Nottinghamshire County Council ,Cleaning & Domestic Equipment,Debit,221.75,the range-newark,25.01.2019,"Adult Social Care, Health & Public Protection "
Nottinghamshire County Council ,Cleaning & Domestic Equipment,Debit,585,theraposture ltd,09.01.2019,"Adult Social Care, Health & Public Protection "
Nottinghamshire County Council ,Office / General Equipment,Debit,42.39,amazon.co.uk mb0tc15n4,15.01.2019,Resources
Nottinghamshire County Council ,Personal Needs,Debit,8.49,photobox limited,11.01.2019,"Children, Families & Cultural Services "
Nottinghamshire County Council ,Personal Needs,Debit,23.97,amzn mktp uk mb8rr0j44,07.01.2019,"Children, Families & Cultural Services "
Nottinghamshire County Council ,Software Purchases,Debit,19.74,github.com,03.02.2019,Resources
Nottinghamshire County Council ,Software Purchases,Debit,87.51,pure chat inc,23.01.2019,Resources
Nottinghamshire County Council ,Office / General Equipment,Debit,20,city centre box office,17.01.2019,Resources
Nottinghamshire County Council ,Software Purchases,Debit,121.2,fsprg.uk,11.01.2019,Resources
Nottinghamshire County Council ,Software Purchases,Debit,120.7,bc.basecamp 112397,12.01.2019,Resources
Nottinghamshire County Council ,Provisions,Debit,3,one stop 1520,29.01.2019,"Children, Families & Cultural Services "
Nottinghamshire County Council ,Provisions,Debit,36.47,home bargains newark,24.01.2019,"Children, Families & Cultural Services "
Nottinghamshire County Council ,Provisions,Debit,2.5,bowbridge road gro,17.01.2019,"Children, Families & Cultural Services "
Nottinghamshire County Council ,Provisions,Debit,92.19,bm retail,17.01.2019,"Children, Families & Cultural Services "
Nottinghamshire County Council ,Training Fees,Debit,18.77,buildbase sutton,11.01.2019,"Adult Social Care, Health & Public Protection "
Nottinghamshire County Council ,Training Fees,Debit,512.94,www.argos.co.uk,10.01.2019,"Adult Social Care, Health & Public Protection "
Nottinghamshire County Council ,Personal Needs,Debit,74.08,aldi 39 779,01.02.2019,"Children, Families & Cultural Services "
Nottinghamshire County Council ,Personal Needs,Debit,16.68,b  m retail,01.02.2019,"Children, Families & Cultural Services "
Nottinghamshire County Council ,Personal Needs,Debit,20,j d sports fashion plc,02.02.2019,"Children, Families & Cultural Services "
Nottinghamshire County Council ,Personal Needs,Debit,5.99,w boyes  co ltd,26.01.2019,"Children, Families & Cultural Services "
Nottinghamshire County Council ,Personal Needs,Debit,7.26,mcdonalds,23.01.2019,"Children, Families & Cultural Services "
Nottinghamshire County Council ,Personal Needs,Debit,15,mansfield whouse sst,23.01.2019,"Children, Families & Cultural Services "
Nottinghamshire County Council ,Personal Needs,Debit,46.19,aldi 39 779,18.01.2019,"Children, Families & Cultural Services "
Nottinghamshire County Council ,Personal Needs,Debit,10,sainsburys s/mkts,11.01.2019,"Children, Families & Cultural Services "
Nottinghamshire County Council ,Personal Needs,Debit,40.63,aldi 39 779,13.01.2019,"Children, Families & Cultural Services "
Nottinghamshire County Council ,Personal Needs,Debit,53.49,aldi 39 779,11.01.2019,"Children, Families & Cultural Services "
Nottinghamshire County Council ,Personal Needs,Debit,3.45,wm morrisons store,10.01.2019,"Children, Families & Cultural Services "
Nottinghamshire County Council ,Unplanned Needs and Financial Support,Debit,8.4,pp jdt london ltd,29.01.2019,"Children, Families & Cultural Services "
Nottinghamshire County Council ,Unplanned Needs and Financial Support,Debit,9,nott emt carpark,29.01.2019,"Children, Families & Cultural Services "
Nottinghamshire County Council ,Housing/Accommodation Financial Support,Debit,"1,110.00",relianceproperties.co.uk,25.01.2019,"Children, Families & Cultural Services "
Nottinghamshire County Council ,Leaving Care - Home Establishment Grant,Debit,160.55,aaabeds.co.uk,18.01.2019,"Children, Families & Cultural Services "
Nottinghamshire County Council ,Rail / Tube Fares,Debit,92.5,east midlands trains,17.01.2019,"Children, Families & Cultural Services "
Nottinghamshire County Council ,Leaving Care - Home Establishment Grant,Debit,20.9,ikea limited,16.01.2019,"Children, Families & Cultural Services "
Nottinghamshire County Council ,Leaving Care - Home Establishment Grant,Debit,2,ikea limited,16.01.2019,"Children, Families & Cultural Services "
Nottinghamshire County Council ,Leaving Care - Home Establishment Grant,Debit,30.25,ikea limited,16.01.2019,"Children, Families & Cultural Services "
Nottinghamshire County Council ,Unplanned Needs and Financial Support,Debit,38.65,sumup   pizza pi pizzeri,09.01.2019,"Children, Families & Cultural Services "
Nottinghamshire County Council ,Office / General Equipment,Debit,125,eb  co-production an i,08.01.2019,"Children, Families & Cultural Services "
Nottinghamshire County Council ,Other Fees & Services,Debit,9.25,gen register office,30.01.2019,"Children, Families & Cultural Services "
Nottinghamshire County Council ,Specialist Equipment,Debit,43.4,www.coram.org.uk,29.01.2019,"Children, Families & Cultural Services "
Nottinghamshire County Council ,Stationery,Debit,15.13,amazon.co.uk mb9mp3db4 a,20.01.2019,"Children, Families & Cultural Services "
Nottinghamshire County Council ,Stationery,Debit,83.14,amazon.co.uk mb6gh8xw4 a,13.01.2019,"Children, Families & Cultural Services "
Nottinghamshire County Council ,Other Fees & Services,Debit,14,leic city council,10.01.2019,"Children, Families & Cultural Services "
Nottinghamshire County Council ,Stationery,Debit,91.18,amazon.co.uk mb6hc5094 a,10.01.2019,"Children, Families & Cultural Services "
Nottinghamshire County Council ,Stationery,Debit,59.2,amazon.co.uk mb1le1104 a,10.01.2019,"Children, Families & Cultural Services "
Nottinghamshire County Council ,Stationery,Debit,37.02,amzn mktp uk mb5rp10i4 a,10.01.2019,"Children, Families & Cultural Services "
Nottinghamshire County Council ,Stationery,Debit,48.61,amzn mktp uk mb93j20p4 a,10.01.2019,"Children, Families & Cultural Services "
Nottinghamshire County Council ,Provisions,Debit,7.95,amzn mktp uk mb3ym7lp4,04.01.2019,"Adult Social Care, Health & Public Protection "
Nottinghamshire County Council ,Provisions,Debit,19.99,amzn mktp uk mb1b77lx4,04.01.2019,"Adult Social Care, Health & Public Protection "
Nottinghamshire County Council ,Provisions,Debit,16.75,the range,08.01.2019,"Children, Families & Cultural Services "
Nottinghamshire County Council ,Office / General Equipment,Debit,49.02,aldi stores,04.01.2019,"Children, Families & Cultural Services "
Nottinghamshire County Council ,Office / General Equipment,Debit,468,nas uk,29.01.2019,"Children, Families & Cultural Services "
Nottinghamshire County Council ,Leaving Care - Home Establishment Grant,Debit,111.97,asda  stores 4201,01.02.2019,"Children, Families & Cultural Services "
Nottinghamshire County Council ,Leaving Care - Home Establishment Grant,Debit,149.99,argos ltd,25.01.2019,"Children, Families & Cultural Services "
Nottinghamshire County Council ,Unplanned Needs and Financial Support,Debit,8.2,widow frost,24.01.2019,"Children, Families & Cultural Services "
Nottinghamshire County Council ,Unplanned Needs and Financial Support,Debit,7.13,b  m retail,17.01.2019,"Children, Families & Cultural Services "
Nottinghamshire County Council ,Leaving Care - Home Establishment Grant,Debit,291,www.anyvan.com,04.01.2019,"Children, Families & Cultural Services "
Nottinghamshire County Council ,Provisions,Debit,2.25,wh smith,09.01.2019,"Children, Families & Cultural Services "
Nottinghamshire County Council ,Provisions,Debit,85,stagecoach service,09.01.2019,"Children, Families & Cultural Services "
Nottinghamshire County Council ,Provisions,Debit,48,wilko retail limit,08.01.2019,"Children, Families & Cultural Services "
Nottinghamshire County Council ,Provisions,Debit,12.76,mcdonalds 935,07.01.2019,"Children, Families & Cultural Services "
Nottinghamshire County Council ,Provisions,Debit,9.9,spot on clubs,05.01.2019,"Children, Families & Cultural Services "
Nottinghamshire County Council ,Minor Works,Debit,3.62,b  q 1261,22.01.2019,"Children, Families & Cultural Services "
Nottinghamshire County Council ,Minor Works,Debit,3.62,b  q 1261,22.01.2019,"Children, Families & Cultural Services "
Nottinghamshire County Council ,Minor Works,Debit,3.62,b  q 1261,22.01.2019,"Children, Families & Cultural Services "
Nottinghamshire County Council ,Minor Works,Debit,3.62,b  q 1261,22.01.2019,"Children, Families & Cultural Services "
Nottinghamshire County Council ,Minor Works,Debit,3.62,b  q 1261,22.01.2019,"Children, Families & Cultural Services "
Nottinghamshire County Council ,Minor Works,Debit,3.62,b  q 1261,22.01.2019,"Children, Families & Cultural Services "
Nottinghamshire County Council ,Minor Works,Debit,3.89,b  q 1261,22.01.2019,"Children, Families & Cultural Services "
Nottinghamshire County Council ,Minor Works,Debit,3.89,b  q 1261,22.01.2019,"Children, Families & Cultural Services "
Nottinghamshire County Council ,Minor Works,Debit,3.62,b  q 1261,16.01.2019,"Children, Families & Cultural Services "
Nottinghamshire County Council ,Minor Works,Debit,3.62,b  q 1261,16.01.2019,"Children, Families & Cultural Services "
Nottinghamshire County Council ,Minor Works,Debit,3.62,b  q 1261,16.01.2019,"Children, Families & Cultural Services "
Nottinghamshire County Council ,Minor Works,Debit,3.62,b  q 1261,16.01.2019,"Children, Families & Cultural Services "
Nottinghamshire County Council ,Minor Works,Debit,3.62,b  q 1261,16.01.2019,"Children, Families & Cultural Services "
Nottinghamshire County Council ,Minor Works,Debit,3.62,b  q 1261,16.01.2019,"Children, Families & Cultural Services "
Nottinghamshire County Council ,Minor Works,Debit,4.86,b  q 1261,16.01.2019,"Children, Families & Cultural Services "
Nottinghamshire County Council ,Minor Works,Debit,4.86,b  q 1261,16.01.2019,"Children, Families & Cultural Services "
Nottinghamshire County Council ,Minor Works,Debit,4.86,b  q 1261,16.01.2019,"Children, Families & Cultural Services "
Nottinghamshire County Council ,Minor Works,Debit,9.42,b  q 1261,16.01.2019,"Children, Families & Cultural Services "
Nottinghamshire County Council ,Minor Works,Debit,35.1,b  q 1261,16.01.2019,"Children, Families & Cultural Services "
Nottinghamshire County Council ,Minor Works,Debit,38.7,b  q 1261,16.01.2019,"Children, Families & Cultural Services "
Nottinghamshire County Council ,Minor Works,Debit,72,b  q 1261,16.01.2019,"Children, Families & Cultural Services "
Nottinghamshire County Council ,Minor Works,Debit,3.04,b  q 1261,10.01.2019,"Children, Families & Cultural Services "
Nottinghamshire County Council ,Minor Works,Debit,4.27,b  q 1261,10.01.2019,"Children, Families & Cultural Services "
Nottinghamshire County Council ,Minor Works,Debit,4.86,b  q 1261,10.01.2019,"Children, Families & Cultural Services "
Nottinghamshire County Council ,Minor Works,Debit,4.86,b  q 1261,10.01.2019,"Children, Families & Cultural Services "
Nottinghamshire County Council ,Minor Works,Debit,4.86,b  q 1261,10.01.2019,"Children, Families & Cultural Services "
Nottinghamshire County Council ,Minor Works,Debit,4.86,b  q 1261,10.01.2019,"Children, Families & Cultural Services "
Nottinghamshire County Council ,Minor Works,Debit,4.86,b  q 1261,10.01.2019,"Children, Families & Cultural Services "
Nottinghamshire County Council ,Minor Works,Debit,8.1,b  q 1261,10.01.2019,"Children, Families & Cultural Services "
Nottinghamshire County Council ,Minor Works,Debit,8.66,b  q 1261,10.01.2019,"Children, Families & Cultural Services "
Nottinghamshire County Council ,Minor Works,Debit,10.23,b  q 1261,10.01.2019,"Children, Families & Cultural Services "
Nottinghamshire County Council ,Minor Works,Debit,11.7,b  q 1261,10.01.2019,"Children, Families & Cultural Services "
Nottinghamshire County Council ,Minor Works,Debit,16.63,b  q 1261,10.01.2019,"Children, Families & Cultural Services "
Nottinghamshire County Council ,Minor Works,Debit,17.78,b  q 1261,10.01.2019,"Children, Families & Cultural Services "
Nottinghamshire County Council ,Minor Works,Debit,17.78,b  q 1261,10.01.2019,"Children, Families & Cultural Services "
Nottinghamshire County Council ,Minor Works,Debit,17.78,b  q 1261,10.01.2019,"Children, Families & Cultural Services "
Nottinghamshire County Council ,Minor Works,Debit,17.78,b  q 1261,10.01.2019,"Children, Families & Cultural Services "
Nottinghamshire County Council ,Minor Works,Debit,17.78,b  q 1261,10.01.2019,"Children, Families & Cultural Services "
Nottinghamshire County Council ,Minor Works,Debit,17.78,b  q 1261,10.01.2019,"Children, Families & Cultural Services "
Nottinghamshire County Council ,Minor Works,Debit,46.8,b  q 1261,10.01.2019,"Children, Families & Cultural Services "
Nottinghamshire County Council ,Sports Equipment,Debit,"1,406.63",www.petzl.com,16.01.2019,"Children, Families & Cultural Services "
Nottinghamshire County Council ,Sports Equipment,Debit,"1,010.88",adventure climb rescue,16.01.2019,"Children, Families & Cultural Services "
Nottinghamshire County Council ,Sports Equipment,Debit,345.5,www.madisonb2b.co.,16.01.2019,"Children, Families & Cultural Services "
Nottinghamshire County Council ,Minor Works,Debit,11.5,halfords 0900,07.01.2019,"Children, Families & Cultural Services "
Nottinghamshire County Council ,Teaching Equipment,Debit,22.59,amazon.co.uk mb0bv45z4,15.01.2019,"Children, Families & Cultural Services "
Nottinghamshire County Council ,Teaching Equipment,Debit,169.8,amzn mktp uk mb3av8m74,15.01.2019,"Children, Families & Cultural Services "
Nottinghamshire County Council ,Provisions,Debit,11.99,farmfoods- worksop,25.01.2019,"Children, Families & Cultural Services "
Nottinghamshire County Council ,Provisions,Debit,2,asda stores 4475,25.01.2019,"Children, Families & Cultural Services "
Nottinghamshire County Council ,Provisions,Debit,6.49,co-op group 011261,18.01.2019,"Children, Families & Cultural Services "
Nottinghamshire County Council ,Provisions,Debit,85.46,farmfoods- worksop,15.01.2019,"Children, Families & Cultural Services "
Nottinghamshire County Council ,Provisions,Debit,25.02,amzn mktp uk mi4pw4zh4,02.02.2019,"Children, Families & Cultural Services "
Nottinghamshire County Council ,Provisions,Debit,2.99,amzn mktp uk mi5hz7lz4,01.02.2019,"Children, Families & Cultural Services "
Nottinghamshire County Council ,Provisions,Debit,2.49,amzn mktp uk mi8j65lj4,01.02.2019,"Children, Families & Cultural Services "
Nottinghamshire County Council ,Provisions,Debit,17.34,amzn mktp uk mi7eg4nu4,03.02.2019,"Children, Families & Cultural Services "
Nottinghamshire County Council ,Provisions,Debit,11.85,amzn mktp uk mi6s81l44,01.02.2019,"Children, Families & Cultural Services "
Nottinghamshire County Council ,Provisions,Debit,2.26,amzn mktp uk mi80n4lw4,01.02.2019,"Children, Families & Cultural Services "
Nottinghamshire County Council ,Provisions,Debit,6.83,amzn mktp uk mi5nz6z94,02.02.2019,"Children, Families & Cultural Services "
Nottinghamshire County Council ,Provisions,Debit,80.59,amzn mktp uk mi7q75ne4,03.02.2019,"Children, Families & Cultural Services "
Nottinghamshire County Council ,Provisions,Debit,12.41,amzn mktp uk mi4bs0nj4,03.02.2019,"Children, Families & Cultural Services "
Nottinghamshire County Council ,Building Maintenance,Debit,16.5,b  q 1261,07.01.2019,Place
Nottinghamshire County Council ,Activities & Support,Debit,14.48,amazon.co.uk mi6124fq4,30.01.2019,"Children, Families & Cultural Services "
Nottinghamshire County Council ,Activities & Support,Debit,24.99,amzn mktp uk mi6jl9cd4 a,29.01.2019,"Children, Families & Cultural Services "
Nottinghamshire County Council ,Activities & Support,Debit,13.99,amzn mktp uk mb11o75x4,15.01.2019,"Children, Families & Cultural Services "
Nottinghamshire County Council ,Provisions,Debit,60.85,sainsburys smkt,28.01.2019,"Adult Social Care, Health & Public Protection "
Nottinghamshire County Council ,Fixtures & Fittings,Debit,62.05,wilko retail limit,23.01.2019,"Adult Social Care, Health & Public Protection "
Nottinghamshire County Council ,Personal Needs,Debit,10.3,post office counter,23.01.2019,"Adult Social Care, Health & Public Protection "
Nottinghamshire County Council ,Provisions,Debit,20.5,sainsburys smkt,21.01.2019,"Adult Social Care, Health & Public Protection "
Nottinghamshire County Council ,Cleaning Materials,Debit,206.47,jangro (leicester) ltd,21.01.2019,"Adult Social Care, Health & Public Protection "
Nottinghamshire County Council ,Cleaning Materials,Debit,113.02,jangro (leicester) ltd,21.01.2019,"Adult Social Care, Health & Public Protection "
Nottinghamshire County Council ,Provisions,Debit,5.72,asda superstore,18.01.2019,"Adult Social Care, Health & Public Protection "
Nottinghamshire County Council ,Provisions,Debit,24.9,sainsburys smkt,17.01.2019,"Adult Social Care, Health & Public Protection "
Nottinghamshire County Council ,Cleaning Materials,Debit,8.1,asda superstore,11.01.2019,"Adult Social Care, Health & Public Protection "
Nottinghamshire County Council ,Personal Needs,Debit,32.33,lw spare,10.01.2019,"Adult Social Care, Health & Public Protection "
Nottinghamshire County Council ,Fixtures & Fittings,Debit,7.36,wickes,09.01.2019,"Adult Social Care, Health & Public Protection "
Nottinghamshire County Council ,Provisions,Debit,111.65,sainsburys smkt,09.01.2019,"Adult Social Care, Health & Public Protection "
Nottinghamshire County Council ,Provisions,Debit,35.2,sainsburys smkt,04.01.2019,"Adult Social Care, Health & Public Protection "
Nottinghamshire County Council ,Provisions,Debit,12,farmfoods- woodhou,29.01.2019,"Children, Families & Cultural Services "
Nottinghamshire County Council ,Provisions,Debit,5.05,poundland,28.01.2019,"Children, Families & Cultural Services "
Nottinghamshire County Council ,Provisions,Debit,4.34,tesco stores 5437,24.01.2019,"Children, Families & Cultural Services "
Nottinghamshire County Council ,Provisions,Debit,6.05,farmfoods- woodhou,22.01.2019,"Children, Families & Cultural Services "
Nottinghamshire County Council ,Provisions,Debit,4.17,tesco stores 5437,18.01.2019,"Children, Families & Cultural Services "
Nottinghamshire County Council ,Provisions,Debit,6,farmfoods- woodhou,15.01.2019,"Children, Families & Cultural Services "
Nottinghamshire County Council ,Provisions,Debit,77.5,booker limited mansfield,15.01.2019,"Children, Families & Cultural Services "
Nottinghamshire County Council ,Other Fees & Services,Debit,13,dvsa olcs portal 3,04.01.2019,Place
Nottinghamshire County Council ,Provisions,Debit,11.43,aldi,29.01.2019,"Adult Social Care, Health & Public Protection "
Nottinghamshire County Council ,Provisions,Debit,7.77,co-op group food,21.01.2019,"Adult Social Care, Health & Public Protection "
Nottinghamshire County Council ,Provisions,Debit,24.83,aldi,16.01.2019,"Adult Social Care, Health & Public Protection "
Nottinghamshire County Council ,Office / General Equipment,Debit,8.95,aldi 39 779,15.01.2019,"Adult Social Care, Health & Public Protection "
Nottinghamshire County Council ,Gas,Debit,74.8,robinsons caravans,11.01.2019,"Adult Social Care, Health & Public Protection "
Nottinghamshire County Council ,Provisions,Debit,16,bm retail,01.02.2019,"Children, Families & Cultural Services "
Nottinghamshire County Council ,Provisions,Debit,11.02,lidl uk  arnold,01.02.2019,"Children, Families & Cultural Services "
Nottinghamshire County Council ,Provisions,Debit,17.02,decathlon,26.01.2019,"Children, Families & Cultural Services "
Nottinghamshire County Council ,Provisions,Debit,15.59,farmfoods- carlton,25.01.2019,"Children, Families & Cultural Services "
Nottinghamshire County Council ,Provisions,Debit,36.95,decathlon uk vad,23.01.2019,"Children, Families & Cultural Services "
Nottinghamshire County Council ,Provisions,Debit,29.99,amzn mktp uk mb6xw39z4,24.01.2019,"Children, Families & Cultural Services "
Nottinghamshire County Council ,Provisions,Debit,13.3,sainsburys s/mkts,23.01.2019,"Children, Families & Cultural Services "
Nottinghamshire County Council ,Provisions,Debit,12.38,asda superstore,22.01.2019,"Children, Families & Cultural Services "
Nottinghamshire County Council ,Provisions,Debit,12.02,lidl uk  arnold,18.01.2019,"Children, Families & Cultural Services "
Nottinghamshire County Council ,Provisions,Debit,50,wilko.com,16.01.2019,"Children, Families & Cultural Services "
Nottinghamshire County Council ,Provisions,Debit,141.33,booker limited nottingha,15.01.2019,"Children, Families & Cultural Services "
Nottinghamshire County Council ,Provisions,Debit,18.65,asda superstore,14.01.2019,"Children, Families & Cultural Services "
Nottinghamshire County Council ,Activities & Support,Debit,54,travelodge gb0000,07.01.2019,"Adult Social Care, Health & Public Protection "
Nottinghamshire County Council ,Cleaning & Domestic Equipment,Debit,249.99,argos ltd,28.01.2019,"Adult Social Care, Health & Public Protection "
Nottinghamshire County Council ,Specialist Equipment,Debit,91.54,miele moto shop,16.01.2019,"Adult Social Care, Health & Public Protection "
Nottinghamshire County Council ,Activities & Support,Debit,14.39,amzn mktp uk mb8if6xo4 a,13.01.2019,"Adult Social Care, Health & Public Protection "
Nottinghamshire County Council ,Cleaning Materials,Debit,41.97,amzn mktp uk mb5eh6134 a,11.01.2019,"Adult Social Care, Health & Public Protection "
Nottinghamshire County Council ,Activities & Support,Debit,6.95,amzn mktp uk mb9646pb4 a,11.01.2019,"Adult Social Care, Health & Public Protection "
Nottinghamshire County Council ,Cleaning & Domestic Equipment,Debit,28.89,amzn mktp uk mb0cy2pu4 a,11.01.2019,"Adult Social Care, Health & Public Protection "
Nottinghamshire County Council ,Activities & Support,Debit,71.2,amzn mktp uk mb9fc1xh4 a,13.01.2019,"Adult Social Care, Health & Public Protection "
Nottinghamshire County Council ,Activities & Support,Debit,11.44,amzn mktp uk mb4fe6ph4 a,11.01.2019,"Adult Social Care, Health & Public Protection "
Nottinghamshire County Council ,Activities & Support,Debit,23.85,amzn mktp uk mb4db01x4 a,10.01.2019,"Adult Social Care, Health & Public Protection "
Nottinghamshire County Council ,Activities & Support,Debit,11.49,amzn mktp uk mb7ed41s4 a,11.01.2019,"Adult Social Care, Health & Public Protection "
Nottinghamshire County Council ,Cleaning Materials,Debit,80.97,amzn mktp uk mb4563pf4 a,11.01.2019,"Adult Social Care, Health & Public Protection "
Nottinghamshire County Council ,Activities & Support,Debit,10.99,amzn mktp uk mb2u41gi4 a,12.01.2019,"Adult Social Care, Health & Public Protection "
Nottinghamshire County Council ,Activities & Support,Debit,9.97,amzn mktp uk mb0s571a4 a,10.01.2019,"Adult Social Care, Health & Public Protection "
Nottinghamshire County Council ,Activities & Support,Debit,6.95,amzn mktp uk mb9wm1pk4 a,11.01.2019,"Adult Social Care, Health & Public Protection "
Nottinghamshire County Council ,Activities & Support,Debit,10.92,amzn mktp uk mb3776pj4 a,11.01.2019,"Adult Social Care, Health & Public Protection "
Nottinghamshire County Council ,Activities & Support,Debit,24,amzn mktp uk mb0y22pz4 a,11.01.2019,"Adult Social Care, Health & Public Protection "
Nottinghamshire County Council ,Activities & Support,Debit,4.75,amzn mktp uk mb3dj7p04 a,11.01.2019,"Adult Social Care, Health & Public Protection "
Nottinghamshire County Council ,Activities & Support,Debit,6.9,amzn mktp uk mb8w601h4 a,10.01.2019,"Adult Social Care, Health & Public Protection "
Nottinghamshire County Council ,Activities & Support,Debit,12.54,amzn mktp uk mb15l01g4 a,10.01.2019,"Adult Social Care, Health & Public Protection "
Nottinghamshire County Council ,Activities & Support,Debit,12.34,amzn mktp uk mb9wb61z4 a,10.01.2019,"Adult Social Care, Health & Public Protection "
Nottinghamshire County Council ,Activities & Support,Debit,4.96,amzn mktp uk mb59b51f4 a,10.01.2019,"Adult Social Care, Health & Public Protection "
Nottinghamshire County Council ,Activities & Support,Debit,8.99,amzn mktp uk mb5eg40t4 a,10.01.2019,"Adult Social Care, Health & Public Protection "
Nottinghamshire County Council ,Activities & Support,Debit,2.63,amzn mktp uk mb29x41y4 a,10.01.2019,"Adult Social Care, Health & Public Protection "
Nottinghamshire County Council ,Activities & Support,Debit,28.45,amzn mktp uk mb7e210n4 a,10.01.2019,"Adult Social Care, Health & Public Protection "
Nottinghamshire County Council ,Activities & Support,Debit,7.3,amzn mktp uk mb5ls31i4 a,10.01.2019,"Adult Social Care, Health & Public Protection "
Nottinghamshire County Council ,Activities & Support,Debit,11.99,amzn mktp uk mb7f041v4 a,10.01.2019,"Adult Social Care, Health & Public Protection "
Nottinghamshire County Council ,Personal Needs,Debit,139.98,amazon.co.uk mb0nc3jo4,07.01.2019,"Adult Social Care, Health & Public Protection "
Nottinghamshire County Council ,Stationery,Debit,17.79,amzn mktp uk mb5kx8l94,04.01.2019,"Adult Social Care, Health & Public Protection "
Nottinghamshire County Council ,Cleaning Materials,Debit,40.95,wm morrisons store,03.01.2019,"Adult Social Care, Health & Public Protection "
Nottinghamshire County Council ,Provisions,Debit,10.01,aldi 28 779,28.01.2019,"Children, Families & Cultural Services "
Nottinghamshire County Council ,Provisions,Debit,13.89,iceland,25.01.2019,"Children, Families & Cultural Services "
Nottinghamshire County Council ,Provisions,Debit,48.98,argos ltd,21.01.2019,"Children, Families & Cultural Services "
Nottinghamshire County Council ,Provisions,Debit,15.25,iceland,21.01.2019,"Children, Families & Cultural Services "
Nottinghamshire County Council ,Provisions,Debit,67.5,farmfoods- worksop,21.01.2019,"Children, Families & Cultural Services "
Nottinghamshire County Council ,Provisions,Debit,16.5,wilko retail limit,18.01.2019,"Children, Families & Cultural Services "
Nottinghamshire County Council ,Provisions,Debit,30.29,aldi 28 779,18.01.2019,"Children, Families & Cultural Services "
Nottinghamshire County Council ,Provisions,Debit,9,iceland,16.01.2019,"Children, Families & Cultural Services "
Nottinghamshire County Council ,Provisions,Debit,11.35,iceland,14.01.2019,"Children, Families & Cultural Services "
Nottinghamshire County Council ,Stationery,Credi,-7.99,amazon prime,21.01.2019,Resources
Nottinghamshire County Council ,Stationery,Debit,7.99,amazon prime mb0uw0qq4,18.01.2019,Resources
Nottinghamshire County Council ,Office / General Equipment,Debit,30.47,amzn mktp uk mb1gn8714,23.01.2019,"Adult Social Care, Health & Public Protection "
Nottinghamshire County Council ,Hospitality,Debit,14.45,sainsburys s/mkt,09.01.2019,"Adult Social Care, Health & Public Protection "
Nottinghamshire County Council ,Provisions,Debit,9.99,aldi 74 779,01.02.2019,"Children, Families & Cultural Services "
Nottinghamshire County Council ,Provisions,Debit,25.58,aldi 74 779,01.02.2019,"Children, Families & Cultural Services "
Nottinghamshire County Council ,Provisions,Debit,58.86,decathlon,29.01.2019,"Children, Families & Cultural Services "
Nottinghamshire County Council ,Provisions,Debit,5.95,ikea limited,29.01.2019,"Children, Families & Cultural Services "
Nottinghamshire County Council ,Provisions,Debit,26.02,farmfoods- kirkby/,25.01.2019,"Children, Families & Cultural Services "
Nottinghamshire County Council ,Provisions,Debit,33.57,aldi 74 779,25.01.2019,"Children, Families & Cultural Services "
Nottinghamshire County Council ,Provisions,Debit,29.32,aldi 74 779,18.01.2019,"Children, Families & Cultural Services "
Nottinghamshire County Council ,Unplanned Needs and Financial Support,Debit,75,ao retail limited,29.01.2019,"Children, Families & Cultural Services "
Nottinghamshire County Council ,Unplanned Needs and Financial Support,Debit,150.5,tvlicensing.co.uk,15.01.2019,"Children, Families & Cultural Services "
Nottinghamshire County Council ,Unplanned Needs and Financial Support,Debit,622,ao retail limited,15.01.2019,"Children, Families & Cultural Services "
Nottinghamshire County Council ,Unplanned Needs and Financial Support,Debit,136.98,b  m retail,14.01.2019,"Children, Families & Cultural Services "
Nottinghamshire County Council ,Unplanned Needs and Financial Support,Debit,8.74,mcdonalds lemaca l,08.01.2019,"Children, Families & Cultural Services "
Nottinghamshire County Council ,Unplanned Needs and Financial Support,Debit,1.49,mcdonalds lemaca l,08.01.2019,"Children, Families & Cultural Services "
Nottinghamshire County Council ,Provisions,Debit,33.1,tesco stores 2702,30.01.2019,"Adult Social Care, Health & Public Protection "
Nottinghamshire County Council ,Provisions,Debit,23,wilko retail limit,30.01.2019,"Adult Social Care, Health & Public Protection "
Nottinghamshire County Council ,Provisions,Debit,11.21,amzn mktp uk mb4wg3x54 a,13.01.2019,"Adult Social Care, Health & Public Protection "
Nottinghamshire County Council ,Bus Fares,Debit,32.5,nct travel centre,09.01.2019,"Children, Families & Cultural Services "
Nottinghamshire County Council ,Legal Fees,Debit,50.13,amazon.co.uk mb7bg0kx4 a,22.01.2019,Resources
Nottinghamshire County Council ,Legal Fees,Debit,58.97,amazon.co.uk mb4b56mc4,14.01.2019,Resources
Nottinghamshire County Council ,Unplanned Needs and Financial Support,Debit,199,ao retail limited,29.01.2019,"Children, Families & Cultural Services "
Nottinghamshire County Council ,Unplanned Needs and Financial Support,Debit,25,notts county council,29.01.2019,"Children, Families & Cultural Services "
Nottinghamshire County Council ,Unplanned Needs and Financial Support,Debit,31,wilko retail limit,28.01.2019,"Children, Families & Cultural Services "
Nottinghamshire County Council ,Unplanned Needs and Financial Support,Debit,67.3,wilko retail limit,28.01.2019,"Children, Families & Cultural Services "
Nottinghamshire County Council ,Unplanned Needs and Financial Support,Debit,150.5,tvlicensing.co.uk,24.01.2019,"Children, Families & Cultural Services "
Nottinghamshire County Council ,Unplanned Needs and Financial Support,Debit,11.48,lidl uk  sutton in ash,16.01.2019,"Children, Families & Cultural Services "
Nottinghamshire County Council ,Unplanned Needs and Financial Support,Debit,17.06,wm morrisons store,11.01.2019,"Children, Families & Cultural Services "
Nottinghamshire County Council ,Provisions,Debit,6.74,aldi 74 779,01.02.2019,"Children, Families & Cultural Services "
Nottinghamshire County Council ,Provisions,Debit,12,ikea limited,29.01.2019,"Children, Families & Cultural Services "
Nottinghamshire County Council ,Provisions,Debit,53.85,decathlon,29.01.2019,"Children, Families & Cultural Services "
Nottinghamshire County Council ,Provisions,Debit,5.58,farmfoods- kirkby/,25.01.2019,"Children, Families & Cultural Services "
Nottinghamshire County Council ,Provisions,Debit,5.24,aldi 68 779,25.01.2019,"Children, Families & Cultural Services "
Nottinghamshire County Council ,Provisions,Debit,10.33,aldi 68 779,24.01.2019,"Children, Families & Cultural Services "
Nottinghamshire County Council ,Provisions,Debit,10.24,wm morrisons store,22.01.2019,"Children, Families & Cultural Services "
Nottinghamshire County Council ,Other Fees & Services,Debit,23.4,gro hm passport office,07.01.2019,"Children, Families & Cultural Services "
Nottinghamshire County Council ,Office / General Equipment,Debit,35.66,amzn mktp uk mb3e487p4,23.01.2019,"Children, Families & Cultural Services "
Nottinghamshire County Council ,Other Fees & Services,Debit,19.12,crossbow education,18.01.2019,Resources
Nottinghamshire County Council ,Provisions,Debit,20,the range,01.02.2019,"Children, Families & Cultural Services "
Nottinghamshire County Council ,Provisions,Debit,19.49,iceland,01.02.2019,"Children, Families & Cultural Services "
Nottinghamshire County Council ,Provisions,Debit,9.81,aldi 74 779,30.01.2019,"Children, Families & Cultural Services "
Nottinghamshire County Council ,Provisions,Debit,92.14,decathlon,29.01.2019,"Children, Families & Cultural Services "
Nottinghamshire County Council ,Office / General Equipment,Debit,28.41,aldi 39 779,25.01.2019,"Children, Families & Cultural Services "
Nottinghamshire County Council ,Activities & Support,Debit,4.81,tesco stores 2995,03.02.2019,"Children, Families & Cultural Services "
Nottinghamshire County Council ,Activities & Support,Debit,3.17,w m morrison store,30.01.2019,"Children, Families & Cultural Services "
Nottinghamshire County Council ,Activities & Support,Debit,12,mansfield,30.01.2019,"Children, Families & Cultural Services "
Nottinghamshire County Council ,Activities & Support,Debit,12.9,tesco stores 2995,27.01.2019,"Children, Families & Cultural Services "
Nottinghamshire County Council ,Activities & Support,Debit,5.25,tesco stores 5379,24.01.2019,"Children, Families & Cultural Services "
Nottinghamshire County Council ,Activities & Support,Debit,27,sherwood pines cycles,23.01.2019,"Children, Families & Cultural Services "
Nottinghamshire County Council ,Activities & Support,Debit,7.34,tesco stores 5437,18.01.2019,"Children, Families & Cultural Services "
Nottinghamshire County Council ,Personal Needs,Debit,12,the palace theatre,16.01.2019,"Children, Families & Cultural Services "
Nottinghamshire County Council ,Housing/Accommodation Financial Support,Debit,65,travelodge gb0000,01.02.2019,"Children, Families & Cultural Services "
Nottinghamshire County Council ,Other Fees & Services,Debit,40,ncc card payment inter,30.01.2019,"Children, Families & Cultural Services "
Nottinghamshire County Council ,Add Allowances - General,Debit,191,argos mansfield,24.01.2019,"Children, Families & Cultural Services "
Nottinghamshire County Council ,Activities & Support,Credi,-30,dunelm ltd,22.01.2019,"Children, Families & Cultural Services "
Nottinghamshire County Council ,Activities & Support,Debit,14.99,amzn mktp uk mb8br8764,23.01.2019,"Children, Families & Cultural Services "
Nottinghamshire County Council ,Activities & Support,Debit,18.95,amzn mktp uk mb8f457h4,23.01.2019,"Children, Families & Cultural Services "
Nottinghamshire County Council ,Activities & Support,Credi,-19,dunelm ltd,21.01.2019,"Children, Families & Cultural Services "
Nottinghamshire County Council ,Activities & Support,Debit,49,dunelm ltd,21.01.2019,"Children, Families & Cultural Services "
Nottinghamshire County Council ,Other Fees & Services,Debit,25,notts county council,04.01.2019,"Children, Families & Cultural Services "
Nottinghamshire County Council ,Provisions,Debit,137.96,tesco stores 3297,29.01.2019,"Children, Families & Cultural Services "
Nottinghamshire County Council ,Provisions,Debit,68.48,asda superstore,18.01.2019,"Children, Families & Cultural Services "
Nottinghamshire County Council ,Provisions,Debit,91.59,tesco stores 3297,10.01.2019,"Children, Families & Cultural Services "
Nottinghamshire County Council ,Clothing/Shoes/Uniforms,Debit,6.99,amzn mktp uk mb0rp2uy4,25.01.2019,"Adult Social Care, Health & Public Protection "
Nottinghamshire County Council ,Clothing/Shoes/Uniforms,Debit,14.48,amzn mktp uk mb4mj9uq4,24.01.2019,"Adult Social Care, Health & Public Protection "
Nottinghamshire County Council ,Furniture,Debit,34.48,amzn mktp uk mb7n24ud4,24.01.2019,"Adult Social Care, Health & Public Protection "
Nottinghamshire County Council ,Activities & Support,Debit,16.9,amzn mktp uk mb57817l4 a,23.01.2019,"Adult Social Care, Health & Public Protection "
Nottinghamshire County Council ,Computer Equipment,Debit,11.48,amzn mktp uk mb6cx0k64 a,22.01.2019,"Children, Families & Cultural Services "
Nottinghamshire County Council ,Software Purchases,Debit,638.86,www.nchsoftware.com,19.01.2019,Resources
Nottinghamshire County Council ,Training Fees,Debit,474,www.pmgltd.co.uk,16.01.2019,"Children, Families & Cultural Services "
Nottinghamshire County Council ,Office / General Equipment,Debit,62.45,amzn mktp uk mb9gz6bt4,16.01.2019,"Adult Social Care, Health & Public Protection "
Nottinghamshire County Council ,Activities & Support,Debit,337,butlins holidays,10.01.2019,"Adult Social Care, Health & Public Protection "
Nottinghamshire County Council ,Other Fees & Services,Debit,11,ncc card payment inter,21.01.2019,"Children, Families & Cultural Services "
Nottinghamshire County Council ,Housing/Accommodation Financial Support,Debit,12.39,j e wright home heatin,04.01.2019,"Children, Families & Cultural Services "
Nottinghamshire County Council ,Activities & Support,Debit,11.75,aldi 55 779,01.02.2019,"Children, Families & Cultural Services "
Nottinghamshire County Council ,Activities & Support,Debit,8.93,aldi 55 779,29.01.2019,"Children, Families & Cultural Services "
Nottinghamshire County Council ,Activities & Support,Debit,12.5,aldi 55 779,24.01.2019,"Children, Families & Cultural Services "
Nottinghamshire County Council ,Activities & Support,Debit,28.7,tesco stores 5379,23.01.2019,"Children, Families & Cultural Services "
Nottinghamshire County Council ,Activities & Support,Debit,10.4,aldi 55 779,21.01.2019,"Children, Families & Cultural Services "
Nottinghamshire County Council ,Activities & Support,Debit,7.87,aldi 55 779,17.01.2019,"Children, Families & Cultural Services "
Nottinghamshire County Council ,Activities & Support,Debit,14.61,aldi 55 779,14.01.2019,"Children, Families & Cultural Services "
Nottinghamshire County Council ,Activities & Support,Debit,7.7,aldi 55 779,11.01.2019,"Children, Families & Cultural Services "
Nottinghamshire County Council ,Activities & Support,Debit,9.42,aldi 55 779,07.01.2019,"Children, Families & Cultural Services "
Nottinghamshire County Council ,Provisions,Debit,59.23,tesco store 3439,01.02.2019,"Children, Families & Cultural Services "
Nottinghamshire County Council ,Provisions,Debit,36.99,argos workshop,03.02.2019,"Children, Families & Cultural Services "
Nottinghamshire County Council ,Provisions,Debit,39.19,tesco store 3439,28.01.2019,"Children, Families & Cultural Services "
Nottinghamshire County Council ,Provisions,Debit,101.27,tesco store 3439,28.01.2019,"Children, Families & Cultural Services "
Nottinghamshire County Council ,Provisions,Debit,66.93,tesco store 3439,21.01.2019,"Children, Families & Cultural Services "
Nottinghamshire County Council ,Provisions,Debit,55.54,tesco store 3439,21.01.2019,"Children, Families & Cultural Services "
Nottinghamshire County Council ,Provisions,Debit,19.01,tesco store 3439,16.01.2019,"Children, Families & Cultural Services "
Nottinghamshire County Council ,Provisions,Debit,74.28,tesco store 3439,14.01.2019,"Children, Families & Cultural Services "
Nottinghamshire County Council ,Provisions,Debit,10,tesco store 3439,14.01.2019,"Children, Families & Cultural Services "
Nottinghamshire County Council ,Provisions,Debit,25.47,tesco store 3439,11.01.2019,"Children, Families & Cultural Services "
Nottinghamshire County Council ,Provisions,Debit,43.84,tesco stores 5992,30.01.2019,"Children, Families & Cultural Services "
Nottinghamshire County Council ,Provisions,Debit,228.86,middletons dairy limit,29.01.2019,"Children, Families & Cultural Services "
Nottinghamshire County Council ,Provisions,Debit,400,middletons dairy limit,29.01.2019,"Children, Families & Cultural Services "
Nottinghamshire County Council ,Cleaning & Domestic Equipment,Debit,24.47,amzn mktp uk mb6xa00v4,10.01.2019,"Children, Families & Cultural Services "
Nottinghamshire County Council ,Leaving Care - Home Establishment Grant,Debit,1,upt - nottinghamcity cou,01.02.2019,"Children, Families & Cultural Services "
Nottinghamshire County Council ,Leaving Care - Home Establishment Grant,Debit,23.4,lne railway ret stn,30.01.2019,"Children, Families & Cultural Services "
Nottinghamshire County Council ,Leaving Care - Home Establishment Grant,Debit,24.99,argos ltd,30.01.2019,"Children, Families & Cultural Services "
Nottinghamshire County Council ,Leaving Care - Home Establishment Grant,Debit,31.42,aldi 28 779,29.01.2019,"Children, Families & Cultural Services "
Nottinghamshire County Council ,Leaving Care - Home Establishment Grant,Debit,6.99,nottingham magpie,29.01.2019,"Children, Families & Cultural Services "
Nottinghamshire County Council ,Leaving Care - Home Establishment Grant,Debit,23.5,sainsburys spmrkts,25.01.2019,"Children, Families & Cultural Services "
Nottinghamshire County Council ,Leaving Care - Home Establishment Grant,Debit,4.95,sainsburys spmrkts,25.01.2019,"Children, Families & Cultural Services "
Nottinghamshire County Council ,Leaving Care - Home Establishment Grant,Debit,6.58,mcdonalds,24.01.2019,"Children, Families & Cultural Services "
Nottinghamshire County Council ,Leaving Care - Home Establishment Grant,Debit,43.65,lidl uk  netherfield,23.01.2019,"Children, Families & Cultural Services "
Nottinghamshire County Council ,Leaving Care - Home Establishment Grant,Debit,3.15,greggs plc,18.01.2019,"Children, Families & Cultural Services "
Nottinghamshire County Council ,Leaving Care - Home Establishment Grant,Debit,31.99,amzn mktp uk mb5gb48c4 a,17.01.2019,"Children, Families & Cultural Services "
Nottinghamshire County Council ,Leaving Care - Home Establishment Grant,Debit,6,tesco stores 2702,17.01.2019,"Children, Families & Cultural Services "
Nottinghamshire County Council ,Leaving Care - Home Establishment Grant,Debit,9.99,amzn mktp uk mb6ze8864 a,17.01.2019,"Children, Families & Cultural Services "
Nottinghamshire County Council ,Leaving Care - Home Establishment Grant,Debit,8.2,gusto cafe,17.01.2019,"Children, Families & Cultural Services "
Nottinghamshire County Council ,Leaving Care - Home Establishment Grant,Debit,35.98,the carphone wareh,15.01.2019,"Children, Families & Cultural Services "
Nottinghamshire County Council ,Leaving Care - Home Establishment Grant,Credi,-11.94,asda groceries online,14.01.2019,"Children, Families & Cultural Services "
Nottinghamshire County Council ,Leaving Care - Home Establishment Grant,Debit,46.13,asda groceries online,14.01.2019,"Children, Families & Cultural Services "
Nottinghamshire County Council ,Leaving Care - Home Establishment Grant,Debit,329,currys online,10.01.2019,"Children, Families & Cultural Services "
Nottinghamshire County Council ,Leaving Care - Home Establishment Grant,Debit,12,nus extra,09.01.2019,"Children, Families & Cultural Services "
Nottinghamshire County Council ,Leaving Care - Home Establishment Grant,Debit,25.27,aldi 55 779,08.01.2019,"Children, Families & Cultural Services "
Nottinghamshire County Council ,Leaving Care - Home Establishment Grant,Debit,10.99,co-op group 010047,08.01.2019,"Children, Families & Cultural Services "
Nottinghamshire County Council ,Leaving Care - Home Establishment Grant,Debit,5.55,poundland ltd,08.01.2019,"Children, Families & Cultural Services "
Nottinghamshire County Council ,Leaving Care - Home Establishment Grant,Debit,54.99,argos retail group,07.01.2019,"Children, Families & Cultural Services "
Nottinghamshire County Council ,Leaving Care - Home Establishment Grant,Debit,37.43,poundstretcher 569,04.01.2019,"Children, Families & Cultural Services "
Nottinghamshire County Council ,Leaving Care - Home Establishment Grant,Debit,20.75,tesco stores 5437,04.01.2019,"Children, Families & Cultural Services "
Nottinghamshire County Council ,Furniture,Credi,-40.19,amz amazon.co.uk,05.01.2019,"Adult Social Care, Health & Public Protection "
Nottinghamshire County Council ,Leaving Care - Home Establishment Grant,Debit,85,hm passport office,29.01.2019,"Children, Families & Cultural Services "
Nottinghamshire County Council ,Leaving Care - Home Establishment Grant,Debit,125.32,brighthouse,21.01.2019,"Children, Families & Cultural Services "
Nottinghamshire County Council ,Leaving Care - Home Establishment Grant,Debit,23.7,sainsburys s/mkts,21.01.2019,"Children, Families & Cultural Services "
Nottinghamshire County Council ,Leaving Care - Home Establishment Grant,Debit,644.93,argos ltd,21.01.2019,"Children, Families & Cultural Services "
Nottinghamshire County Council ,Leaving Care - Home Establishment Grant,Debit,55,nct travel centre,07.01.2019,"Children, Families & Cultural Services "
Nottinghamshire County Council ,Leaving Care - Home Establishment Grant,Debit,35,tesco stores 5329,07.01.2019,"Children, Families & Cultural Services "
Nottinghamshire County Council ,Mileage,Debit,23.79,asda petrol 4966,22.01.2019,"Children, Families & Cultural Services "
Nottinghamshire County Council ,Family Financial Assistance,Debit,255,retford waste,08.01.2019,"Children, Families & Cultural Services "
Nottinghamshire County Council ,Child Arrangements Order Allowance,Debit,215,www.justice.gov.uk,08.01.2019,"Children, Families & Cultural Services "
Nottinghamshire County Council ,Activities & Support,Debit,8.79,wm morrisons store,24.01.2019,"Children, Families & Cultural Services "
Nottinghamshire County Council ,Other Fees & Services,Debit,20,nottingham city counci,29.01.2019,Place
Nottinghamshire County Council ,Other Fees & Services,Debit,50,nottingham city counci,29.01.2019,Place
Nottinghamshire County Council ,Other Fees & Services,Debit,20,nottingham city counci,29.01.2019,Place
Nottinghamshire County Council ,Other Fees & Services,Debit,20,nottingham city counci,29.01.2019,Place
Nottinghamshire County Council ,Other Fees & Services,Debit,50,nottingham city counci,29.01.2019,Place
Nottinghamshire County Council ,Other Fees & Services,Debit,10,nottingham city counci,29.01.2019,Place
Nottinghamshire County Council ,Family Financial Assistance,Debit,96,asda superstore 04261,10.01.2019,"Children, Families & Cultural Services "
Nottinghamshire County Council ,DBS Checks,Debit,42.97,b  m retail,31.01.2019,"Children, Families & Cultural Services "
Nottinghamshire County Council ,DBS Checks,Debit,18.03,waterstones,30.01.2019,"Children, Families & Cultural Services "
Nottinghamshire County Council ,DBS Checks,Debit,20,asda superstore 04030,29.01.2019,"Children, Families & Cultural Services "
Nottinghamshire County Council ,DBS Checks,Debit,72.09,argos ltd,24.01.2019,"Children, Families & Cultural Services "
Nottinghamshire County Council ,DBS Checks,Credi,-380,ao retail limited,13.01.2019,"Children, Families & Cultural Services "
Nottinghamshire County Council ,DBS Checks,Debit,774,ao retail limited,07.01.2019,"Children, Families & Cultural Services "
Nottinghamshire County Council ,Provisions,Debit,109.56,aldi 39 779,21.01.2019,"Children, Families & Cultural Services "
Nottinghamshire County Council ,Provisions,Debit,23.87,tesco stores 2995,05.01.2019,"Children, Families & Cultural Services "
Nottinghamshire County Council ,Activities & Support,Debit,4.24,b  q 1098,29.01.2019,Place
Nottinghamshire County Council ,Activities & Support,Debit,4.98,b  q 1098,29.01.2019,Place
Nottinghamshire County Council ,Activities & Support,Debit,5.84,b  q 1098,29.01.2019,Place
Nottinghamshire County Council ,Activities & Support,Debit,4.05,sainsburys local,27.01.2019,Place
Nottinghamshire County Council ,Activities & Support,Debit,357.36,shorrock trichem,24.01.2019,Place
Nottinghamshire County Council ,Activities & Support,Debit,6.98,screwfixdirect ltd,22.01.2019,Place
Nottinghamshire County Council ,Activities & Support,Debit,2.05,the turbine cafe,18.01.2019,Place
Nottinghamshire County Council ,Activities & Support,Debit,5.87,aldi 1 779,20.01.2019,Place
Nottinghamshire County Council ,Activities & Support,Debit,5.99,ryman,12.01.2019,Place
Nottinghamshire County Council ,Activities & Support,Debit,35.65,wilko retail limit,12.01.2019,Place
Nottinghamshire County Council ,Activities & Support,Debit,35.73,shorrock trichem,11.01.2019,Place
Nottinghamshire County Council ,Activities & Support,Debit,35.73,shorrock trichem,11.01.2019,Place
Nottinghamshire County Council ,Activities & Support,Debit,11.99,screwfixdirect ltd,09.01.2019,Place
Nottinghamshire County Council ,Activities & Support,Debit,10.17,screwfixdirect ltd,08.01.2019,Place
Nottinghamshire County Council ,Activities & Support,Debit,45.65,screwfixdirect ltd,08.01.2019,Place
Nottinghamshire County Council ,Activities & Support,Debit,20,property investors netwo,06.01.2019,Place
Nottinghamshire County Council ,Activities & Support,Debit,18.08,aldi 1 779,06.01.2019,Place
Nottinghamshire County Council ,Activities & Support,Debit,50.19,amzn mktp uk mb7265ys4 a,28.01.2019,"Adult Social Care, Health & Public Protection "
Nottinghamshire County Council ,Activities & Support,Debit,4.05,amzn mktp uk mb5tk6wj4 a,28.01.2019,"Adult Social Care, Health & Public Protection "
Nottinghamshire County Council ,Activities & Support,Debit,193.24,aldi 68 779,28.01.2019,"Adult Social Care, Health & Public Protection "
Nottinghamshire County Council ,Activities & Support,Debit,54.72,amzn mktp uk mb9fg1rb4 a,26.01.2019,"Adult Social Care, Health & Public Protection "
Nottinghamshire County Council ,Activities & Support,Debit,39.86,aldi,23.01.2019,"Adult Social Care, Health & Public Protection "
Nottinghamshire County Council ,Activities & Support,Debit,24,mansfield town,29.01.2019,Resources
Nottinghamshire County Council ,Cleaning & Domestic Equipment,Debit,50,kaercher ecomuk,24.01.2019,Resources
Nottinghamshire County Council ,Specialist Equipment,Debit,299.94,sp   breathe-zy,22.01.2019,Resources
Nottinghamshire County Council ,Subscriptions and Licences,Debit,638.86,www.nchsoftware.com,19.01.2019,Resources
Nottinghamshire County Council ,Office / General Equipment,Debit,3.99,home bargains,29.01.2019,"Children, Families & Cultural Services "
Nottinghamshire County Council ,Office / General Equipment,Debit,21.93,screwfix nottingham bulw,22.01.2019,"Children, Families & Cultural Services "
Nottinghamshire County Council ,Office / General Equipment,Debit,7.99,amazon prime mb89y43x4,06.01.2019,"Children, Families & Cultural Services "
Nottinghamshire County Council ,Office / General Equipment,Credi,-7.99,amazon prime,06.01.2019,"Children, Families & Cultural Services "
Nottinghamshire County Council ,Personal Needs,Debit,11.85,costa coffee,20.01.2019,"Children, Families & Cultural Services "
Nottinghamshire County Council ,Personal Needs,Debit,50.95,mansfield 2,17.01.2019,"Children, Families & Cultural Services "
Nottinghamshire County Council ,Other Public Transport,Debit,3.5,security and car parki,06.01.2019,"Children, Families & Cultural Services "
Nottinghamshire County Council ,Provisions,Debit,35,eb  green guide briefi,15.01.2019,"Adult Social Care, Health & Public Protection "
Nottinghamshire County Council ,Training Fees,Debit,35,surveymonkey,01.02.2019,Resources
Nottinghamshire County Council ,Training Fees,Debit,265.5,the uk careers fair,10.01.2019,Resources
Nottinghamshire County Council ,Specialist Equipment,Credi,-6.95,www.argos.co.uk,30.01.2019,"Children, Families & Cultural Services "
Nottinghamshire County Council ,Specialist Equipment,Debit,356.94,www.argos.co.uk,29.01.2019,"Children, Families & Cultural Services "
Nottinghamshire County Council ,Specialist Equipment,Debit,356.94,www.argos.co.uk,29.01.2019,"Children, Families & Cultural Services "
Nottinghamshire County Council ,Specialist Equipment,Debit,3,co-op group 310059,25.01.2019,"Children, Families & Cultural Services "
Nottinghamshire County Council ,Specialist Equipment,Debit,2.99,bowbridge road gro,17.01.2019,"Children, Families & Cultural Services "
Nottinghamshire County Council ,"Leaving Care Educaton,Employment & Training",Debit,30,sportsdirect 195,02.02.2019,"Children, Families & Cultural Services "
Nottinghamshire County Council ,CLA Extra Curriculum Activities,Debit,100,northern racing colleg,28.01.2019,"Children, Families & Cultural Services "
Nottinghamshire County Council ,CLA Extra Curriculum Activities,Debit,278,premier inn 44037050,22.01.2019,"Children, Families & Cultural Services "
Nottinghamshire County Council ,CLA Extra Curriculum Activities,Debit,30.5,east midlands trains,22.01.2019,"Children, Families & Cultural Services "
Nottinghamshire County Council ,Unplanned Needs and Financial Support,Debit,15,asda  stores 4780,22.01.2019,"Children, Families & Cultural Services "
Nottinghamshire County Council ,CLA Extra Curriculum Activities,Debit,23.5,east midlands trains,22.01.2019,"Children, Families & Cultural Services "
Nottinghamshire County Council ,Unplanned Needs and Financial Support,Debit,6.96,co-op group 010741,22.01.2019,"Children, Families & Cultural Services "
Nottinghamshire County Council ,CLA Extra Curriculum Activities,Debit,55,university of essex,14.01.2019,"Children, Families & Cultural Services "
Nottinghamshire County Council ,"Leaving Care Educaton,Employment & Training",Debit,14.99,indigo business limite,14.01.2019,"Children, Families & Cultural Services "
Nottinghamshire County Council ,"Leaving Care Educaton,Employment & Training",Debit,10,city college nottingha,14.01.2019,"Children, Families & Cultural Services "
Nottinghamshire County Council ,Leaving Care - Home Establishment Grant,Debit,279.99,www.argos.co.uk,10.01.2019,"Children, Families & Cultural Services "
Nottinghamshire County Council ,Unplanned Needs and Financial Support,Debit,1.5,wilko retail limit,09.01.2019,"Children, Families & Cultural Services "
Nottinghamshire County Council ,Furniture,Debit,21.95,amazon.co.uk mi4fh4fc4,30.01.2019,"Children, Families & Cultural Services "
Nottinghamshire County Council ,Furniture,Debit,958.8,careco,18.01.2019,"Adult Social Care, Health & Public Protection "
Nottinghamshire County Council ,Office / General Equipment,Debit,575.88,www.dmcl.co.uk,18.01.2019,Resources
Nottinghamshire County Council ,Furniture,Debit,80,careco,18.01.2019,"Adult Social Care, Health & Public Protection "
Nottinghamshire County Council ,Activities & Support,Debit,195.71,www.easyfloristsupplie,17.01.2019,"Adult Social Care, Health & Public Protection "
Nottinghamshire County Council ,Rent / Hire Premises,Credi,-50,coopers brook,10.01.2019,"Adult Social Care, Health & Public Protection "
Nottinghamshire County Council ,Computer Equipment,Debit,9.98,amzn mktp uk mb63i6np4,06.01.2019,"Adult Social Care, Health & Public Protection "
Nottinghamshire County Council ,Activities & Support,Debit,14.95,amzn mktp uk mb1pp7l44,04.01.2019,"Adult Social Care, Health & Public Protection "
Nottinghamshire County Council ,Stationery,Debit,52.4,amzn mktp uk mb2k64n24,06.01.2019,"Adult Social Care, Health & Public Protection "
Nottinghamshire County Council ,Stationery,Debit,23.58,amazon.co.uk mb84x0n64 a,06.01.2019,"Children, Families & Cultural Services "
Nottinghamshire County Council ,Activities & Support,Debit,12.58,amzn mktp uk mb9yh1nz4,06.01.2019,"Adult Social Care, Health & Public Protection "
Nottinghamshire County Council ,Stationery,Debit,52.43,amzn mktp uk mb0n22lr4,04.01.2019,"Children, Families & Cultural Services "
Nottinghamshire County Council ,Family Financial Assistance,Debit,13.72,aldi 98 779,22.01.2019,"Children, Families & Cultural Services "
Nottinghamshire County Council ,Unplanned Needs and Financial Support,Debit,4.05,costa coffee 43037910,17.01.2019,"Children, Families & Cultural Services "
Nottinghamshire County Council ,Unplanned Needs and Financial Support,Debit,5,nott emt carpark,17.01.2019,"Children, Families & Cultural Services "
Nottinghamshire County Council ,Unplanned Needs and Financial Support,Debit,10.92,w m morrison petro,15.01.2019,"Children, Families & Cultural Services "
Nottinghamshire County Council ,Unplanned Needs and Financial Support,Credi,-50,www.johnlewis.com,09.01.2019,"Children, Families & Cultural Services "
Nottinghamshire County Council ,Unplanned Needs and Financial Support,Debit,429,www.johnlewis.com,09.01.2019,"Children, Families & Cultural Services "
Nottinghamshire County Council ,Unplanned Needs and Financial Support,Credi,-395,www.johnlewis.com,09.01.2019,"Children, Families & Cultural Services "
Nottinghamshire County Council ,Provisions,Debit,19,tesco stores 2995,02.02.2019,"Children, Families & Cultural Services "
Nottinghamshire County Council ,Provisions,Debit,10.47,tesco stores 2995,02.02.2019,"Children, Families & Cultural Services "
Nottinghamshire County Council ,Provisions,Debit,34,tesco stores 2995,02.02.2019,"Children, Families & Cultural Services "
Nottinghamshire County Council ,Provisions,Debit,65.66,bm retail,31.01.2019,"Children, Families & Cultural Services "
Nottinghamshire County Council ,Provisions,Debit,33.36,sportsdirect 278,03.02.2019,"Children, Families & Cultural Services "
Nottinghamshire County Council ,Provisions,Debit,20.8,iceland,03.02.2019,"Children, Families & Cultural Services "
Nottinghamshire County Council ,Provisions,Debit,21.22,tesco stores 2995,26.01.2019,"Children, Families & Cultural Services "
Nottinghamshire County Council ,Provisions,Debit,17.41,bm retail,24.01.2019,"Children, Families & Cultural Services "
Nottinghamshire County Council ,Provisions,Debit,47.33,bm retail,24.01.2019,"Children, Families & Cultural Services "
Nottinghamshire County Council ,Provisions,Debit,9.92,tesco stores 2995,23.01.2019,"Children, Families & Cultural Services "
Nottinghamshire County Council ,Provisions,Debit,28,tesco stores 2995,23.01.2019,"Children, Families & Cultural Services "
Nottinghamshire County Council ,Provisions,Debit,19.05,tesco stores 2995,22.01.2019,"Children, Families & Cultural Services "
Nottinghamshire County Council ,Provisions,Debit,85.64,homebase ltd,19.01.2019,"Children, Families & Cultural Services "
Nottinghamshire County Council ,Provisions,Debit,22.5,bm retail,18.01.2019,"Children, Families & Cultural Services "
Nottinghamshire County Council ,Provisions,Debit,58.16,tesco stores 2995,15.01.2019,"Children, Families & Cultural Services "
Nottinghamshire County Council ,Provisions,Debit,86.35,heron foods ltd,15.01.2019,"Children, Families & Cultural Services "
Nottinghamshire County Council ,Provisions,Debit,2.38,bm retail,12.01.2019,"Children, Families & Cultural Services "
Nottinghamshire County Council ,Provisions,Debit,37.98,bm retail,12.01.2019,"Children, Families & Cultural Services "
Nottinghamshire County Council ,Provisions,Debit,19.97,w boyes  co ltd,11.01.2019,"Children, Families & Cultural Services "
Nottinghamshire County Council ,Activities & Support,Debit,34.62,www.ironmongerydirect.,28.01.2019,"Adult Social Care, Health & Public Protection "
Nottinghamshire County Council ,Activities & Support,Debit,8.95,amzn mktp uk mb1i389c4 a,24.01.2019,"Adult Social Care, Health & Public Protection "
Nottinghamshire County Council ,Activities & Support,Debit,149.98,www.toolstation.com,17.01.2019,"Adult Social Care, Health & Public Protection "
Nottinghamshire County Council ,Activities & Support,Debit,7.38,amzn mktp uk mb36x8g94,12.01.2019,"Adult Social Care, Health & Public Protection "
Nottinghamshire County Council ,Activities & Support,Debit,33,www.toolstation.com,11.01.2019,"Adult Social Care, Health & Public Protection "
Nottinghamshire County Council ,Activities & Support,Debit,19,lincoln bowl,30.01.2019,"Children, Families & Cultural Services "
Nottinghamshire County Council ,Unplanned Needs and Financial Support,Debit,20,hmcourts-service.g,30.01.2019,"Children, Families & Cultural Services "
Nottinghamshire County Council ,Furniture,Debit,109.99,argos retail group,23.01.2019,"Children, Families & Cultural Services "
Nottinghamshire County Council ,Furniture,Debit,129,ao retail limited,21.01.2019,"Children, Families & Cultural Services "
Nottinghamshire County Council ,Other Fees & Services,Debit,27.75,gro hm passport office,21.01.2019,"Children, Families & Cultural Services "
Nottinghamshire County Council ,Advice & Counselling Services,Debit,99,general genetics corp,14.01.2019,"Children, Families & Cultural Services "
Nottinghamshire County Council ,Provisions,Debit,8.97,amzn mktp uk mb9cm7qq4,18.01.2019,Place
Nottinghamshire County Council ,Provisions,Debit,33.8,amzn mktp uk mb7a07874,17.01.2019,Place
Nottinghamshire County Council ,Provisions,Debit,16.98,amzn mktp uk mb9k608z4,17.01.2019,Place
Nottinghamshire County Council ,Provisions,Debit,60.46,amzn mktp uk mb2dc4hq4,16.01.2019,Place
Nottinghamshire County Council ,Unplanned Needs and Financial Support,Debit,18.3,quinn hospitality ltd,25.01.2019,"Children, Families & Cultural Services "
Nottinghamshire County Council ,Unplanned Needs and Financial Support,Debit,10,sainsburys s/mkts,25.01.2019,"Children, Families & Cultural Services "
Nottinghamshire County Council ,Unplanned Needs and Financial Support,Debit,36.85,nandos nottingham gilt,24.01.2019,"Children, Families & Cultural Services "
Nottinghamshire County Council ,Unplanned Needs and Financial Support,Debit,2.75,sainsburys s/mkts,18.01.2019,"Children, Families & Cultural Services "
Nottinghamshire County Council ,Unplanned Needs and Financial Support,Debit,40.02,b  m retail,18.01.2019,"Children, Families & Cultural Services "
Nottinghamshire County Council ,Unplanned Needs and Financial Support,Debit,9.74,mcdonalds,18.01.2019,"Children, Families & Cultural Services "
Nottinghamshire County Council ,Unplanned Needs and Financial Support,Debit,14.25,the sweet patch ltd,18.01.2019,"Children, Families & Cultural Services "
Nottinghamshire County Council ,Unplanned Needs and Financial Support,Debit,4.9,the sweet patch ltd,18.01.2019,"Children, Families & Cultural Services "
Nottinghamshire County Council ,Unplanned Needs and Financial Support,Debit,8.65,mcdonalds,17.01.2019,"Children, Families & Cultural Services "
Nottinghamshire County Council ,Unplanned Needs and Financial Support,Debit,24.7,asda stores 4880,16.01.2019,"Children, Families & Cultural Services "
Nottinghamshire County Council ,Unplanned Needs and Financial Support,Debit,13.25,damn fine cafe,16.01.2019,"Children, Families & Cultural Services "
Nottinghamshire County Council ,Unplanned Needs and Financial Support,Debit,12.43,mcdonalds,08.01.2019,"Children, Families & Cultural Services "
Nottinghamshire County Council ,Unplanned Needs and Financial Support,Debit,12.5,the post office,08.01.2019,"Children, Families & Cultural Services "
Nottinghamshire County Council ,Unplanned Needs and Financial Support,Debit,6.99,asda stores 4880,08.01.2019,"Children, Families & Cultural Services "
Nottinghamshire County Council ,Unplanned Needs and Financial Support,Debit,2,wm morrisons store,08.01.2019,"Children, Families & Cultural Services "
Nottinghamshire County Council ,Office / General Equipment,Debit,4.42,amzn mktp uk mi9e09lg4,01.02.2019,"Children, Families & Cultural Services "
Nottinghamshire County Council ,Activities & Support,Debit,9.99,amzn mktp uk mi7q70lz4 a,01.02.2019,"Children, Families & Cultural Services "
Nottinghamshire County Council ,Office / General Equipment,Debit,3.85,amzn mktp uk mi6l49374,03.02.2019,"Children, Families & Cultural Services "
Nottinghamshire County Council ,Activities & Support,Debit,6.79,amzn mktp uk mi4po7lp4 a,01.02.2019,"Children, Families & Cultural Services "
Nottinghamshire County Council ,Activities & Support,Debit,18.75,amzn mktp uk mi21z4ln4 a,01.02.2019,"Children, Families & Cultural Services "
Nottinghamshire County Council ,Activities & Support,Debit,16,amzn mktp uk mi8u79l44 a,31.01.2019,"Children, Families & Cultural Services "
Nottinghamshire County Council ,Office / General Equipment,Debit,4.45,amzn mktp uk mi3bu8ls4 a,31.01.2019,"Children, Families & Cultural Services "
Nottinghamshire County Council ,Activities & Support,Debit,33.9,amzn mktp uk mi62h24z4 a,31.01.2019,"Children, Families & Cultural Services "
Nottinghamshire County Council ,Activities & Support,Debit,28.26,amzn mktp uk mi6lx23p4,03.02.2019,"Children, Families & Cultural Services "
Nottinghamshire County Council ,Office / General Equipment,Debit,30.99,amzn mktp uk mi6119ly4,01.02.2019,"Children, Families & Cultural Services "
Nottinghamshire County Council ,Activities & Support,Debit,93.92,www.argos.co.uk,30.01.2019,"Children, Families & Cultural Services "
Nottinghamshire County Council ,Activities & Support,Debit,0,www.argos.co.uk,30.01.2019,"Children, Families & Cultural Services "
Nottinghamshire County Council ,Activities & Support,Debit,0,www.argos.co.uk,30.01.2019,"Children, Families & Cultural Services "
Nottinghamshire County Council ,Clothing And Footwear,Credi,-37.5,www.asos.com,30.01.2019,"Children, Families & Cultural Services "
Nottinghamshire County Council ,Activities & Support,Debit,67.83,amzn mktp uk mb2c46wt4 a,27.01.2019,"Children, Families & Cultural Services "
Nottinghamshire County Council ,Activities & Support,Debit,130.09,amzn mktp uk mb7af1wd4 a,27.01.2019,"Children, Families & Cultural Services "
Nottinghamshire County Council ,Office / General Equipment,Debit,10.98,amzn mktp uk mb0a92r14 a,26.01.2019,"Children, Families & Cultural Services "
Nottinghamshire County Council ,Activities & Support,Debit,15.9,amzn mktp uk mb1200ut4 a,25.01.2019,"Children, Families & Cultural Services "
Nottinghamshire County Council ,Activities & Support,Debit,17.9,amzn mktp uk mb6xm7u84 a,25.01.2019,"Children, Families & Cultural Services "
Nottinghamshire County Council ,Clothing And Footwear,Credi,-165,jd sports internet,25.01.2019,"Children, Families & Cultural Services "
Nottinghamshire County Council ,Activities & Support,Debit,11.59,amzn mktp uk mb4ur3u74 a,24.01.2019,"Children, Families & Cultural Services "
Nottinghamshire County Council ,First Aid Equipment Purchases,Debit,29.95,amazon.co.uk mb30t2rp4 a,27.01.2019,"Children, Families & Cultural Services "
Nottinghamshire County Council ,First Aid Equipment Purchases,Debit,29.95,amazon.co.uk mb6jk9rf4 a,27.01.2019,"Children, Families & Cultural Services "
Nottinghamshire County Council ,First Aid Equipment Purchases,Debit,29.95,amazon.co.uk mb90p9r14 a,27.01.2019,"Children, Families & Cultural Services "
Nottinghamshire County Council ,Activities & Support,Debit,59.94,amzn mktp uk mb3jz5u04 a,25.01.2019,"Children, Families & Cultural Services "
Nottinghamshire County Council ,Clothing And Footwear,Debit,100,jd sports internet,24.01.2019,"Children, Families & Cultural Services "
Nottinghamshire County Council ,Office / General Equipment,Debit,29.98,amzn mktp uk mb9pu87w4,23.01.2019,"Children, Families & Cultural Services "
Nottinghamshire County Council ,Office / General Equipment,Debit,17.48,amzn mktp uk mb0904264,22.01.2019,"Children, Families & Cultural Services "
Nottinghamshire County Council ,Personal Needs,Debit,49,amazon.co.uk mb5yx82c4 a,21.01.2019,"Children, Families & Cultural Services "
Nottinghamshire County Council ,Office / General Equipment,Debit,14.95,amzn mktp uk mb8k36284 a,22.01.2019,"Children, Families & Cultural Services "
Nottinghamshire County Council ,Office / General Equipment,Debit,24.45,amazon.co.uk mb63192v4 a,22.01.2019,"Children, Families & Cultural Services "
Nottinghamshire County Council ,Building Maintenance,Debit,719,amazon.co.uk mb0c162x4 a,21.01.2019,"Children, Families & Cultural Services "
Nottinghamshire County Council ,Office / General Equipment,Debit,28.99,amzn mktp uk mb3xj72x4 a,22.01.2019,"Children, Families & Cultural Services "
Nottinghamshire County Council ,Office / General Equipment,Debit,162.15,amazon.co.uk mb4eb7284,22.01.2019,"Children, Families & Cultural Services "
Nottinghamshire County Council ,Activities & Support,Debit,371.97,amazon.co.uk mb00d2s44,21.01.2019,"Children, Families & Cultural Services "
Nottinghamshire County Council ,Clothing And Footwear,Debit,165,jd sports internet,18.01.2019,"Children, Families & Cultural Services "
Nottinghamshire County Council ,First Aid Equipment Purchases,Debit,27.88,amzn mktp uk mb3aj9q74 a,18.01.2019,"Children, Families & Cultural Services "
Nottinghamshire County Council ,Activities & Support,Debit,8.53,amazon.co.uk mb0wp7q14,18.01.2019,"Children, Families & Cultural Services "
Nottinghamshire County Council ,Activities & Support,Debit,77.99,amzn mktp uk mb7hz8b14,17.01.2019,"Children, Families & Cultural Services "
Nottinghamshire County Council ,Activities & Support,Debit,6.91,amazon.co.uk mb0lz68m4,17.01.2019,"Children, Families & Cultural Services "
Nottinghamshire County Council ,Clothing And Footwear,Credi,-39.99,debenhams.com,17.01.2019,"Children, Families & Cultural Services "
Nottinghamshire County Council ,First Aid Equipment Purchases,Debit,22.43,amazon.co.uk mb8lg78c4,17.01.2019,"Children, Families & Cultural Services "
Nottinghamshire County Council ,Office / General Equipment,Debit,83.99,republic.com retai,16.01.2019,"Children, Families & Cultural Services "
Nottinghamshire County Council ,Office / General Equipment,Debit,192.49,amzn mktp uk mb5v81bg4 a,17.01.2019,"Children, Families & Cultural Services "
Nottinghamshire County Council ,Clothing And Footwear,Debit,162.49,www.asos.com,16.01.2019,"Children, Families & Cultural Services "
Nottinghamshire County Council ,Personal Needs,Debit,90.9,tesco stores 3297,16.01.2019,"Children, Families & Cultural Services "
Nottinghamshire County Council ,First Aid Equipment Purchases,Debit,34.42,amazon.co.uk mb8736hr4,16.01.2019,"Children, Families & Cultural Services "
Nottinghamshire County Council ,Activities & Support,Debit,22.88,crafts 4 kids,16.01.2019,"Children, Families & Cultural Services "
Nottinghamshire County Council ,Personal Needs,Debit,8.62,amazon.co.uk mb1xe1mq4,15.01.2019,"Children, Families & Cultural Services "
Nottinghamshire County Council ,Personal Needs,Debit,15.4,amzn mktp uk mb0nb6524,15.01.2019,"Children, Families & Cultural Services "
Nottinghamshire County Council ,Personal Needs,Debit,7.97,amazon.co.uk mb2qf4514,15.01.2019,"Children, Families & Cultural Services "
Nottinghamshire County Council ,Office / General Equipment,Debit,21.62,amazon.co.uk mb9k22504,15.01.2019,"Children, Families & Cultural Services "
Nottinghamshire County Council ,Clothing And Footwear,Debit,113.7,clothingsite co uk,14.01.2019,"Children, Families & Cultural Services "
Nottinghamshire County Council ,Office / General Equipment,Debit,74.77,amzn mktp uk mb2v00v14,14.01.2019,"Children, Families & Cultural Services "
Nottinghamshire County Council ,Office / General Equipment,Debit,476.05,specialist crafts ltd,14.01.2019,"Children, Families & Cultural Services "
Nottinghamshire County Council ,Clothing And Footwear,Debit,27.5,sp   gymking,11.01.2019,"Children, Families & Cultural Services "
Nottinghamshire County Council ,Clothing/Shoes/Uniforms,Debit,35,jd sports internet,11.01.2019,"Children, Families & Cultural Services "
Nottinghamshire County Council ,Activities & Support,Debit,9.75,amzn mktp uk mb9dk9ph4,11.01.2019,"Children, Families & Cultural Services "
Nottinghamshire County Council ,Activities & Support,Debit,11.98,amzn mktp uk mb75p3xh4,13.01.2019,"Children, Families & Cultural Services "
Nottinghamshire County Council ,Activities & Support,Debit,4.99,amzn mktp uk mb7lo6gq4,12.01.2019,"Children, Families & Cultural Services "
Nottinghamshire County Council ,Clothing And Footwear,Debit,20.94,gethelabel.com,11.01.2019,"Children, Families & Cultural Services "
Nottinghamshire County Council ,Clothing And Footwear,Debit,64.98,sportsdirect 236,10.01.2019,"Children, Families & Cultural Services "
Nottinghamshire County Council ,Clothing And Footwear,Debit,89.99,footasylum plc,09.01.2019,"Children, Families & Cultural Services "
Nottinghamshire County Council ,Clothing And Footwear,Debit,117.48,footasylum plc,09.01.2019,"Children, Families & Cultural Services "
Nottinghamshire County Council ,Personal Needs,Debit,107.87,www.argos.co.uk,09.01.2019,"Children, Families & Cultural Services "
Nottinghamshire County Council ,Activities & Support,Debit,23.25,amzn mktp uk mb6pw9ey4,09.01.2019,"Children, Families & Cultural Services "
Nottinghamshire County Council ,Activities & Support,Debit,20.94,www.argos.co.uk,09.01.2019,"Children, Families & Cultural Services "
Nottinghamshire County Council ,Personal Needs,Debit,70,burrows opthalmic opti,08.01.2019,"Children, Families & Cultural Services "
Nottinghamshire County Council ,Personal Needs,Debit,56.5,amazon.co.uk mb2nx1js4,07.01.2019,"Children, Families & Cultural Services "
Nottinghamshire County Council ,Postages,Debit,2.8,post office counter,30.01.2019,"Adult Social Care, Health & Public Protection "
Nottinghamshire County Council ,Postages,Debit,1.25,post office counter,16.01.2019,"Adult Social Care, Health & Public Protection "
Nottinghamshire County Council ,Postages,Debit,1.55,post office counter,10.01.2019,"Adult Social Care, Health & Public Protection "
Nottinghamshire County Council ,Provisions,Debit,23.99,www.dominos.co.uk,30.01.2019,"Children, Families & Cultural Services "
Nottinghamshire County Council ,Provisions,Debit,5,nott emt carpark,19.01.2019,"Children, Families & Cultural Services "
Nottinghamshire County Council ,Provisions,Debit,21.65,mcdonalds,19.01.2019,"Children, Families & Cultural Services "
Nottinghamshire County Council ,Provisions,Debit,85.17,trainline,09.01.2019,"Children, Families & Cultural Services "
Nottinghamshire County Council ,Provisions,Debit,13.41,tesco stores 5437,29.01.2019,"Children, Families & Cultural Services "
Nottinghamshire County Council ,Provisions,Debit,14.99,currys,25.01.2019,"Children, Families & Cultural Services "
Nottinghamshire County Council ,Provisions,Debit,5.87,co-op group 017191,24.01.2019,"Children, Families & Cultural Services "
Nottinghamshire County Council ,Provisions,Debit,3.95,local 4 u,24.01.2019,"Children, Families & Cultural Services "
Nottinghamshire County Council ,Provisions,Debit,9.9,tesco stores 5437,23.01.2019,"Children, Families & Cultural Services "
Nottinghamshire County Council ,Provisions,Debit,6.13,tesco stores 5437,22.01.2019,"Children, Families & Cultural Services "
Nottinghamshire County Council ,Provisions,Debit,8.13,tesco stores 5437,18.01.2019,"Children, Families & Cultural Services "
Nottinghamshire County Council ,Provisions,Debit,8,poundland ltd 1333,18.01.2019,"Children, Families & Cultural Services "
Nottinghamshire County Council ,Provisions,Debit,228.9,booker limited mansfield,17.01.2019,"Children, Families & Cultural Services "
Nottinghamshire County Council ,Provisions,Debit,8.29,tesco stores 5379,17.01.2019,"Children, Families & Cultural Services "
Nottinghamshire County Council ,Provisions,Debit,13.13,asda superstore 04261,15.01.2019,"Children, Families & Cultural Services "
Nottinghamshire County Council ,Rights Of Way,Debit,10,culture learning,22.01.2019,Place
Nottinghamshire County Council ,Rights Of Way,Debit,26.67,amazon.co.uk mb3s47194,11.01.2019,Place
Nottinghamshire County Council ,Rights Of Way,Debit,24.58,amzn mktp uk mb19a51r4,10.01.2019,Place
Nottinghamshire County Council ,Rights Of Way,Debit,91.77,vistapr vistaprint.com,10.01.2019,Place
Nottinghamshire County Council ,Office / General Equipment,Debit,64.98,tesco stores 2995,03.02.2019,"Children, Families & Cultural Services "
Nottinghamshire County Council ,Office / General Equipment,Debit,200,j d sports fashion plc,19.01.2019,"Children, Families & Cultural Services "
Nottinghamshire County Council ,Office / General Equipment,Debit,76.14,tesco stores 2995,06.01.2019,"Children, Families & Cultural Services "
Nottinghamshire County Council ,Provisions,Debit,10,poundland ltd 1333,30.01.2019,"Children, Families & Cultural Services "
Nottinghamshire County Council ,Provisions,Debit,9.44,home bargains doncaste,30.01.2019,"Children, Families & Cultural Services "
Nottinghamshire County Council ,Provisions,Debit,21.43,tesco stores 5437,29.01.2019,"Children, Families & Cultural Services "
Nottinghamshire County Council ,Provisions,Debit,14.05,tesco stores 5437,29.01.2019,"Children, Families & Cultural Services "
Nottinghamshire County Council ,Provisions,Debit,3.92,tesco stores 5437,25.01.2019,"Children, Families & Cultural Services "
Nottinghamshire County Council ,Provisions,Debit,27.99,amzn mktp uk mb5je1i04,26.01.2019,"Children, Families & Cultural Services "
Nottinghamshire County Council ,Provisions,Debit,14.49,aldi 65 779,22.01.2019,"Children, Families & Cultural Services "
Nottinghamshire County Council ,Provisions,Debit,12.22,aldi 65 779,22.01.2019,"Children, Families & Cultural Services "
Nottinghamshire County Council ,Provisions,Debit,6.64,aldi 65 779,22.01.2019,"Children, Families & Cultural Services "
Nottinghamshire County Council ,Provisions,Debit,3.82,aldi stores,18.01.2019,"Children, Families & Cultural Services "
Nottinghamshire County Council ,Provisions,Debit,17.33,tesco stores 5437,15.01.2019,"Children, Families & Cultural Services "
Nottinghamshire County Council ,Postages,Debit,11.18,post office counter,30.01.2019,"Children, Families & Cultural Services "
Nottinghamshire County Council ,Office / General Equipment,Debit,145.5,wsale office supp,24.01.2019,"Children, Families & Cultural Services "
Nottinghamshire County Council ,Office / General Equipment,Debit,169.44,wsale office supp,24.01.2019,"Children, Families & Cultural Services "
Nottinghamshire County Council ,Office / General Equipment,Debit,500,wsale office supp,24.01.2019,"Children, Families & Cultural Services "
Nottinghamshire County Council ,Office / General Equipment,Debit,61.1,wsale office supp,23.01.2019,"Children, Families & Cultural Services "
Nottinghamshire County Council ,Postages,Debit,1.89,post office counter,22.01.2019,"Children, Families & Cultural Services "
Nottinghamshire County Council ,Provisions,Debit,90.76,tesco stores 5379,15.01.2019,"Children, Families & Cultural Services "
Nottinghamshire County Council ,Office / General Equipment,Debit,32.96,amzn mktp uk mb87l55j4,15.01.2019,"Children, Families & Cultural Services "
Nottinghamshire County Council ,Provisions,Debit,83.94,tesco stores 5379,11.01.2019,"Children, Families & Cultural Services "
Nottinghamshire County Council ,Provisions,Debit,85.6,tesco stores 5379,08.01.2019,"Children, Families & Cultural Services "
Nottinghamshire County Council ,Provisions,Debit,58.41,tesco stores 5379,04.01.2019,"Children, Families & Cultural Services "
Nottinghamshire County Council ,Office / General Equipment,Debit,14.49,amzn mktp uk mi38z9oy4,30.01.2019,"Adult Social Care, Health & Public Protection "
Nottinghamshire County Council ,Office / General Equipment,Debit,15.38,amzn mktp uk mb48t7wa4,28.01.2019,"Adult Social Care, Health & Public Protection "
Nottinghamshire County Council ,Office / General Equipment,Debit,19.61,amzn mktp uk mb2d86y04,28.01.2019,"Adult Social Care, Health & Public Protection "
Nottinghamshire County Council ,Activities & Support,Debit,20.77,asda superstore,09.01.2019,"Children, Families & Cultural Services "
Nottinghamshire County Council ,Other Fees & Services,Debit,60.86,stationery office book,01.02.2019,"Children, Families & Cultural Services "
Nottinghamshire County Council ,Other Fees & Services,Debit,74,broxtowe b/oro cnc,24.01.2019,Resources
Nottinghamshire County Council ,Software Purchases,Debit,174.97,przcharge.prezi.com,11.01.2019,Resources
Nottinghamshire County Council ,Leaving Care - Home Establishment Grant,Debit,214.84,b  m retail,01.02.2019,"Children, Families & Cultural Services "
Nottinghamshire County Council ,Leaving Care - Home Establishment Grant,Debit,169.99,www.argos.co.uk,01.02.2019,"Children, Families & Cultural Services "
Nottinghamshire County Council ,Leaving Care - Home Establishment Grant,Debit,175.95,www.argos.co.uk,29.01.2019,"Children, Families & Cultural Services "
Nottinghamshire County Council ,Leaving Care - Home Establishment Grant,Debit,150.5,tvlicensing.co.uk,22.01.2019,"Children, Families & Cultural Services "
Nottinghamshire County Council ,Unplanned Needs and Financial Support,Debit,25,spar,17.01.2019,"Children, Families & Cultural Services "
Nottinghamshire County Council ,Unplanned Needs and Financial Support,Debit,10,spar,17.01.2019,"Children, Families & Cultural Services "
Nottinghamshire County Council ,Leaving Care - Home Establishment Grant,Debit,11,tesco store 3439,15.01.2019,"Children, Families & Cultural Services "
Nottinghamshire County Council ,Leaving Care - Home Establishment Grant,Debit,149.99,argos retail group,11.01.2019,"Children, Families & Cultural Services "
Nottinghamshire County Council ,Unplanned Needs and Financial Support,Debit,4.34,heron foods ltd,10.01.2019,"Children, Families & Cultural Services "
Nottinghamshire County Council ,Unplanned Needs and Financial Support,Debit,3.55,co-op group food,08.01.2019,"Children, Families & Cultural Services "
Nottinghamshire County Council ,Unplanned Needs and Financial Support,Debit,23.4,gro hm passport office,07.01.2019,"Children, Families & Cultural Services "
Nottinghamshire County Council ,Provisions,Debit,21.5,one stop (5079),25.01.2019,"Children, Families & Cultural Services "
Nottinghamshire County Council ,Provisions,Debit,45.52,hobbycraft,17.01.2019,"Children, Families & Cultural Services "
Nottinghamshire County Council ,Activities & Support,Debit,19.9,planet bounce,30.01.2019,"Children, Families & Cultural Services "
Nottinghamshire County Council ,Activities & Support,Debit,4.65,tesco stores 2702,22.01.2019,"Children, Families & Cultural Services "
Nottinghamshire County Council ,Software Maintenance,Debit,140,sq  atco,21.01.2019,Place
Nottinghamshire County Council ,Provisions,Debit,35.27,asda storess4342,01.02.2019,"Adult Social Care, Health & Public Protection "
Nottinghamshire County Council ,Provisions,Debit,21.5,wm morrisons store,30.01.2019,"Adult Social Care, Health & Public Protection "
Nottinghamshire County Council ,Provisions,Debit,51.28,wm morrisons store,29.01.2019,"Adult Social Care, Health & Public Protection "
Nottinghamshire County Council ,Fuel - Petrol,Debit,22.93,w m morrison petrol,29.01.2019,"Adult Social Care, Health & Public Protection "
Nottinghamshire County Council ,Activities & Support,Debit,14.82,healthcare services,29.01.2019,"Adult Social Care, Health & Public Protection "
Nottinghamshire County Council ,Provisions,Debit,86.27,wm morrison food.com,20.01.2019,"Adult Social Care, Health & Public Protection "
Nottinghamshire County Council ,Provisions,Debit,147.5,ikea limited,18.01.2019,"Adult Social Care, Health & Public Protection "
Nottinghamshire County Council ,Provisions,Debit,19.7,amazon.co.uk mb6j35d44,20.01.2019,"Adult Social Care, Health & Public Protection "
Nottinghamshire County Council ,Activities & Support,Debit,413.99,holiday payment vruk,18.01.2019,"Adult Social Care, Health & Public Protection "
Nottinghamshire County Council ,Provisions,Debit,73.97,sainsburys s/mkt,18.01.2019,"Adult Social Care, Health & Public Protection "
Nottinghamshire County Council ,Activities & Support,Debit,18.49,amazon.co.uk mb7jt1dv4,20.01.2019,"Adult Social Care, Health & Public Protection "
Nottinghamshire County Council ,Provisions,Debit,9.93,wm morrisons store,16.01.2019,"Adult Social Care, Health & Public Protection "
Nottinghamshire County Council ,Fuel - Petrol,Debit,25.49,w m morrison petrol,15.01.2019,"Adult Social Care, Health & Public Protection "
Nottinghamshire County Council ,Provisions,Debit,16,wm morrisons store,15.01.2019,"Adult Social Care, Health & Public Protection "
Nottinghamshire County Council ,Provisions,Debit,20.33,wm morrisons store,15.01.2019,"Adult Social Care, Health & Public Protection "
Nottinghamshire County Council ,Provisions,Debit,98.4,wm morrison food.com,09.01.2019,"Adult Social Care, Health & Public Protection "
Nottinghamshire County Council ,Provisions,Debit,106.4,asda groceries online,04.01.2019,"Adult Social Care, Health & Public Protection "
Nottinghamshire County Council ,Provisions,Credi,-14.34,asda groceries online,04.01.2019,"Adult Social Care, Health & Public Protection "
Nottinghamshire County Council ,Provisions,Debit,5.95,aldi 28 779,28.01.2019,"Children, Families & Cultural Services "
Nottinghamshire County Council ,Provisions,Debit,3,misterton foodstre,25.01.2019,"Children, Families & Cultural Services "
Nottinghamshire County Council ,Provisions,Debit,8.99,carphone warehouse,23.01.2019,"Children, Families & Cultural Services "
Nottinghamshire County Council ,Provisions,Debit,5.14,aldi 28 779,21.01.2019,"Children, Families & Cultural Services "
Nottinghamshire County Council ,Provisions,Debit,21.37,home bargains (retford,17.01.2019,"Children, Families & Cultural Services "
Nottinghamshire County Council ,Provisions,Debit,4,the works,16.01.2019,"Children, Families & Cultural Services "
Nottinghamshire County Council ,Provisions,Debit,15.9,aldi 28 779,14.01.2019,"Children, Families & Cultural Services "
Nottinghamshire County Council ,Provisions,Debit,14,iceland,01.02.2019,"Children, Families & Cultural Services "
Nottinghamshire County Council ,Provisions,Debit,8.09,tesco stores 5437,01.02.2019,"Children, Families & Cultural Services "
Nottinghamshire County Council ,Provisions,Debit,16.64,tesco stores 5437,01.02.2019,"Children, Families & Cultural Services "
Nottinghamshire County Council ,Provisions,Debit,24.41,tesco stores 5437,29.01.2019,"Children, Families & Cultural Services "
Nottinghamshire County Council ,Provisions,Debit,17.84,tesco stores 5437,29.01.2019,"Children, Families & Cultural Services "
Nottinghamshire County Council ,Provisions,Debit,39.97,sportsdirect 437,25.01.2019,"Children, Families & Cultural Services "
Nottinghamshire County Council ,Provisions,Debit,15.26,tesco stores 5437,24.01.2019,"Children, Families & Cultural Services "
Nottinghamshire County Council ,Provisions,Debit,10.35,tesco stores 5437,24.01.2019,"Children, Families & Cultural Services "
Nottinghamshire County Council ,Provisions,Debit,15.7,tesco stores 5437,18.01.2019,"Children, Families & Cultural Services "
Nottinghamshire County Council ,Provisions,Debit,21.6,tesco stores 5437,15.01.2019,"Children, Families & Cultural Services "
Nottinghamshire County Council ,Minor Works,Debit,269.88,pp smilecanvas,02.02.2019,"Children, Families & Cultural Services "
Nottinghamshire County Council ,Minor Works,Debit,12.72,screwfix sheffield hills,21.01.2019,"Children, Families & Cultural Services "
Nottinghamshire County Council ,Minor Works,Debit,252,paypal  smilecanvas,20.01.2019,"Children, Families & Cultural Services "
Nottinghamshire County Council ,Minor Works,Debit,49.68,wm eyre and sons,04.01.2019,"Children, Families & Cultural Services "
Nottinghamshire County Council ,Provisions,Debit,2.2,co-op group 065071,01.02.2019,"Children, Families & Cultural Services "
Nottinghamshire County Council ,Provisions,Debit,6,co-op group 065071,29.01.2019,"Children, Families & Cultural Services "
Nottinghamshire County Council ,Provisions,Debit,18.29,co-op group 065071,29.01.2019,"Children, Families & Cultural Services "
Nottinghamshire County Council ,Provisions,Debit,3.65,co-op group 065071,28.01.2019,"Children, Families & Cultural Services "
Nottinghamshire County Council ,Provisions,Debit,3,co-op group 065071,24.01.2019,"Children, Families & Cultural Services "
Nottinghamshire County Council ,Provisions,Debit,6.15,co-op group 065071,24.01.2019,"Children, Families & Cultural Services "
Nottinghamshire County Council ,Provisions,Debit,3.95,co-op group 065071,17.01.2019,"Children, Families & Cultural Services "
Nottinghamshire County Council ,Provisions,Debit,113.95,asda superstore 04030,17.01.2019,"Children, Families & Cultural Services "
Nottinghamshire County Council ,Provisions,Debit,4.2,co-op group 065071,15.01.2019,"Children, Families & Cultural Services "
Nottinghamshire County Council ,Provisions,Debit,51.98,amzn mktp uk mb9se6my4,15.01.2019,"Children, Families & Cultural Services "
Nottinghamshire County Council ,Provisions,Debit,4.1,co-op group 065071,15.01.2019,"Children, Families & Cultural Services "
Nottinghamshire County Council ,Provisions,Debit,0.94,co-op group 065071,14.01.2019,"Children, Families & Cultural Services "
Nottinghamshire County Council ,Provisions,Debit,10.99,amzn mktp uk mb7co2m44,14.01.2019,"Children, Families & Cultural Services "
Nottinghamshire County Council ,Provisions,Debit,25.95,british standards,14.01.2019,"Children, Families & Cultural Services "
Nottinghamshire County Council ,Provisions,Debit,7.99,amazon prime mb5vq5zz4 a,05.01.2019,"Children, Families & Cultural Services "
Nottinghamshire County Council ,Activities & Support,Debit,350,sq  carpet bargain centr,18.01.2019,Resources
Nottinghamshire County Council ,Activities & Support,Debit,350,sq  carpet bargain centr,11.01.2019,Resources
Nottinghamshire County Council ,Activities & Support,Debit,83.99,currys t/sales,08.01.2019,Resources
Nottinghamshire County Council ,Provisions,Debit,30.4,middletons dairy limit,30.01.2019,"Children, Families & Cultural Services "
Nottinghamshire County Council ,Cleaning & Domestic Equipment,Debit,27,amazon.co.uk mb0st0yk4,28.01.2019,"Children, Families & Cultural Services "
Nottinghamshire County Council ,Provisions,Debit,116,js online grocery,28.01.2019,"Children, Families & Cultural Services "
Nottinghamshire County Council ,Provisions,Debit,53.85,js online grocery,22.01.2019,"Children, Families & Cultural Services "
Nottinghamshire County Council ,Office / General Equipment,Credi,-20.26,sp   sasco planners,21.01.2019,"Children, Families & Cultural Services "
Nottinghamshire County Council ,Office / General Equipment,Debit,17.88,a2b office supplies,21.01.2019,"Children, Families & Cultural Services "
Nottinghamshire County Council ,Minor Works,Debit,27.87,amazon.co.uk mb4g84844 a,17.01.2019,"Children, Families & Cultural Services "
Nottinghamshire County Council ,Provisions,Debit,45.55,js online grocery,16.01.2019,"Children, Families & Cultural Services "
Nottinghamshire County Council ,Provisions,Debit,6.29,peak fruits,15.01.2019,"Children, Families & Cultural Services "
Nottinghamshire County Council ,Provisions,Debit,24.69,barrons of hathersage,14.01.2019,"Children, Families & Cultural Services "
Nottinghamshire County Council ,Provisions,Debit,90.6,middletons dairy limit,14.01.2019,"Children, Families & Cultural Services "
Nottinghamshire County Council ,Provisions,Debit,111,js online grocery,14.01.2019,"Children, Families & Cultural Services "
Nottinghamshire County Council ,Office / General Equipment,Debit,58.92,www.qualsafe.com,08.01.2019,"Children, Families & Cultural Services "
Nottinghamshire County Council ,Postages,Debit,58,the post office,07.01.2019,"Children, Families & Cultural Services "
Nottinghamshire County Council ,Postages,Debit,625,post office counter,01.02.2019,Resources
Nottinghamshire County Council ,Postages,Debit,14.33,amzn mktp uk mb9424964 a,24.01.2019,Resources
Nottinghamshire County Council ,Postages,Debit,625,post office counter,22.01.2019,Resources
Nottinghamshire County Council ,Books - General,Debit,10.2,wm morrisons store,11.01.2019,"Children, Families & Cultural Services "
Nottinghamshire County Council ,Provisions,Debit,42.13,aldi,28.01.2019,"Children, Families & Cultural Services "
Nottinghamshire County Council ,Cleaning Materials,Debit,1.6,tesco stores 5379,28.01.2019,"Children, Families & Cultural Services "
Nottinghamshire County Council ,Personal Needs,Debit,20,tesco stores 5379,28.01.2019,"Children, Families & Cultural Services "
Nottinghamshire County Council ,Office / General Equipment,Debit,210,byron upholstery (huck,17.01.2019,"Children, Families & Cultural Services "
Nottinghamshire County Council ,Office / General Equipment,Debit,6.98,w boyes  co ltd,16.01.2019,"Children, Families & Cultural Services "
Nottinghamshire County Council ,Office / General Equipment,Debit,16.68,dura-id solutions,09.01.2019,"Children, Families & Cultural Services "
Nottinghamshire County Council ,Provisions,Debit,50.78,heron foods ltd,03.02.2019,"Children, Families & Cultural Services "
Nottinghamshire County Council ,Provisions,Debit,60.52,asda stores 4474,03.02.2019,"Children, Families & Cultural Services "
Nottinghamshire County Council ,Provisions,Debit,1.29,victoria street,28.01.2019,"Children, Families & Cultural Services "
Nottinghamshire County Council ,Provisions,Debit,157.39,bm retail ltd,22.01.2019,"Children, Families & Cultural Services "
Nottinghamshire County Council ,Provisions,Debit,12,the range,22.01.2019,"Children, Families & Cultural Services "
Nottinghamshire County Council ,Provisions,Debit,5.98,bm retail ltd,22.01.2019,"Children, Families & Cultural Services "
Nottinghamshire County Council ,Provisions,Debit,12,bm retail ltd,22.01.2019,"Children, Families & Cultural Services "
Nottinghamshire County Council ,Provisions,Debit,142.5,amzn mktp uk mb3630sv4,21.01.2019,"Children, Families & Cultural Services "
Nottinghamshire County Council ,Provisions,Debit,171.49,amzn mktp uk mb8ti4sb4,21.01.2019,"Children, Families & Cultural Services "
Nottinghamshire County Council ,Provisions,Debit,33.95,amzn mktp uk mb0cu4qq4,18.01.2019,"Children, Families & Cultural Services "
Nottinghamshire County Council ,Provisions,Debit,19.9,amzn mktp uk mb81l2qc4,18.01.2019,"Children, Families & Cultural Services "
Nottinghamshire County Council ,Provisions,Debit,19.77,amzn mktp uk mb4vb9de4,20.01.2019,"Children, Families & Cultural Services "
Nottinghamshire County Council ,Provisions,Debit,15.97,amzn mktp uk mb2z66q94,18.01.2019,"Children, Families & Cultural Services "
Nottinghamshire County Council ,Provisions,Debit,9.99,amzn mktp uk mb45o08c4,17.01.2019,"Children, Families & Cultural Services "
Nottinghamshire County Council ,Provisions,Debit,55.71,amzn mktp uk mb6xf9vl4,14.01.2019,"Children, Families & Cultural Services "
Nottinghamshire County Council ,Provisions,Debit,12,farmfoods limited,10.01.2019,"Children, Families & Cultural Services "
Nottinghamshire County Council ,Provisions,Debit,34.19,farmfoods limited,10.01.2019,"Children, Families & Cultural Services "
Nottinghamshire County Council ,Provisions,Debit,122.87,farmfoods limited,10.01.2019,"Children, Families & Cultural Services "
Nottinghamshire County Council ,Provisions,Debit,35.99,w boyes  co ltd,11.01.2019,"Children, Families & Cultural Services "
Nottinghamshire County Council ,Provisions,Debit,38.99,amzn mktp uk mb4v47pn4,11.01.2019,"Children, Families & Cultural Services "
Nottinghamshire County Council ,Provisions,Debit,62.4,tesco stores 5379,10.01.2019,"Children, Families & Cultural Services "
Nottinghamshire County Council ,Provisions,Debit,93.34,tesco stores 5379,10.01.2019,"Children, Families & Cultural Services "
Nottinghamshire County Council ,Provisions,Debit,33.99,amzn mktp uk mb49g11v4,10.01.2019,"Children, Families & Cultural Services "
Nottinghamshire County Council ,Provisions,Debit,20.85,amzn mktp uk mb4p300f4,10.01.2019,"Children, Families & Cultural Services "
Nottinghamshire County Council ,Provisions,Debit,38,amzn mktp uk mb3xr70l4,10.01.2019,"Children, Families & Cultural Services "
Nottinghamshire County Council ,Provisions,Debit,25.44,amzn mktp uk mb5e570i4,10.01.2019,"Children, Families & Cultural Services "
Nottinghamshire County Council ,Provisions,Debit,35.64,amzn mktp uk mb7sd0074,10.01.2019,"Children, Families & Cultural Services "
Nottinghamshire County Council ,Provisions,Debit,33.02,amzn mktp uk mb7sb40s4,10.01.2019,"Children, Families & Cultural Services "
Nottinghamshire County Council ,Provisions,Debit,5.24,tesco stores 5379,10.01.2019,"Children, Families & Cultural Services "
Nottinghamshire County Council ,Provisions,Debit,42.98,argos ltd,10.01.2019,"Children, Families & Cultural Services "
Nottinghamshire County Council ,Provisions,Debit,48.35,tesco stores 5379,10.01.2019,"Children, Families & Cultural Services "
Nottinghamshire County Council ,Provisions,Debit,118,tesco stores 5379,10.01.2019,"Children, Families & Cultural Services "
Nottinghamshire County Council ,Provisions,Debit,10.99,amzn mktp uk mb7q91eo4,09.01.2019,"Children, Families & Cultural Services "
Nottinghamshire County Council ,Provisions,Debit,9.24,amzn mktp uk mb4ah40r4,09.01.2019,"Children, Families & Cultural Services "
Nottinghamshire County Council ,Provisions,Debit,11.86,amzn mktp uk mb1us3e04,09.01.2019,"Children, Families & Cultural Services "
Nottinghamshire County Council ,Provisions,Debit,19,amzn mktp uk mb3i94e74,09.01.2019,"Children, Families & Cultural Services "
Nottinghamshire County Council ,Provisions,Debit,13.98,barrons of hathersage,05.01.2019,"Children, Families & Cultural Services "
Nottinghamshire County Council ,Other Fees & Services,Debit,14.67,amazon.co.uk mi6oz0lb4 a,01.02.2019,"Children, Families & Cultural Services "
Nottinghamshire County Council ,Other Fees & Services,Credi,-11,ncc card payment,30.01.2019,"Children, Families & Cultural Services "
Nottinghamshire County Council ,Other Fees & Services,Debit,32.22,amazon.co.uk mi46l9cm4,29.01.2019,"Children, Families & Cultural Services "
Nottinghamshire County Council ,Other Fees & Services,Debit,32.23,amazon.co.uk mi7cl9op4,29.01.2019,"Children, Families & Cultural Services "
Nottinghamshire County Council ,Other Fees & Services,Debit,6.73,amazon.co.uk mi1610cf4 a,29.01.2019,"Children, Families & Cultural Services "
Nottinghamshire County Council ,Other Fees & Services,Debit,15.67,east ayrshire council,28.01.2019,"Children, Families & Cultural Services "
Nottinghamshire County Council ,Other Fees & Services,Debit,11,ncc card payment inter,28.01.2019,"Children, Families & Cultural Services "
Nottinghamshire County Council ,Other Fees & Services,Debit,11,ncc card payment inter,28.01.2019,"Children, Families & Cultural Services "
Nottinghamshire County Council ,Other Fees & Services,Debit,11,ncc card payment inter,23.01.2019,"Children, Families & Cultural Services "
Nottinghamshire County Council ,Other Fees & Services,Debit,11,ncc card payment inter,23.01.2019,"Children, Families & Cultural Services "
Nottinghamshire County Council ,Office / General Equipment,Debit,150.5,tvlicensing.co.uk,28.01.2019,"Adult Social Care, Health & Public Protection "
Nottinghamshire County Council ,Office / General Equipment,Debit,150.5,tvlicensing.co.uk,16.01.2019,"Adult Social Care, Health & Public Protection "
Nottinghamshire County Council ,Office / General Equipment,Debit,22.49,amazon.co.uk mb5xa0pr4 a,11.01.2019,"Adult Social Care, Health & Public Protection "
Nottinghamshire County Council ,Office / General Equipment,Debit,9.58,amzn mktp uk mb38j61u4 a,11.01.2019,"Adult Social Care, Health & Public Protection "
Nottinghamshire County Council ,Office / General Equipment,Debit,15.97,amzn mktp uk mb1cl8jo4,07.01.2019,"Adult Social Care, Health & Public Protection "
Nottinghamshire County Council ,Provisions,Debit,95.76,radiotronics limited,14.01.2019,"Adult Social Care, Health & Public Protection "
Nottinghamshire County Council ,Leaving Care - Home Establishment Grant,Debit,35.5,wilko retail limit,29.01.2019,"Children, Families & Cultural Services "
Nottinghamshire County Council ,Leaving Care - Home Establishment Grant,Debit,7.62,burger king mansfield,24.01.2019,"Children, Families & Cultural Services "
Nottinghamshire County Council ,Leaving Care - Home Establishment Grant,Debit,14.55,asda store ston in as,24.01.2019,"Children, Families & Cultural Services "
Nottinghamshire County Council ,Office / General Equipment,Debit,60.69,aldi 65 779,01.02.2019,"Children, Families & Cultural Services "
Nottinghamshire County Council ,Office / General Equipment,Debit,57.93,beefeater40014310,05.01.2019,"Children, Families & Cultural Services "
Nottinghamshire County Council ,Furniture,Debit,43.5,amzn mktp uk mi9xn3ce4,29.01.2019,"Adult Social Care, Health & Public Protection "
Nottinghamshire County Council ,Furniture,Debit,38.81,amazon.co.uk mb5jq1dv4 a,20.01.2019,"Adult Social Care, Health & Public Protection "
Nottinghamshire County Council ,Furniture,Debit,19.98,amzn mktp uk mb82l3qz4,18.01.2019,"Adult Social Care, Health & Public Protection "
Nottinghamshire County Council ,Protective Clothing,Debit,6.19,amzn mktp uk mb7w896o4,19.01.2019,"Adult Social Care, Health & Public Protection "
Nottinghamshire County Council ,Building Maintenance,Debit,83,top deck trade centre lt,16.01.2019,"Adult Social Care, Health & Public Protection "
Nottinghamshire County Council ,Rail / Tube Fares,Debit,4,gwr keynsham sst,16.01.2019,"Children, Families & Cultural Services "
Nottinghamshire County Council ,General Employee Exps,Debit,6.45,starbucks,16.01.2019,"Children, Families & Cultural Services "
Nottinghamshire County Council ,Personal Needs,Debit,155.7,domiciliary,10.01.2019,"Children, Families & Cultural Services "
Nottinghamshire County Council ,Books - General,Debit,11.48,amzn mktp uk mb2g27a94,08.01.2019,"Children, Families & Cultural Services "
Nottinghamshire County Council ,Provisions,Debit,8,iceland,30.01.2019,Place
Nottinghamshire County Council ,Provisions,Debit,2.98,iceland,28.01.2019,Place
Nottinghamshire County Council ,Provisions,Debit,5,iceland,26.01.2019,Place
Nottinghamshire County Council ,Provisions,Debit,4.8,iceland,23.01.2019,Place
Nottinghamshire County Council ,Provisions,Debit,19.67,iceland,21.01.2019,Place
Nottinghamshire County Council ,Provisions,Debit,15.2,iceland,17.01.2019,Place
Nottinghamshire County Council ,Provisions,Debit,11.57,bm retail ltd,17.01.2019,Place
Nottinghamshire County Council ,Housing/Accommodation Financial Support,Debit,73,premier inn 44536925,24.01.2019,"Children, Families & Cultural Services "
Nottinghamshire County Council ,Housing/Accommodation Financial Support,Credi,-124,premier inn 44536925,25.01.2019,"Children, Families & Cultural Services "
Nottinghamshire County Council ,Housing/Accommodation Financial Support,Debit,187,premier inn 44536925,25.01.2019,"Children, Families & Cultural Services "
Nottinghamshire County Council ,Housing/Accommodation Financial Support,Credi,-19.99,argos arnold,15.01.2019,"Children, Families & Cultural Services "
Nottinghamshire County Council ,Activities & Support,Debit,216,east midlands trains,24.01.2019,"Children, Families & Cultural Services "
Nottinghamshire County Council ,Stationery,Debit,9.25,gro hm passport office,22.01.2019,"Adult Social Care, Health & Public Protection "
Nottinghamshire County Council ,Stationery,Debit,93,green flag membership,10.01.2019,"Adult Social Care, Health & Public Protection "
Nottinghamshire County Council ,Stationery,Credi,-23.54,amazon.co.uk amazon.co.u,08.01.2019,"Adult Social Care, Health & Public Protection "
Nottinghamshire County Council ,Stationery,Credi,-23.54,amazon.co.uk amazon.co.u,08.01.2019,"Adult Social Care, Health & Public Protection "
Nottinghamshire County Council ,Unplanned Needs and Financial Support,Debit,7.35,pret a manger,29.01.2019,"Children, Families & Cultural Services "
Nottinghamshire County Council ,Unplanned Needs and Financial Support,Debit,4.81,mcdonalds,14.01.2019,"Children, Families & Cultural Services "
Nottinghamshire County Council ,Office / General Equipment,Debit,7.99,amazon prime mb2tx8rd4,27.01.2019,"Children, Families & Cultural Services "
Nottinghamshire County Council ,Office / General Equipment,Debit,7.99,amazon prime mb3fo1p84,11.01.2019,"Children, Families & Cultural Services "
Nottinghamshire County Council ,Provisions,Debit,12.13,asda stores 4475,29.01.2019,"Children, Families & Cultural Services "
Nottinghamshire County Council ,Provisions,Debit,8.4,co-op group food,29.01.2019,"Children, Families & Cultural Services "
Nottinghamshire County Council ,Provisions,Debit,19.62,co-op group 070328,29.01.2019,"Children, Families & Cultural Services "
Nottinghamshire County Council ,Provisions,Debit,8.99,amzn mktp uk mb4ax9714 a,23.01.2019,"Children, Families & Cultural Services "
Nottinghamshire County Council ,Provisions,Debit,18.37,amzn mktp uk mb55c97g4,23.01.2019,"Children, Families & Cultural Services "
Nottinghamshire County Council ,Provisions,Debit,172.21,asda superstore 04030,22.01.2019,"Children, Families & Cultural Services "
Nottinghamshire County Council ,Provisions,Debit,70.5,amazon.co.uk mb0n50664 a,20.01.2019,"Children, Families & Cultural Services "
Nottinghamshire County Council ,Provisions,Debit,13.48,amzn mktp uk mb2642di4 a,20.01.2019,"Children, Families & Cultural Services "
Nottinghamshire County Council ,Provisions,Debit,0.94,co-op group food,17.01.2019,"Children, Families & Cultural Services "
Nottinghamshire County Council ,Provisions,Debit,0.94,co-op group food,15.01.2019,"Children, Families & Cultural Services "
Nottinghamshire County Council ,Provisions,Debit,8.8,co-op group food,15.01.2019,"Children, Families & Cultural Services "
Nottinghamshire County Council ,Office / General Equipment,Debit,3.5,peak district national p,31.01.2019,"Children, Families & Cultural Services "
Nottinghamshire County Council ,Teaching Equipment,Debit,44.5,paypal  jpmasonrysu,01.02.2019,"Children, Families & Cultural Services "
Nottinghamshire County Council ,Office / General Equipment,Debit,3.5,peak district national p,31.01.2019,"Children, Families & Cultural Services "
Nottinghamshire County Council ,Provisions,Debit,16.5,one stop 1550,24.01.2019,"Children, Families & Cultural Services "
Nottinghamshire County Council ,Provisions,Debit,24.54,texaco sickleholme,24.01.2019,"Children, Families & Cultural Services "
Nottinghamshire County Council ,Provisions,Debit,9.25,sainsburys spmrkts,24.01.2019,"Children, Families & Cultural Services "
Nottinghamshire County Council ,Subscriptions and Licences,Debit,185,mountain training,18.01.2019,"Children, Families & Cultural Services "
Nottinghamshire County Council ,Provisions,Debit,107.25,tesco stores 3378,16.01.2019,"Children, Families & Cultural Services "
Nottinghamshire County Council ,Provisions,Debit,6.99,tesco delivery saver2,15.01.2019,"Children, Families & Cultural Services "
Nottinghamshire County Council ,Provisions,Debit,12.98,co-op group 010811,30.01.2019,"Children, Families & Cultural Services "
Nottinghamshire County Council ,Provisions,Debit,38.87,lidl uk nottingham,29.01.2019,"Children, Families & Cultural Services "
Nottinghamshire County Council ,Provisions,Debit,11.37,lidl uk nottingham,29.01.2019,"Children, Families & Cultural Services "
Nottinghamshire County Council ,Provisions,Debit,5.95,t.m.s. hardware and pe,25.01.2019,"Children, Families & Cultural Services "
Nottinghamshire County Council ,Provisions,Debit,11.15,t.m.s. hardware and pe,24.01.2019,"Children, Families & Cultural Services "
Nottinghamshire County Council ,Provisions,Debit,34.94,baker ross,23.01.2019,"Children, Families & Cultural Services "
Nottinghamshire County Council ,Provisions,Debit,15.03,bm retail,23.01.2019,"Children, Families & Cultural Services "
Nottinghamshire County Council ,Provisions,Debit,45.38,lidl uk nottingham,22.01.2019,"Children, Families & Cultural Services "
Nottinghamshire County Council ,Provisions,Debit,39.99,lidl uk nottingham,22.01.2019,"Children, Families & Cultural Services "
Nottinghamshire County Council ,Provisions,Debit,22.07,amzn mktp uk mb9tf66h4 a,20.01.2019,"Children, Families & Cultural Services "
Nottinghamshire County Council ,Provisions,Debit,59.15,alfreshco,17.01.2019,"Children, Families & Cultural Services "
Nottinghamshire County Council ,Provisions,Debit,18,thomas  anca club suppl,17.01.2019,"Children, Families & Cultural Services "
Nottinghamshire County Council ,Provisions,Debit,24.65,sainsburys s/mkt,17.01.2019,"Children, Families & Cultural Services "
Nottinghamshire County Council ,Provisions,Debit,57.58,lidl uk nottingham,15.01.2019,"Children, Families & Cultural Services "
Nottinghamshire County Council ,Provisions,Debit,43.71,lidl uk nottingham,15.01.2019,"Children, Families & Cultural Services "
Nottinghamshire County Council ,Rail / Tube Fares,Debit,2,nottingham city counci,01.02.2019,Place
Nottinghamshire County Council ,Rail / Tube Fares,Debit,50,nottingham city counci,01.02.2019,Place
Nottinghamshire County Council ,Rail / Tube Fares,Debit,2,nottingham city counci,01.02.2019,Place
Nottinghamshire County Council ,Rail / Tube Fares,Debit,50,nottingham city counci,01.02.2019,Place
Nottinghamshire County Council ,Rail / Tube Fares,Debit,200,broadmarsh travel offi,30.01.2019,Place
Nottinghamshire County Council ,Rail / Tube Fares,Debit,187.5,nct travel centre,28.01.2019,Place
Nottinghamshire County Council ,Rail / Tube Fares,Debit,200,trent barton,25.01.2019,Place
Nottinghamshire County Council ,Rail / Tube Fares,Debit,50,nottingham city counci,22.01.2019,Place
Nottinghamshire County Council ,Rail / Tube Fares,Debit,50,nottingham city counci,22.01.2019,Place
Nottinghamshire County Council ,Rail / Tube Fares,Debit,50,nottingham city counci,22.01.2019,Place
Nottinghamshire County Council ,Rail / Tube Fares,Debit,50,nottingham city counci,15.01.2019,Place
Nottinghamshire County Council ,Rail / Tube Fares,Debit,50,nottingham city counci,15.01.2019,Place
Nottinghamshire County Council ,Rail / Tube Fares,Debit,50,nottingham city counci,15.01.2019,Place
Nottinghamshire County Council ,Rail / Tube Fares,Debit,2,nottingham city counci,15.01.2019,Place
Nottinghamshire County Council ,Rail / Tube Fares,Debit,50,nottingham city counci,15.01.2019,Place
Nottinghamshire County Council ,Rail / Tube Fares,Debit,50,nottingham city counci,15.01.2019,Place
Nottinghamshire County Council ,Rail / Tube Fares,Debit,2,nottingham city counci,15.01.2019,Place
Nottinghamshire County Council ,Rail / Tube Fares,Debit,2,nottingham city counci,15.01.2019,Place
Nottinghamshire County Council ,Rail / Tube Fares,Debit,2,nottingham city counci,15.01.2019,Place
Nottinghamshire County Council ,Activities & Support,Debit,23.05,asda store ston in as,01.02.2019,"Children, Families & Cultural Services "
Nottinghamshire County Council ,Activities & Support,Debit,26.31,aldi 68 779,18.01.2019,"Children, Families & Cultural Services "
Nottinghamshire County Council ,Provisions,Debit,7.19,tesco stores 5329,29.01.2019,"Children, Families & Cultural Services "
Nottinghamshire County Council ,Provisions,Debit,6.95,tesco stores 6735,24.01.2019,"Children, Families & Cultural Services "
Nottinghamshire County Council ,Provisions,Debit,1.99,amzn mktp uk mb9df57t4,23.01.2019,"Children, Families & Cultural Services "
Nottinghamshire County Council ,Provisions,Debit,6.22,amzn mktp uk mb1bs5784,23.01.2019,"Children, Families & Cultural Services "
Nottinghamshire County Council ,Provisions,Debit,5.95,amzn mktp uk mb0vv1714,23.01.2019,"Children, Families & Cultural Services "
Nottinghamshire County Council ,Provisions,Debit,1.52,co-op group 065071,23.01.2019,"Children, Families & Cultural Services "
Nottinghamshire County Council ,Provisions,Debit,19.23,amazon.co.uk mb04g6714,23.01.2019,"Children, Families & Cultural Services "
Nottinghamshire County Council ,Provisions,Debit,5.28,amzn mktp uk mb3wr2794,23.01.2019,"Children, Families & Cultural Services "
Nottinghamshire County Council ,Provisions,Debit,10.73,tesco stores 5329,22.01.2019,"Children, Families & Cultural Services "
Nottinghamshire County Council ,Provisions,Debit,6.98,wm morrisons store,21.01.2019,"Children, Families & Cultural Services "
Nottinghamshire County Council ,Provisions,Debit,14.02,tesco stores 6735,17.01.2019,"Children, Families & Cultural Services "
Nottinghamshire County Council ,Provisions,Debit,15.49,co-op group 065071,16.01.2019,"Children, Families & Cultural Services "
Nottinghamshire County Council ,Provisions,Debit,98.79,amzn mktp uk mb3n74hu4,16.01.2019,"Children, Families & Cultural Services "
Nottinghamshire County Council ,Provisions,Debit,34.9,wm morrisons store,14.01.2019,"Children, Families & Cultural Services "
Nottinghamshire County Council ,Advertising & Marketing,Debit,8.4,tesco stores 5437,01.02.2019,"Adult Social Care, Health & Public Protection "
Nottinghamshire County Council ,Advertising & Marketing,Debit,1.78,home bargains doncaste,30.01.2019,"Adult Social Care, Health & Public Protection "
Nottinghamshire County Council ,Advertising & Marketing,Debit,47.85,www.chocolatetradingco,25.01.2019,"Adult Social Care, Health & Public Protection "
Nottinghamshire County Council ,Advertising & Marketing,Debit,70.74,big brown carrier bag,25.01.2019,"Adult Social Care, Health & Public Protection "
Nottinghamshire County Council ,Furniture,Debit,130,wild orchid,25.01.2019,"Adult Social Care, Health & Public Protection "
Nottinghamshire County Council ,Hospitality,Debit,46.77,tesco stores 5437,23.01.2019,"Adult Social Care, Health & Public Protection "
Nottinghamshire County Council ,Advertising & Marketing,Debit,16.45,amzn mktp uk mb2mk8sw4,21.01.2019,"Adult Social Care, Health & Public Protection "
Nottinghamshire County Council ,Furniture,Debit,105,byron upholstery (huck,14.01.2019,"Adult Social Care, Health & Public Protection "
Nottinghamshire County Council ,Hospitality,Debit,2.1,tesco stores 5437,11.01.2019,"Adult Social Care, Health & Public Protection "
Nottinghamshire County Council ,Provisions,Debit,12.95,tesco stores (5378),30.01.2019,"Children, Families & Cultural Services "
Nottinghamshire County Council ,Provisions,Debit,13,timpson ltd,30.01.2019,"Children, Families & Cultural Services "
Nottinghamshire County Council ,Provisions,Debit,6,wilko beeston (2),30.01.2019,"Children, Families & Cultural Services "
Nottinghamshire County Council ,Provisions,Debit,2.14,aldi 68 779,29.01.2019,"Children, Families & Cultural Services "
Nottinghamshire County Council ,Provisions,Debit,2.26,aldi 68 779,22.01.2019,"Children, Families & Cultural Services "
Nottinghamshire County Council ,Provisions,Debit,5.34,amzn mktp uk mb5c651h4 a,10.01.2019,"Children, Families & Cultural Services "
Nottinghamshire County Council ,Provisions,Debit,13.99,argos ltd,07.01.2019,"Children, Families & Cultural Services "
Nottinghamshire County Council ,Provisions,Debit,4.99,amzn mktp uk mb7ph0zk4 a,05.01.2019,"Children, Families & Cultural Services "
Nottinghamshire County Council ,Provisions,Debit,27.98,argos ltd,04.01.2019,"Children, Families & Cultural Services "
Nottinghamshire County Council ,Provisions,Debit,23.94,amazon.co.uk mb3ul3n34 a,06.01.2019,"Children, Families & Cultural Services "
Nottinghamshire County Council ,Other Fees & Services,Debit,149.7,bookdepository.com,01.02.2019,"Children, Families & Cultural Services "
Nottinghamshire County Council ,Furniture,Credi,-119.99,www.argos.co.uk,01.02.2019,"Children, Families & Cultural Services "
Nottinghamshire County Council ,Other Fees & Services,Debit,20,hmcourts-service.g,01.02.2019,"Children, Families & Cultural Services "
Nottinghamshire County Council ,Furniture,Debit,172.94,www.argos.co.uk,01.02.2019,"Children, Families & Cultural Services "
Nottinghamshire County Council ,Other Fees & Services,Debit,9.25,gen register office,30.01.2019,"Children, Families & Cultural Services "
Nottinghamshire County Council ,Furniture,Debit,119.99,www.argos.co.uk,28.01.2019,"Children, Families & Cultural Services "
Nottinghamshire County Council ,Other Fees & Services,Debit,150.5,tvlicensing.co.uk,23.01.2019,"Children, Families & Cultural Services "
Nottinghamshire County Council ,Other Fees & Services,Debit,9.25,gen register office,24.01.2019,"Children, Families & Cultural Services "
Nottinghamshire County Council ,Other Fees & Services,Debit,18.5,gro hm passport office,23.01.2019,"Children, Families & Cultural Services "
Nottinghamshire County Council ,Other Fees & Services,Debit,9.25,gro hm passport office,22.01.2019,"Children, Families & Cultural Services "
Nottinghamshire County Council ,Stationery,Debit,64.95,tictail katie abey who,22.01.2019,"Children, Families & Cultural Services "
Nottinghamshire County Council ,Employees medical fees,Debit,25,specsavers 00345000sut,18.01.2019,"Children, Families & Cultural Services "
Nottinghamshire County Council ,Other Fees & Services,Debit,9.25,gro hm passport office,18.01.2019,"Children, Families & Cultural Services "
Nottinghamshire County Council ,Other Fees & Services,Debit,9.25,gro hm passport office,18.01.2019,"Children, Families & Cultural Services "
Nottinghamshire County Council ,Other Fees & Services,Debit,23.4,gro hm passport office,17.01.2019,"Children, Families & Cultural Services "
Nottinghamshire County Council ,Other Fees & Services,Debit,23.4,gro hm passport office,17.01.2019,"Children, Families & Cultural Services "
Nottinghamshire County Council ,Other Fees & Services,Debit,23,dsa theory test,17.01.2019,"Children, Families & Cultural Services "
Nottinghamshire County Council ,Other Fees & Services,Credi,-172.5,www.licenceplus.co.uk,07.01.2019,"Children, Families & Cultural Services "
Nottinghamshire County Council ,Housing/Accommodation Financial Support,Debit,9.74,co-op group food,03.02.2019,"Children, Families & Cultural Services "
Nottinghamshire County Council ,Provisions,Debit,2.4,co-op group 310080,01.02.2019,Place
Nottinghamshire County Council ,Provisions,Debit,3.15,co-op group 310080,25.01.2019,Place
Nottinghamshire County Council ,Provisions,Debit,7.55,sainsburys smkt,24.01.2019,Place
Nottinghamshire County Council ,Provisions,Debit,129.28,bookerecomm,24.01.2019,Place
Nottinghamshire County Council ,Provisions,Debit,2.4,co-op group 310080,17.01.2019,Place
Nottinghamshire County Council ,Personal Needs,Debit,27.24,www.labelsandtags.co.u,30.01.2019,"Children, Families & Cultural Services "
Nottinghamshire County Council ,Personal Needs,Debit,25.2,alert-it care alarms,30.01.2019,"Children, Families & Cultural Services "
Nottinghamshire County Council ,Catering Equipment,Debit,125.99,amazon.co.uk mb01p47m4,23.01.2019,"Children, Families & Cultural Services "
Nottinghamshire County Council ,Personal Needs,Debit,13.17,amzn mktp uk mb6v12px4,11.01.2019,"Children, Families & Cultural Services "
Nottinghamshire County Council ,Personal Needs,Debit,7.99,netflix.com,04.01.2019,"Children, Families & Cultural Services "
Nottinghamshire County Council ,Cleaning Materials,Debit,8.77,northern tea merchants,23.01.2019,"Adult Social Care, Health & Public Protection "
Nottinghamshire County Council ,Cleaning Materials,Debit,110.5,moorcroft seafoods limit,22.01.2019,"Adult Social Care, Health & Public Protection "
Nottinghamshire County Council ,Provisions,Debit,18.41,tesco stores 5281,26.01.2019,"Children, Families & Cultural Services "
Nottinghamshire County Council ,Provisions,Debit,54.71,mcdonalds,26.01.2019,"Children, Families & Cultural Services "
Nottinghamshire County Council ,Minor Works,Debit,312,outdoor education advi,28.01.2019,"Children, Families & Cultural Services "
Nottinghamshire County Council ,Minor Works,Debit,1.39,amzn mktp uk mb5gq8i74,25.01.2019,"Children, Families & Cultural Services "
Nottinghamshire County Council ,Minor Works,Debit,7.5,amzn mktp uk mb2xx2iy4,26.01.2019,"Children, Families & Cultural Services "
Nottinghamshire County Council ,Minor Works,Credi,-667,mountain training,24.01.2019,"Children, Families & Cultural Services "
Nottinghamshire County Council ,Minor Works,Debit,243.24,access expeditions ltd,23.01.2019,"Children, Families & Cultural Services "
Nottinghamshire County Council ,Minor Works,Debit,40,sp   sherwoodoutdoors,21.01.2019,"Children, Families & Cultural Services "
Nottinghamshire County Council ,Office / General Equipment,Debit,53.94,www.argos.co.uk,10.01.2019,"Children, Families & Cultural Services "
Nottinghamshire County Council ,Personal Needs,Debit,6,ncp limited,25.01.2019,"Children, Families & Cultural Services "
Nottinghamshire County Council ,Personal Needs,Debit,13,disclosure  barring,05.01.2019,"Children, Families & Cultural Services "
Nottinghamshire County Council ,Training Fees,Debit,18.75,amzn mktp uk mb1er8su4,21.01.2019,"Adult Social Care, Health & Public Protection "
Nottinghamshire County Council ,Training Fees,Debit,2.79,amzn mktp uk mb6ww4684,19.01.2019,"Adult Social Care, Health & Public Protection "
Nottinghamshire County Council ,Training Fees,Debit,3.24,amzn mktp uk mb56o86d4,19.01.2019,"Adult Social Care, Health & Public Protection "
Nottinghamshire County Council ,Training Fees,Debit,1.28,amzn mktp uk mb8980d74,20.01.2019,"Adult Social Care, Health & Public Protection "
Nottinghamshire County Council ,Training Fees,Debit,8.25,amzn mktp uk mb0v00qx4,18.01.2019,"Adult Social Care, Health & Public Protection "
Nottinghamshire County Council ,Training Fees,Debit,45.98,amzn mktp uk mb9lw1684,19.01.2019,"Adult Social Care, Health & Public Protection "
Nottinghamshire County Council ,Books - General,Debit,5.67,amazon.co.uk mi04a1o04,30.01.2019,"Children, Families & Cultural Services "
Nottinghamshire County Council ,Books - General,Debit,24.98,amazon.co.uk mi2fo9o94,29.01.2019,"Children, Families & Cultural Services "
Nottinghamshire County Council ,Books - General,Debit,89.98,amazon.co.uk mi5cj5os4,29.01.2019,"Children, Families & Cultural Services "
Nottinghamshire County Council ,Books - General,Debit,7.95,amazon.co.uk mi4c77oc4,29.01.2019,"Children, Families & Cultural Services "
Nottinghamshire County Council ,Books - General,Debit,47.5,amzn mktp uk mb7r31yg4 a,28.01.2019,"Children, Families & Cultural Services "
Nottinghamshire County Council ,Books - General,Debit,4,amzn mktp uk mb6hx4y54,28.01.2019,"Children, Families & Cultural Services "
Nottinghamshire County Council ,Books - General,Debit,11.39,amazon.co.uk mi96m8cc4,28.01.2019,"Children, Families & Cultural Services "
Nottinghamshire County Council ,Books - General,Debit,26,amazon.co.uk mb15q1ww4 a,27.01.2019,"Children, Families & Cultural Services "
Nottinghamshire County Council ,Office / General Equipment,Debit,5.69,amzn mktp uk mb8p72un4,25.01.2019,"Children, Families & Cultural Services "
Nottinghamshire County Council ,Specialist Equipment,Debit,849.99,decathlon uk vad,22.01.2019,"Children, Families & Cultural Services "
Nottinghamshire County Council ,Provisions,Debit,30.1,tesco stores 5329,17.01.2019,"Children, Families & Cultural Services "
Nottinghamshire County Council ,Subscriptions and Licences,Debit,120,www.pshe-association.o,15.01.2019,"Children, Families & Cultural Services "
Nottinghamshire County Council ,Office / General Equipment,Debit,19.58,amzn mktp uk mb0ot81h4 a,10.01.2019,"Children, Families & Cultural Services "
Nottinghamshire County Council ,Office / General Equipment,Debit,76.04,amazon.co.uk mb1dp7xz4,13.01.2019,"Children, Families & Cultural Services "
Nottinghamshire County Council ,Books - General,Debit,15.5,amazon.co.uk mb4wg4tj4,07.01.2019,"Children, Families & Cultural Services "
Nottinghamshire County Council ,Books - General,Debit,532.88,amazon.co.uk mb7ss83c4,07.01.2019,"Children, Families & Cultural Services "
Nottinghamshire County Council ,Books - General,Debit,46.5,amazon.co.uk mb2a883e4,07.01.2019,"Children, Families & Cultural Services "
Nottinghamshire County Council ,Books - General,Debit,116.85,amzn mktp uk mb80693o4,07.01.2019,"Children, Families & Cultural Services "
Nottinghamshire County Council ,Office / General Equipment,Debit,46.5,amazon.co.uk mb2dx7jd4,07.01.2019,"Children, Families & Cultural Services "
Nottinghamshire County Council ,Books - General,Debit,62,amazon.co.uk mb4k653p4,07.01.2019,"Children, Families & Cultural Services "
Nottinghamshire County Council ,Books - General,Debit,62,amazon.co.uk mb62w6nj4,07.01.2019,"Children, Families & Cultural Services "
Nottinghamshire County Council ,Books - General,Debit,171.97,amazon.co.uk mb1tt0jp4,07.01.2019,"Children, Families & Cultural Services "
Nottinghamshire County Council ,Office / General Equipment,Debit,7.99,amazon prime mb4v81zg4,05.01.2019,"Children, Families & Cultural Services "
Nottinghamshire County Council ,Other Fees & Services,Debit,12,freedom programme limite,28.01.2019,"Children, Families & Cultural Services "
Nottinghamshire County Council ,Family Financial Assistance,Debit,24,freedom programme limite,23.01.2019,"Children, Families & Cultural Services "
Nottinghamshire County Council ,Family Financial Assistance,Debit,33,wilko.com,23.01.2019,"Children, Families & Cultural Services "
Nottinghamshire County Council ,Cleaning Materials,Debit,14.99,argos retail group,09.01.2019,Resources
Nottinghamshire County Council ,Unplanned Needs and Financial Support,Debit,38.94,www.argos.co.uk,25.01.2019,"Children, Families & Cultural Services "
Nottinghamshire County Council ,Unplanned Needs and Financial Support,Debit,209.99,www.argos.co.uk,25.01.2019,"Children, Families & Cultural Services "
Nottinghamshire County Council ,Unplanned Needs and Financial Support,Debit,5.5,sainsburys s/mkts,18.01.2019,"Children, Families & Cultural Services "
Nottinghamshire County Council ,Unplanned Needs and Financial Support,Debit,10,central eng co-ope,17.01.2019,"Children, Families & Cultural Services "
Nottinghamshire County Council ,Unplanned Needs and Financial Support,Debit,440,sumup marston (holdings),15.01.2019,"Children, Families & Cultural Services "
Nottinghamshire County Council ,Unplanned Needs and Financial Support,Debit,20.98,t k maxx,14.01.2019,"Children, Families & Cultural Services "
Nottinghamshire County Council ,Unplanned Needs and Financial Support,Debit,35.49,home bargains newark,14.01.2019,"Children, Families & Cultural Services "
Nottinghamshire County Council ,Unplanned Needs and Financial Support,Debit,10.5,heavenly desserts,04.01.2019,"Children, Families & Cultural Services "
Nottinghamshire County Council ,Office / General Equipment,Debit,5,yourparkingspace.co.uk,02.02.2019,"Children, Families & Cultural Services "
Nottinghamshire County Council ,Clothing/Shoes/Uniforms,Debit,68,manchester united,03.02.2019,"Children, Families & Cultural Services "
Nottinghamshire County Council ,Provisions,Debit,22.73,kfc stretford,03.02.2019,"Children, Families & Cultural Services "
Nottinghamshire County Council ,Activities & Support,Debit,57.5,man utd ticket off,27.01.2019,"Children, Families & Cultural Services "
Nottinghamshire County Council ,Provisions,Debit,127.52,aldi 65 779,28.01.2019,"Children, Families & Cultural Services "
Nottinghamshire County Council ,Clothing/Shoes/Uniforms,Debit,7.49,sportsdirect 292,21.01.2019,"Children, Families & Cultural Services "
Nottinghamshire County Council ,Computer Equipment,Debit,22.5,tesco stores 5437,21.01.2019,"Children, Families & Cultural Services "
Nottinghamshire County Council ,Provisions,Debit,2,tesco stores 5437,21.01.2019,"Children, Families & Cultural Services "
Nottinghamshire County Council ,Personal Needs,Debit,14.3,tesco stores 5437,07.01.2019,"Children, Families & Cultural Services "
Nottinghamshire County Council ,Provisions,Debit,148.38,aldi 65 779,07.01.2019,"Children, Families & Cultural Services "
Nottinghamshire County Council ,Clothing/Shoes/Uniforms,Debit,57.01,sportsdirect 292,06.01.2019,"Children, Families & Cultural Services "
Nottinghamshire County Council ,Activities & Support,Debit,47.61,amzn mktp uk mi8wz7zy4,01.02.2019,Resources
Nottinghamshire County Council ,Activities & Support,Debit,32.95,amazon.co.uk mi5os2zy4,02.02.2019,Resources
Nottinghamshire County Council ,Activities & Support,Debit,14.48,amzn mktp uk mi0fs2fj4 a,30.01.2019,"Adult Social Care, Health & Public Protection "
Nottinghamshire County Council ,Other Fees & Services,Debit,35.87,ian berg plastics,25.01.2019,Resources
Nottinghamshire County Council ,Activities & Support,Debit,28.1,sp   incy wincy swimst,22.01.2019,Resources
Nottinghamshire County Council ,Computer Equipment,Debit,25.5,amzn mktp uk mb2we42y4 a,21.01.2019,Resources
Nottinghamshire County Council ,Office / General Equipment,Debit,134.85,amazon.co.uk mb9lf12y4,21.01.2019,"Adult Social Care, Health & Public Protection "
Nottinghamshire County Council ,Office / General Equipment,Debit,41.24,www.promedics.co.uk,21.01.2019,"Adult Social Care, Health & Public Protection "
Nottinghamshire County Council ,Materials - External,Debit,7.26,fast key services limi,17.01.2019,"Adult Social Care, Health & Public Protection "
Nottinghamshire County Council ,Activities & Support,Debit,47.84,amzn mktp uk mb5973h64,16.01.2019,"Adult Social Care, Health & Public Protection "
Nottinghamshire County Council ,Legal Fees,Debit,288,oldham marsh,10.01.2019,"Children, Families & Cultural Services "
Nottinghamshire County Council ,Other Fees & Services,Debit,97.8,amzn mktp uk mb33s44g4 a,03.01.2019,"Adult Social Care, Health & Public Protection "
Nottinghamshire County Council ,Provisions,Debit,10.34,aldi 113 772,31.01.2019,"Children, Families & Cultural Services "
Nottinghamshire County Council ,Provisions,Debit,25.98,wm morrisons store,30.01.2019,"Children, Families & Cultural Services "
Nottinghamshire County Council ,Provisions,Debit,6.51,sainsburys s/mkts,24.01.2019,"Children, Families & Cultural Services "
Nottinghamshire County Council ,Provisions,Debit,13.35,wm morrisons store,22.01.2019,"Children, Families & Cultural Services "
Nottinghamshire County Council ,Provisions,Debit,20.59,costco wholesale uk,21.01.2019,"Children, Families & Cultural Services "
Nottinghamshire County Council ,Provisions,Debit,30.78,wm morrisons store,17.01.2019,"Children, Families & Cultural Services "
Nottinghamshire County Council ,Provisions,Debit,6.15,sainsburys s/mkts,15.01.2019,"Children, Families & Cultural Services "
Nottinghamshire County Council ,Cleaning & Domestic Equipment,Debit,4.99,b  m retail,21.01.2019,"Children, Families & Cultural Services "
Nottinghamshire County Council ,Provisions,Debit,62.22,aldi 39 779,21.01.2019,"Children, Families & Cultural Services "
Nottinghamshire County Council ,Provisions,Debit,63.8,aldi 39 779,21.01.2019,"Children, Families & Cultural Services "
Nottinghamshire County Council ,Provisions,Debit,9.49,b  m retail,21.01.2019,"Children, Families & Cultural Services "
Nottinghamshire County Council ,Cleaning & Domestic Equipment,Debit,15.6,home bargains doncaste,16.01.2019,"Children, Families & Cultural Services "
Nottinghamshire County Council ,Personal Needs,Debit,8.5,the works,16.01.2019,"Children, Families & Cultural Services "
Nottinghamshire County Council ,Personal Needs,Debit,4,wh smith,16.01.2019,"Children, Families & Cultural Services "
Nottinghamshire County Council ,Personal Needs,Debit,14.73,heron foods ltd,14.01.2019,"Children, Families & Cultural Services "
Nottinghamshire County Council ,Personal Needs,Debit,10,wh smith,14.01.2019,"Children, Families & Cultural Services "
Nottinghamshire County Council ,Office / General Equipment,Debit,"1,075.20",t.m electronics (uk) l,16.01.2019,Place
Nottinghamshire County Council ,Office / General Equipment,Debit,57.42,www.fireprotectionshop,11.01.2019,"Children, Families & Cultural Services "
Nottinghamshire County Council ,Provisions,Debit,25.98,amzn mktp uk mb7870yr4 a,28.01.2019,"Adult Social Care, Health & Public Protection "
Nottinghamshire County Council ,Provisions,Debit,11.95,amzn mktp uk mi4sh8cb4 a,29.01.2019,"Adult Social Care, Health & Public Protection "
Nottinghamshire County Council ,Provisions,Debit,6.76,amzn mktp uk mb64c3yt4,28.01.2019,"Adult Social Care, Health & Public Protection "
Nottinghamshire County Council ,Provisions,Debit,49.48,w m morrisons.com,28.01.2019,"Adult Social Care, Health & Public Protection "
Nottinghamshire County Council ,Provisions,Credi,-4,asda groceries online,25.01.2019,"Adult Social Care, Health & Public Protection "
Nottinghamshire County Council ,Provisions,Debit,95.86,asda groceries online,25.01.2019,"Adult Social Care, Health & Public Protection "
Nottinghamshire County Council ,Provisions,Debit,7.99,amazon prime mb12g9284,22.01.2019,"Adult Social Care, Health & Public Protection "
Nottinghamshire County Council ,Provisions,Debit,127.29,w m morrisons.com,21.01.2019,"Adult Social Care, Health & Public Protection "
Nottinghamshire County Council ,Provisions,Debit,100.35,w m morrisons.com,17.01.2019,"Adult Social Care, Health & Public Protection "
Nottinghamshire County Council ,Provisions,Debit,84.19,w m morrisons.com,14.01.2019,"Adult Social Care, Health & Public Protection "
Nottinghamshire County Council ,Provisions,Debit,139.28,w m morrisons.com,10.01.2019,"Adult Social Care, Health & Public Protection "
Nottinghamshire County Council ,Provisions,Debit,7.48,amzn mktp uk mb7q280q4,10.01.2019,"Adult Social Care, Health & Public Protection "
Nottinghamshire County Council ,Provisions,Debit,14.48,amzn mktp uk mb88u8e94,09.01.2019,"Adult Social Care, Health & Public Protection "
Nottinghamshire County Council ,Provisions,Debit,3.99,amazon.co.uk mb5j09e34,09.01.2019,"Adult Social Care, Health & Public Protection "
Nottinghamshire County Council ,Provisions,Debit,62.69,w m morrisons.com,07.01.2019,"Adult Social Care, Health & Public Protection "
Nottinghamshire County Council ,Provisions,Debit,102.37,w m morrisons.com,04.01.2019,"Adult Social Care, Health & Public Protection "
Nottinghamshire County Council ,Provisions,Debit,20.29,tesco stores 2995,30.01.2019,"Children, Families & Cultural Services "
Nottinghamshire County Council ,Provisions,Debit,18.57,tesco stores 2995,25.01.2019,"Children, Families & Cultural Services "
Nottinghamshire County Council ,Provisions,Debit,16.45,tesco stores 2995,24.01.2019,"Children, Families & Cultural Services "
Nottinghamshire County Council ,Provisions,Debit,13.25,tesco stores 2995,19.01.2019,"Children, Families & Cultural Services "
Nottinghamshire County Council ,Provisions,Debit,8.5,tesco stores 2995,16.01.2019,"Children, Families & Cultural Services "
Nottinghamshire County Council ,Provisions,Debit,6.05,tesco stores 2995,14.01.2019,"Children, Families & Cultural Services "
Nottinghamshire County Council ,Provisions,Debit,7.8,tesco stores 2995,11.01.2019,"Children, Families & Cultural Services "
Nottinghamshire County Council ,Provisions,Debit,24.8,tesco stores 2995,09.01.2019,"Children, Families & Cultural Services "
Nottinghamshire County Council ,Provisions,Debit,11.6,tesco stores 2995,04.01.2019,"Children, Families & Cultural Services "
Nottinghamshire County Council ,Provisions,Debit,15.15,tesco stores 2995,06.01.2019,"Children, Families & Cultural Services "
Nottinghamshire County Council ,Provisions,Debit,29.6,tesco stores 2995,05.01.2019,"Children, Families & Cultural Services "
Nottinghamshire County Council ,Personal Needs,Debit,38,cex,24.01.2019,"Children, Families & Cultural Services "
Nottinghamshire County Council ,Personal Needs,Debit,22,sportsdirect 437,16.01.2019,"Children, Families & Cultural Services "
Nottinghamshire County Council ,Personal Needs,Debit,5.09,mcdonalds,15.01.2019,"Children, Families & Cultural Services "
Nottinghamshire County Council ,Personal Needs,Debit,5,sainsburys s/mkts,13.01.2019,"Children, Families & Cultural Services "
Nottinghamshire County Council ,Personal Needs,Debit,6.05,sainsburys s/mkts,13.01.2019,"Children, Families & Cultural Services "
Nottinghamshire County Council ,Minor Works,Debit,"1,439.10",custom group ltd,24.01.2019,"Children, Families & Cultural Services "
Nottinghamshire County Council ,Minor Works,Debit,27.29,amzn mktp uk mb5sr17b4,23.01.2019,"Children, Families & Cultural Services "
Nottinghamshire County Council ,Minor Works,Debit,198.99,amzn mktp uk mb8kz87i4,23.01.2019,"Children, Families & Cultural Services "
Nottinghamshire County Council ,Provisions,Debit,21.59,amzn mktp uk mb7322734 a,23.01.2019,"Children, Families & Cultural Services "
Nottinghamshire County Council ,Minor Works,Debit,98.85,amazon.co.uk mb8m192e4 a,21.01.2019,"Children, Families & Cultural Services "
Nottinghamshire County Council ,Provisions,Debit,99,amazon.co.uk mb5wu7ke4 a,22.01.2019,"Children, Families & Cultural Services "
Nottinghamshire County Council ,Minor Works,Debit,293.62,amazon.co.uk mb6yr3kk4 a,22.01.2019,"Children, Families & Cultural Services "
Nottinghamshire County Council ,Provisions,Debit,109,amzn mktp uk mb1xs0254,22.01.2019,"Children, Families & Cultural Services "
Nottinghamshire County Council ,Minor Works,Debit,12.98,amzn mktp uk mb5co12b4,21.01.2019,"Children, Families & Cultural Services "
Nottinghamshire County Council ,Minor Works,Debit,119.99,screwfix direct,21.01.2019,"Children, Families & Cultural Services "
Nottinghamshire County Council ,Minor Works,Debit,12.54,amzn mktp uk mb5dr7sa4,21.01.2019,"Children, Families & Cultural Services "
Nottinghamshire County Council ,Minor Works,Debit,99,amazon.co.uk mb1052sw4 a,21.01.2019,"Children, Families & Cultural Services "
Nottinghamshire County Council ,Minor Works,Debit,40.18,www.muddyfaces.co.uk,21.01.2019,"Children, Families & Cultural Services "
Nottinghamshire County Council ,Minor Works,Debit,135,dd hammocks ddhammocks,21.01.2019,"Children, Families & Cultural Services "
Nottinghamshire County Council ,Minor Works,Debit,35.89,amzn mktp uk mb6ik7sv4,21.01.2019,"Children, Families & Cultural Services "
Nottinghamshire County Council ,Minor Works,Debit,314.1,towsure call centre,21.01.2019,"Children, Families & Cultural Services "
Nottinghamshire County Council ,Minor Works,Debit,279.96,amzn mktp uk mb80f6sv4,21.01.2019,"Children, Families & Cultural Services "
Nottinghamshire County Council ,Minor Works,Debit,6.46,amzn mktp uk mb3aa2sj4,21.01.2019,"Children, Families & Cultural Services "
Nottinghamshire County Council ,Minor Works,Debit,104.85,amzn mktp uk mb2dg0254,21.01.2019,"Children, Families & Cultural Services "
Nottinghamshire County Council ,Minor Works,Debit,125.9,amzn mktp uk mb0a47s84,21.01.2019,"Children, Families & Cultural Services "
Nottinghamshire County Council ,Minor Works,Debit,9.98,amazon.co.uk mb7l16234 a,21.01.2019,"Children, Families & Cultural Services "
Nottinghamshire County Council ,Minor Works,Debit,136.5,amzn mktp uk mb7wp22n4,21.01.2019,"Children, Families & Cultural Services "
Nottinghamshire County Council ,Minor Works,Debit,16.2,amzn mktp uk mb3ay6sa4,21.01.2019,"Children, Families & Cultural Services "
Nottinghamshire County Council ,Minor Works,Debit,89.99,amzn mktp uk mb80s4s14,21.01.2019,"Children, Families & Cultural Services "
Nottinghamshire County Council ,Minor Works,Debit,137.92,amzn mktp uk mb2ei0s44,21.01.2019,"Children, Families & Cultural Services "
Nottinghamshire County Council ,Minor Works,Debit,13.47,amazon.co.uk mb65522w4 a,21.01.2019,"Children, Families & Cultural Services "
Nottinghamshire County Council ,Minor Works,Debit,82.56,paypal  larpfashion,21.01.2019,"Children, Families & Cultural Services "
Nottinghamshire County Council ,Minor Works,Debit,339.99,amzn mktp uk mb8qb8s64,21.01.2019,"Children, Families & Cultural Services "
Nottinghamshire County Council ,Minor Works,Debit,127.08,amzn mktp uk mb2lm6hb4,16.01.2019,"Children, Families & Cultural Services "
Nottinghamshire County Council ,Minor Works,Debit,7.99,amazon prime mb9687ex4,09.01.2019,"Children, Families & Cultural Services "
Nottinghamshire County Council ,Office / General Equipment,Debit,14.94,amazon.co.uk mi77v2nz4,02.02.2019,Resources
Nottinghamshire County Council ,Office / General Equipment,Debit,110.4,amzn mktp uk mi9m00334,03.02.2019,Resources
Nottinghamshire County Council ,Office / General Equipment,Debit,100.98,amzn mktp uk mb75y1u14 a,24.01.2019,Resources
Nottinghamshire County Council ,Office / General Equipment,Debit,19.79,amzn mktp uk mb7o20iq4 a,25.01.2019,Resources
Nottinghamshire County Council ,Office / General Equipment,Debit,69.98,showstoppers ltd,22.01.2019,Resources
Nottinghamshire County Council ,Office / General Equipment,Debit,4,wm morrisons store,09.01.2019,Resources
Nottinghamshire County Council ,Fixtures & Fittings,Debit,1.8,b  q 1261,23.01.2019,"Children, Families & Cultural Services "
Nottinghamshire County Council ,Fixtures & Fittings,Debit,1.8,b  q 1261,23.01.2019,"Children, Families & Cultural Services "
Nottinghamshire County Council ,Fixtures & Fittings,Debit,2.47,b  q 1261,23.01.2019,"Children, Families & Cultural Services "
Nottinghamshire County Council ,Fixtures & Fittings,Debit,2.47,b  q 1261,23.01.2019,"Children, Families & Cultural Services "
Nottinghamshire County Council ,Fixtures & Fittings,Debit,2.47,b  q 1261,23.01.2019,"Children, Families & Cultural Services "
Nottinghamshire County Council ,Fixtures & Fittings,Debit,3.04,b  q 1261,23.01.2019,"Children, Families & Cultural Services "
Nottinghamshire County Council ,Fixtures & Fittings,Debit,3.32,b  q 1261,23.01.2019,"Children, Families & Cultural Services "
Nottinghamshire County Council ,Fixtures & Fittings,Debit,7.41,b  q 1261,23.01.2019,"Children, Families & Cultural Services "
Nottinghamshire County Council ,Fixtures & Fittings,Debit,22,b  q 1261,23.01.2019,"Children, Families & Cultural Services "
Nottinghamshire County Council ,Fixtures & Fittings,Debit,6.92,b  q 1261,08.01.2019,"Children, Families & Cultural Services "
Nottinghamshire County Council ,Fixtures & Fittings,Debit,9,b  q 1261,08.01.2019,"Children, Families & Cultural Services "
Nottinghamshire County Council ,Stationery,Debit,4.78,amzn mktp uk mb6cs9984,24.01.2019,"Children, Families & Cultural Services "
Nottinghamshire County Council ,Personal Needs,Debit,22.93,amzn mktp uk mb23n0904,24.01.2019,"Children, Families & Cultural Services "
Nottinghamshire County Council ,Personal Needs,Debit,8.6,amzn mktp uk mb2va5kh4 a,22.01.2019,"Children, Families & Cultural Services "
Nottinghamshire County Council ,Personal Needs,Debit,29.98,amzn mktp uk mb7427kn4 a,22.01.2019,"Children, Families & Cultural Services "
Nottinghamshire County Council ,Personal Needs,Debit,56,wilko.com,23.01.2019,"Children, Families & Cultural Services "
Nottinghamshire County Council ,Personal Needs,Debit,21.48,amzn mktp uk mb0vm9ks4,22.01.2019,"Children, Families & Cultural Services "
Nottinghamshire County Council ,Personal Needs,Debit,15.69,amazon.co.uk mb8uf9db4 a,20.01.2019,"Children, Families & Cultural Services "
Nottinghamshire County Council ,Unplanned Needs and Financial Support,Debit,10.98,asda superstore 04261,28.01.2019,"Children, Families & Cultural Services "
Nottinghamshire County Council ,Leaving Care - Home Establishment Grant,Debit,24.98,argos mansfield,25.01.2019,"Children, Families & Cultural Services "
Nottinghamshire County Council ,Unplanned Needs and Financial Support,Debit,12,sainsburys s/mkts,25.01.2019,"Children, Families & Cultural Services "
Nottinghamshire County Council ,Unplanned Needs and Financial Support,Debit,11.5,arrow farm shop ltd,21.01.2019,"Children, Families & Cultural Services "
Nottinghamshire County Council ,Unplanned Needs and Financial Support,Debit,2.36,tesco stores-3439,21.01.2019,"Children, Families & Cultural Services "
Nottinghamshire County Council ,Leaving Care - Home Establishment Grant,Debit,24.8,wilko retail limit,18.01.2019,"Children, Families & Cultural Services "
Nottinghamshire County Council ,Leaving Care - Home Establishment Grant,Debit,12.67,b  m retail,18.01.2019,"Children, Families & Cultural Services "
Nottinghamshire County Council ,Leaving Care - Home Establishment Grant,Debit,36.99,argos ltd,17.01.2019,"Children, Families & Cultural Services "
Nottinghamshire County Council ,Leaving Care - Home Establishment Grant,Debit,46.89,asda superstore 04261,14.01.2019,"Children, Families & Cultural Services "
Nottinghamshire County Council ,Unplanned Needs and Financial Support,Debit,14,tesco stores 5379,11.01.2019,"Children, Families & Cultural Services "
Nottinghamshire County Council ,Unplanned Needs and Financial Support,Debit,11,tesco store 3439,08.01.2019,"Children, Families & Cultural Services "
Nottinghamshire County Council ,Cleaning Materials,Debit,15.9,wilko retail limit,18.01.2019,"Adult Social Care, Health & Public Protection "
Nottinghamshire County Council ,Catering Equipment,Debit,35.97,amzn mktp uk mi9ap6fu4,30.01.2019,"Adult Social Care, Health & Public Protection "
Nottinghamshire County Council ,Catering Equipment,Debit,8.48,amzn mktp uk mb4o73yx4,28.01.2019,"Adult Social Care, Health & Public Protection "
Nottinghamshire County Council ,Protective Clothing,Debit,27.8,amzn mktp uk mb35y3p44,11.01.2019,"Adult Social Care, Health & Public Protection "
Nottinghamshire County Council ,Provisions,Debit,8.03,decathlon,30.01.2019,"Children, Families & Cultural Services "
Nottinghamshire County Council ,Provisions,Debit,38,ikea limited,30.01.2019,"Children, Families & Cultural Services "
Nottinghamshire County Council ,Provisions,Debit,19.99,regenerate,28.01.2019,"Children, Families & Cultural Services "
Nottinghamshire County Council ,Provisions,Debit,4.04,arnold,28.01.2019,"Children, Families & Cultural Services "
Nottinghamshire County Council ,Provisions,Debit,13.37,b  m retail,24.01.2019,"Children, Families & Cultural Services "
Nottinghamshire County Council ,Provisions,Debit,7.79,lidl uk  netherfield,23.01.2019,"Children, Families & Cultural Services "
Nottinghamshire County Council ,Provisions,Debit,249.99,argos ltd,21.01.2019,"Children, Families & Cultural Services "
Nottinghamshire County Council ,Provisions,Debit,3.89,co-op group 011451,18.01.2019,"Children, Families & Cultural Services "
Nottinghamshire County Council ,Provisions,Debit,39.97,bm retail,16.01.2019,"Children, Families & Cultural Services "
Nottinghamshire County Council ,home to school transport,Debit,85.25,ian berg plastics,15.01.2019,"Children, Families & Cultural Services "
Nottinghamshire County Council ,Office / General Equipment,Debit,91.96,screwfix direct,21.01.2019,Place
Nottinghamshire County Council ,Office / General Equipment,Debit,179.99,screwfix direct,21.01.2019,Place
Nottinghamshire County Council ,Stationery,Debit,27.43,mailchimp    monthly,28.01.2019,Place
Nottinghamshire County Council ,Stationery,Debit,23.79,amzn mktp uk mb9k895r4,15.01.2019,Place
Nottinghamshire County Council ,Clothing/Shoes/Uniforms,Debit,25,primark,18.01.2019,"Children, Families & Cultural Services "
Nottinghamshire County Council ,Clothing/Shoes/Uniforms,Debit,23.04,new look 2015,18.01.2019,"Children, Families & Cultural Services "
Nottinghamshire County Council ,Provisions,Debit,18.8,golden eagle,17.01.2019,"Children, Families & Cultural Services "
Nottinghamshire County Council ,Provisions,Debit,4.14,sainsburys s/mkts,16.01.2019,"Children, Families & Cultural Services "
Nottinghamshire County Council ,Fuel - Petrol,Debit,70,tesco pfs 5538,14.01.2019,"Children, Families & Cultural Services "
Nottinghamshire County Council ,Provisions,Debit,5.3,coopers brook,11.01.2019,"Children, Families & Cultural Services "
Nottinghamshire County Council ,Personal Needs,Debit,3.8,mansfield leisure,11.01.2019,"Children, Families & Cultural Services "
Nottinghamshire County Council ,Advertising & Marketing,Debit,96.72,hotjar,01.02.2019,Resources
Nottinghamshire County Council ,Advertising & Marketing,Debit,500,google  ads6019404425,01.02.2019,Resources
Nottinghamshire County Council ,Advertising & Marketing,Debit,20.45,canva for work monthly,02.02.2019,Resources
Nottinghamshire County Council ,Advertising & Marketing,Debit,40.48,linkedin-445 6096573,24.01.2019,Resources
Nottinghamshire County Council ,Advertising & Marketing,Debit,7.99,amazon prime mb4ry92g4,22.01.2019,Resources
Nottinghamshire County Council ,Advertising & Marketing,Debit,19.52,linkedin-444 4842113,18.01.2019,Resources
Nottinghamshire County Council ,Advertising & Marketing,Debit,23.97,123-reg.co.uk,16.01.2019,Resources
